﻿Department family,Entity,Date of payment,Expense type,Expense area,Supplier,Transaction number,Amount in Sterling,Supplier VAT Registration Number
Department of Health,Guys and St Thomas NHS Foundation Trust,11/12/2020,(83400) Office Equipment,(id:850419) TAP,NHS SUPPLY CHAIN (MAIDSTONE),id:13531623 , 207.43
Department of Health,Guys and St Thomas NHS Foundation Trust,11/12/2020,(83400) Office Equipment,(id:850419) TAP,NHS SUPPLY CHAIN (MAIDSTONE),id:13543074 , 147.90
Department of Health,Guys and St Thomas NHS Foundation Trust,11/12/2020,(83400) Office Equipment,(id:850419) TAP,NHS SUPPLY CHAIN (MAIDSTONE),id:13542894 ,  20.14
Department of Health,Guys and St Thomas NHS Foundation Trust,11/12/2020,(81100) Dressings,(id:850419) TAP,NHS SUPPLY CHAIN (MAIDSTONE),id:13543750   ,  37.04
Department of Health,Guys and St Thomas NHS Foundation Trust,11/12/2020,(81100) Dressings,(id:850419) TAP,NHS SUPPLY CHAIN (MAIDSTONE),id:13543516   ,  71.28
Department of Health,Guys and St Thomas NHS Foundation Trust,11/12/2020,(82600) Uniforms & Clothing,(id:850419) TAP,NHS SUPPLY CHAIN (MAIDSTONE),id:13543074   , 261.94
Department of Health,Guys and St Thomas NHS Foundation Trust,04/12/2020,(81200) Medical Surgical Supplies & Equipment,(id:41897) TAP,BUNZL HEALTHCARE,id:13532141   ,  24.00
Department of Health,Guys and St Thomas NHS Foundation Trust,11/12/2020,(81200) Medical Surgical Supplies & Equipment,(id:41897) TAP,NHS SUPPLY CHAIN (MAIDSTONE),id:13542894 ,2847.59
Department of Health,Guys and St Thomas NHS Foundation Trust,11/12/2020,(81200) Medical Surgical Supplies & Equipment,(id:41897) TAP,LOCAMED LTD,id:13455870   ,3652.20
Department of Health,Guys and St Thomas NHS Foundation Trust,18/12/2020,(81200) Medical Surgical Supplies & Equipment,(id:41897) TAP,JOHNSON & JOHNSON MEDICAL LTD,id:13518427, 302.24
Department of Health,Guys and St Thomas NHS Foundation Trust,18/12/2020,(81200) Medical Surgical Supplies & Equipment,(id:41897) TAP,JOHNSON & JOHNSON MEDICAL LTD,id:13529332,2164.10
Department of Health,Guys and St Thomas NHS Foundation Trust,04/12/2020,(81200) Medical Surgical Supplies & Equipment,(id:41897) TAP,JOHNSON & JOHNSON MEDICAL LTD,id:13484732, 145.09
Department of Health,Guys and St Thomas NHS Foundation Trust,11/12/2020,(81200) Medical Surgical Supplies & Equipment,(id:41897) TAP,OLYMPUS KEYMED,id:13500572,2316.92
Department of Health,Guys and St Thomas NHS Foundation Trust,11/12/2020,(81100) Dressings,(id:41897) TAP,NHS SUPPLY CHAIN (MAIDSTONE),id:13543750    , 918.81
Department of Health,Guys and St Thomas NHS Foundation Trust,18/12/2020,(81100) Dressings,(id:41897) TAP,JOHNSON & JOHNSON MEDICAL LTD,id:13523908   , 678.78
Department of Health,Guys and St Thomas NHS Foundation Trust,22/12/2020,(81100) Dressings,(id:41897) TAP,ELIS UK LIMITED,id:13565258  , 468.79
Department of Health,Guys and St Thomas NHS Foundation Trust,11/12/2020,(82000) Provisions & Kitchens,(id:41897) TAP,NHS SUPPLY CHAIN (MAIDSTONE),id:13543074  ,  58.21
Department of Health,Guys and St Thomas NHS Foundation Trust,11/12/2020,(81230) Medical Surgical Supplies & Equipment,(id:41894) TAP,NHS SUPPLY CHAIN (MAIDSTONE),id:13543074 , 533.64
Department of Health,Guys and St Thomas NHS Foundation Trust,11/12/2020,(82600) Uniforms & Clothing,(id:41894) TAP,NHS SUPPLY CHAIN (MAIDSTONE),id:13543074    ,  20.89
Department of Health,Guys and St Thomas NHS Foundation Trust,11/12/2020,(81200) Medical Surgical Supplies & Equipment,(id:41894) TAP,NHS SUPPLY CHAIN (MAIDSTONE),id:13531623 , 914.38
Department of Health,Guys and St Thomas NHS Foundation Trust,11/12/2020,(81200) Medical Surgical Supplies & Equipment,(id:41894) TAP,ELIS UK LIMITED,id:13521894    ,  81.12
Department of Health,Guys and St Thomas NHS Foundation Trust,11/12/2020,(81200) Medical Surgical Supplies & Equipment,(id:41893) TAP,NHS SUPPLY CHAIN (MAIDSTONE),id:13542894 , 129.60
Department of Health,Guys and St Thomas NHS Foundation Trust,11/12/2020,(81200) Medical Surgical Supplies & Equipment,(id:41892) TAP,NHS SUPPLY CHAIN (MAIDSTONE),id:13543516 ,   4.20
Department of Health,Guys and St Thomas NHS Foundation Trust,11/12/2020,(83410) Office Equipment,(id:41890) TAP,RICOH UK LTD,id:13516172   , 419.05
Department of Health,Guys and St Thomas NHS Foundation Trust,11/12/2020,(81100) Dressings,(id:41888) TAP,NHS SUPPLY CHAIN (MAIDSTONE),id:13543516    ,   9.90
Department of Health,Guys and St Thomas NHS Foundation Trust,04/12/2020,(81200) Medical Surgical Supplies & Equipment,(id:41886) TAP,OLYMPUS KEYMED,id:13481924,2419.52
Department of Health,Guys and St Thomas NHS Foundation Trust,11/12/2020,(82800) Bedding & Linen,(id:41883) TAP,NHS SUPPLY CHAIN (MAIDSTONE),id:13531623   , 294.82
Department of Health,Guys and St Thomas NHS Foundation Trust,11/12/2020,(81700) Lab Equipment Purchase,(id:41883) TAP,NHS SUPPLY CHAIN (MAIDSTONE),id:13542894 ,   1.32
Department of Health,Guys and St Thomas NHS Foundation Trust,11/12/2020,(81700) Lab Equipment Purchase,(id:41883) TAP,NHS SUPPLY CHAIN (MAIDSTONE),id:13543074 ,  15.00
Department of Health,Guys and St Thomas NHS Foundation Trust,18/12/2020,(81225) Medical Surgical Supplies & Equipment,(id:41883) TAP,NHS SUPPLY CHAIN (MAIDSTONE),id:13535395 ,  70.15
Department of Health,Guys and St Thomas NHS Foundation Trust,11/12/2020,(81225) Medical Surgical Supplies & Equipment,(id:41883) TAP,NHS SUPPLY CHAIN (MAIDSTONE),id:13543750 ,  24.25
Department of Health,Guys and St Thomas NHS Foundation Trust,11/12/2020,(81200) Medical Surgical Supplies & Equipment,(id:41883) TAP,NHS SUPPLY CHAIN (MAIDSTONE),id:13543516 ,2099.08
Department of Health,Guys and St Thomas NHS Foundation Trust,18/12/2020,(81200) Medical Surgical Supplies & Equipment,(id:41883) TAP,JOHNSON & JOHNSON MEDICAL LTD,id:13529329,  72.90
Department of Health,Guys and St Thomas NHS Foundation Trust,11/12/2020,(81200) Medical Surgical Supplies & Equipment,(id:41883) TAP,TPS HEALTHCARE GROUP,id:13537154    , 504.00
Department of Health,Guys and St Thomas NHS Foundation Trust,04/12/2020,(50552) Qualified Nursing Staff,(id:41883) TAP,CONTINENTAL NURSE LTD,id:13531103  ,1788.19
Department of Health,Guys and St Thomas NHS Foundation Trust,11/12/2020,(81255) Medical Surgical Supplies & Equipment,(id:41883) TAP,NHS SUPPLY CHAIN (MAIDSTONE),id:13543516 ,  28.15
Department of Health,Guys and St Thomas NHS Foundation Trust,11/12/2020,(83400) Office Equipment,(id:41883) TAP,NHS SUPPLY CHAIN (MAIDSTONE),id:13543074  , 728.67
Department of Health,Guys and St Thomas NHS Foundation Trust,18/12/2020,(50562) Qualified Nursing Staff,(id:41883) TAP,CARE PROVIDERS HEALTHCARE,id:13571122   ,1151.28
Department of Health,Guys and St Thomas NHS Foundation Trust,11/12/2020,(81200) Medical Surgical Supplies & Equipment,(id:41907) TAP,NHS SUPPLY CHAIN (MAIDSTONE),id:13543516 ,1572.34
Department of Health,Guys and St Thomas NHS Foundation Trust,18/12/2020,(81200) Medical Surgical Supplies & Equipment,(id:41907) TAP,JOHNSON & JOHNSON MEDICAL LTD,id:13523913, 521.03
Department of Health,Guys and St Thomas NHS Foundation Trust,18/12/2020,(81200) Medical Surgical Supplies & Equipment,(id:41907) TAP,MEDTRONIC LTD,id:13571541 ,1122.00
Department of Health,Guys and St Thomas NHS Foundation Trust,11/12/2020,(81100) Dressings,(id:41907) TAP,NHS SUPPLY CHAIN (MAIDSTONE),id:13531623    ,  21.56
Department of Health,Guys and St Thomas NHS Foundation Trust,11/12/2020,(81230) Medical Surgical Supplies & Equipment,(id:41907) TAP,NHS SUPPLY CHAIN (MAIDSTONE),id:13543516 , 926.86
Department of Health,Guys and St Thomas NHS Foundation Trust,18/12/2020,(83400) Office Equipment,(id:41907) TAP,NHS SUPPLY CHAIN (MAIDSTONE),id:13535395  ,  62.45
Department of Health,Guys and St Thomas NHS Foundation Trust,11/12/2020,(83400) Office Equipment,(id:41906) TAP,NHS SUPPLY CHAIN (MAIDSTONE),id:13543074  , 185.35
Department of Health,Guys and St Thomas NHS Foundation Trust,18/12/2020,(82800) Bedding & Linen,(id:41906) TAP,NHS SUPPLY CHAIN (MAIDSTONE),id:13535395   ,  44.79
Department of Health,Guys and St Thomas NHS Foundation Trust,11/12/2020,(82800) Bedding & Linen,(id:41906) TAP,NHS SUPPLY CHAIN (MAIDSTONE),id:13531623   ,  61.65
Department of Health,Guys and St Thomas NHS Foundation Trust,11/12/2020,(81200) Medical Surgical Supplies & Equipment,(id:41906) TAP,NHS SUPPLY CHAIN (MAIDSTONE),id:13543750 ,3013.30
Department of Health,Guys and St Thomas NHS Foundation Trust,18/12/2020,(81200) Medical Surgical Supplies & Equipment,(id:41906) TAP,LIVANOVA UK LTD,id:13557360    , 551.09
Department of Health,Guys and St Thomas NHS Foundation Trust,11/12/2020,(81100) Dressings,(id:41906) TAP,NHS SUPPLY CHAIN (MAIDSTONE),id:13543750    ,  84.09
Department of Health,Guys and St Thomas NHS Foundation Trust,11/12/2020,(81255) Medical Surgical Supplies & Equipment,(id:41906) TAP,NHS SUPPLY CHAIN (MAIDSTONE),id:13543074 ,   1.56
Department of Health,Guys and St Thomas NHS Foundation Trust,18/12/2020,(82800) Bedding & Linen,(id:41905) TAP,NHS SUPPLY CHAIN (MAIDSTONE),id:13535395   ,   7.44
Department of Health,Guys and St Thomas NHS Foundation Trust,11/12/2020,(82800) Bedding & Linen,(id:41905) TAP,NHS SUPPLY CHAIN (MAIDSTONE),id:13542894   ,  18.60
Department of Health,Guys and St Thomas NHS Foundation Trust,11/12/2020,(82800) Bedding & Linen,(id:41905) TAP,NHS SUPPLY CHAIN (MAIDSTONE),id:13531623   , 756.00
Department of Health,Guys and St Thomas NHS Foundation Trust,11/12/2020,(83410) Office Equipment,(id:41905) TAP,RICOH UK LTD,id:13516172   , 113.99
Department of Health,Guys and St Thomas NHS Foundation Trust,22/12/2020,(81700) Lab Equipment Purchase,(id:41905) TAP,HAEMONETICS (UK) LTD,id:13575721    , 779.04
Department of Health,Guys and St Thomas NHS Foundation Trust,18/12/2020,(83400) Office Equipment,(id:41905) TAP,NHS SUPPLY CHAIN (MAIDSTONE),id:13535395  , 270.42
Department of Health,Guys and St Thomas NHS Foundation Trust,11/12/2020,(83400) Office Equipment,(id:41905) TAP,NHS SUPPLY CHAIN (MAIDSTONE),id:13542894  ,1292.85
Department of Health,Guys and St Thomas NHS Foundation Trust,18/12/2020,(81200) Medical Surgical Supplies & Equipment,(id:2549419) TAP,NHS SUPPLY CHAIN (MAIDSTONE),id:13535395    , 218.40
Department of Health,Guys and St Thomas NHS Foundation Trust,11/12/2020,(81255) Medical Surgical Supplies & Equipment,(id:41913) TAP,NHS SUPPLY CHAIN (MAIDSTONE),id:13543074 ,  25.34
Department of Health,Guys and St Thomas NHS Foundation Trust,11/12/2020,(82700) Uniforms & Clothing,(id:41913) TAP,NHS SUPPLY CHAIN (MAIDSTONE),id:13543074    ,  10.56
Department of Health,Guys and St Thomas NHS Foundation Trust,11/12/2020,(81100) Dressings,(id:41913) TAP,NHS SUPPLY CHAIN (MAIDSTONE),id:13543516    ,  27.72
Department of Health,Guys and St Thomas NHS Foundation Trust,11/12/2020,(81200) Medical Surgical Supplies & Equipment,(id:41913) TAP,NHS SUPPLY CHAIN (MAIDSTONE),id:13543074 ,1017.87
Department of Health,Guys and St Thomas NHS Foundation Trust,18/12/2020,(81230) Medical Surgical Supplies & Equipment,(id:41913) TAP,NHS SUPPLY CHAIN (MAIDSTONE),id:13535395 , 228.00
Department of Health,Guys and St Thomas NHS Foundation Trust,18/12/2020,(82800) Bedding & Linen,(id:41913) TAP,NHS SUPPLY CHAIN (MAIDSTONE),id:13535395   , 136.59
Department of Health,Guys and St Thomas NHS Foundation Trust,11/12/2020,(82800) Bedding & Linen,(id:41918) TAP,NHS SUPPLY CHAIN (MAIDSTONE),id:13542894   , 303.36
Department of Health,Guys and St Thomas NHS Foundation Trust,11/12/2020,(82800) Bedding & Linen,(id:41918) TAP,NHS SUPPLY CHAIN (MAIDSTONE),id:13543074   , 468.00
Department of Health,Guys and St Thomas NHS Foundation Trust,18/12/2020,(81400) Medical Surgical Supplies & Equipment,(id:41918) TAP,ERBE MEDICAL UK LTD,id:13573915,1500.00
Department of Health,Guys and St Thomas NHS Foundation Trust,04/12/2020,(81200) Medical Surgical Supplies & Equipment,(id:41918) TAP,STRYKER UK LTD,id:13513054,1008.00
Department of Health,Guys and St Thomas NHS Foundation Trust,04/12/2020,(81100) Dressings,(id:41918) TAP,JOHNSON & JOHNSON MEDICAL LTD,id:13484759   , 729.43
Department of Health,Guys and St Thomas NHS Foundation Trust,11/12/2020,(81255) Medical Surgical Supplies & Equipment,(id:41918) TAP,NHS SUPPLY CHAIN (MAIDSTONE),id:13543516 ,   7.80
Department of Health,Guys and St Thomas NHS Foundation Trust,18/12/2020,(82700) Uniforms & Clothing,(id:41916) TAP,NHS SUPPLY CHAIN (MAIDSTONE),id:13535395    , 124.18
Department of Health,Guys and St Thomas NHS Foundation Trust,18/12/2020,(82600) Uniforms & Clothing,(id:41916) TAP,NHS SUPPLY CHAIN (MAIDSTONE),id:13535395    ,  12.11
Department of Health,Guys and St Thomas NHS Foundation Trust,11/12/2020,(81100) Dressings,(id:41916) TAP,NHS SUPPLY CHAIN (MAIDSTONE),id:13543750    , 247.41
Department of Health,Guys and St Thomas NHS Foundation Trust,11/12/2020,(81200) Medical Surgical Supplies & Equipment,(id:41916) TAP,NHS SUPPLY CHAIN (MAIDSTONE),id:13543516 ,1764.16
Department of Health,Guys and St Thomas NHS Foundation Trust,11/12/2020,(81700) Lab Equipment Purchase,(id:41916) TAP,NHS SUPPLY CHAIN (MAIDSTONE),id:13543074 ,   9.30
Department of Health,Guys and St Thomas NHS Foundation Trust,11/12/2020,(81200) Medical Surgical Supplies & Equipment,(id:41924) TAP,NHS SUPPLY CHAIN (MAIDSTONE),id:13543074 ,  31.92
Department of Health,Guys and St Thomas NHS Foundation Trust,11/12/2020,(82800) Bedding & Linen,(id:41924) TAP,NHS SUPPLY CHAIN (MAIDSTONE),id:13542894   ,  14.40
Department of Health,Guys and St Thomas NHS Foundation Trust,11/12/2020,(81700) Lab Equipment Purchase,(id:41922) TAP,NHS SUPPLY CHAIN (MAIDSTONE),id:13531623 ,1115.90
Department of Health,Guys and St Thomas NHS Foundation Trust,11/12/2020,(83400) Office Equipment,(id:41922) TAP,NHS SUPPLY CHAIN (MAIDSTONE),id:13543516  ,  40.34
Department of Health,Guys and St Thomas NHS Foundation Trust,11/12/2020,(82800) Bedding & Linen,(id:41921) TAP,NHS SUPPLY CHAIN (MAIDSTONE),id:13531623   ,   5.33
Department of Health,Guys and St Thomas NHS Foundation Trust,11/12/2020,(81100) Dressings,(id:41921) TAP,NHS SUPPLY CHAIN (MAIDSTONE),id:13531623    ,   6.24
Department of Health,Guys and St Thomas NHS Foundation Trust,11/12/2020,(81275) Medical Surgical Supplies & Equipment,(id:41921) TAP,NHS SUPPLY CHAIN (MAIDSTONE),id:13531623 ,   5.40
Department of Health,Guys and St Thomas NHS Foundation Trust,04/12/2020,(89440) Research and Development,(id:627418) Gastrointestinal Medicine & Surgery,MINDRAY UK LTD,id:13504874, 765.12
Department of Health,Guys and St Thomas NHS Foundation Trust,11/12/2020,(81000) Surgical Appliances,(id:41830) Gastrointestinal Medicine & Surgery,TALAR MADE ORTHOTICS LTD,id:13547874 ,  29.40
Department of Health,Guys and St Thomas NHS Foundation Trust,18/12/2020,(81700) Lab Equipment Purchase,(id:3237419) Gastrointestinal Medicine & Surgery,NHS SUPPLY CHAIN (MAIDSTONE),id:13535395  ,  48.12
Department of Health,Guys and St Thomas NHS Foundation Trust,11/12/2020,(82700) Uniforms & Clothing,(id:41958) Gastrointestinal Medicine & Surgery,NHS SUPPLY CHAIN (MAIDSTONE),id:13531623  ,  31.68
Department of Health,Guys and St Thomas NHS Foundation Trust,11/12/2020,(82800) Bedding & Linen,(id:41958) Gastrointestinal Medicine & Surgery,NHS SUPPLY CHAIN (MAIDSTONE),id:13543750 , 120.60
Department of Health,Guys and St Thomas NHS Foundation Trust,11/12/2020,(81200) Medical Surgical Supplies & Equipment,(id:41958) Gastrointestinal Medicine & Surgery,NHS SUPPLY CHAIN (MAIDSTONE),id:13543516    , 756.93
Department of Health,Guys and St Thomas NHS Foundation Trust,11/12/2020,(81100) Dressings,(id:41958) Gastrointestinal Medicine & Surgery,NHS SUPPLY CHAIN (MAIDSTONE),id:13543516  , 235.87
Department of Health,Guys and St Thomas NHS Foundation Trust,18/12/2020,(81700) Lab Equipment Purchase,(id:41958) Gastrointestinal Medicine & Surgery,NHS SUPPLY CHAIN (MAIDSTONE),id:13535395    ,  11.86
Department of Health,Guys and St Thomas NHS Foundation Trust,11/12/2020,(82700) Uniforms & Clothing,(id:41954) Gastrointestinal Medicine & Surgery,NHS SUPPLY CHAIN (MAIDSTONE),id:13543074  , 141.36
Department of Health,Guys and St Thomas NHS Foundation Trust,11/12/2020,(83400) Office Equipment,(id:41954) Gastrointestinal Medicine & Surgery,NHS SUPPLY CHAIN (MAIDSTONE),id:13542894,  52.52
Department of Health,Guys and St Thomas NHS Foundation Trust,11/12/2020,(83400) Office Equipment,(id:41954) Gastrointestinal Medicine & Surgery,NHS SUPPLY CHAIN (MAIDSTONE),id:13531623, 163.15
Department of Health,Guys and St Thomas NHS Foundation Trust,11/12/2020,(82800) Bedding & Linen,(id:41954) Gastrointestinal Medicine & Surgery,NHS SUPPLY CHAIN (MAIDSTONE),id:13543074 , 209.75
Department of Health,Guys and St Thomas NHS Foundation Trust,04/12/2020,(81200) Medical Surgical Supplies & Equipment,(id:41954) Gastrointestinal Medicine & Surgery,SCC PLC)SPECIALIST COMPUTER CENTRES,id:13535850  ,  60.00
Department of Health,Guys and St Thomas NHS Foundation Trust,18/12/2020,(81100) Dressings,(id:41954) Gastrointestinal Medicine & Surgery,NHS SUPPLY CHAIN (MAIDSTONE),id:13535395  , 555.02
Department of Health,Guys and St Thomas NHS Foundation Trust,11/12/2020,(81700) Lab Equipment Purchase,(id:41954) Gastrointestinal Medicine & Surgery,NHS SUPPLY CHAIN (MAIDSTONE),id:13542894    ,   3.14
Department of Health,Guys and St Thomas NHS Foundation Trust,11/12/2020,(81225) Medical Surgical Supplies & Equipment,(id:41954) Gastrointestinal Medicine & Surgery,NHS SUPPLY CHAIN (MAIDSTONE),id:13542894    ,   9.70
Department of Health,Guys and St Thomas NHS Foundation Trust,04/12/2020,(84656) Establishment,(id:41951) Gastrointestinal Medicine & Surgery,DICT8 LIMITED,id:13454314   , 956.76
Department of Health,Guys and St Thomas NHS Foundation Trust,11/12/2020,(83400) Office Equipment,(id:41949) Gastrointestinal Medicine & Surgery,NHS SUPPLY CHAIN (MAIDSTONE),id:13543516, 193.94
Department of Health,Guys and St Thomas NHS Foundation Trust,11/12/2020,(81200) Medical Surgical Supplies & Equipment,(id:41949) Gastrointestinal Medicine & Surgery,JOHNSON & JOHNSON MEDICAL LTD,id:13506882   ,2384.64
Department of Health,Guys and St Thomas NHS Foundation Trust,11/12/2020,(81200) Medical Surgical Supplies & Equipment,(id:41949) Gastrointestinal Medicine & Surgery,COOK UK LTD,id:13427596 ,2568.00
Department of Health,Guys and St Thomas NHS Foundation Trust,22/12/2020,(81200) Medical Surgical Supplies & Equipment,(id:41949) Gastrointestinal Medicine & Surgery,LOCAMED LTD,id:13578180 , 549.00
Department of Health,Guys and St Thomas NHS Foundation Trust,04/12/2020,(81200) Medical Surgical Supplies & Equipment,(id:41949) Gastrointestinal Medicine & Surgery,JOHNSON & JOHNSON MEDICAL LTD,id:13484098   ,2616.59
Department of Health,Guys and St Thomas NHS Foundation Trust,18/12/2020,(81200) Medical Surgical Supplies & Equipment,(id:41949) Gastrointestinal Medicine & Surgery,JOHNSON & JOHNSON MEDICAL LTD,id:13523904   , 292.97
Department of Health,Guys and St Thomas NHS Foundation Trust,04/12/2020,(81235) Medical Surgical Supplies & Equipment,(id:41949) Gastrointestinal Medicine & Surgery,BOSTON SCIENTIFIC LTD,id:13472716 ,1126.88
Department of Health,Guys and St Thomas NHS Foundation Trust,11/12/2020,(81280) Medical Surgical Supplies & Equipment,(id:41949) Gastrointestinal Medicine & Surgery,NHS SUPPLY CHAIN (MAIDSTONE),id:13543074    ,1620.00
Department of Health,Guys and St Thomas NHS Foundation Trust,11/12/2020,(81000) Surgical Appliances,(id:41944) Gastrointestinal Medicine & Surgery,MEDI UK LTD,id:13548530    ,  52.67
Department of Health,Guys and St Thomas NHS Foundation Trust,18/12/2020,(81700) Lab Equipment Purchase,(id:2367419) Gastrointestinal Medicine & Surgery,NHS SUPPLY CHAIN (MAIDSTONE),id:13535395  ,  32.01
Department of Health,Guys and St Thomas NHS Foundation Trust,11/12/2020,(82000) Provisions & Kitchens,(id:2367419) Gastrointestinal Medicine & Surgery,NHS SUPPLY CHAIN (MAIDSTONE),id:13542894   , 162.10
Department of Health,Guys and St Thomas NHS Foundation Trust,18/12/2020,(81275) Medical Surgical Supplies & Equipment,(id:2367419) Gastrointestinal Medicine & Surgery,NHS SUPPLY CHAIN (MAIDSTONE),id:13535395  ,  25.49
Department of Health,Guys and St Thomas NHS Foundation Trust,18/12/2020,(83400) Office Equipment,(id:2367419) Gastrointestinal Medicine & Surgery,NHS SUPPLY CHAIN (MAIDSTONE),id:13535395   ,  34.63
Department of Health,Guys and St Thomas NHS Foundation Trust,11/12/2020,(81200) Medical Surgical Supplies & Equipment,(id:41957) Gastrointestinal Medicine & Surgery,NHS SUPPLY CHAIN (MAIDSTONE),id:13543750    ,  56.11
Department of Health,Guys and St Thomas NHS Foundation Trust,18/12/2020,(82800) Bedding & Linen,(id:41942) Gastrointestinal Medicine & Surgery,NHS SUPPLY CHAIN (MAIDSTONE),id:13535395 ,  32.21
Department of Health,Guys and St Thomas NHS Foundation Trust,11/12/2020,(83410) Office Equipment,(id:41942) Gastrointestinal Medicine & Surgery,RICOH UK LTD,id:13516172 , 155.98
Department of Health,Guys and St Thomas NHS Foundation Trust,11/12/2020,(83400) Office Equipment,(id:41942) Gastrointestinal Medicine & Surgery,NHS SUPPLY CHAIN (MAIDSTONE),id:13543750, 174.89
Department of Health,Guys and St Thomas NHS Foundation Trust,11/12/2020,(81700) Lab Equipment Purchase,(id:41942) Gastrointestinal Medicine & Surgery,NHS SUPPLY CHAIN (MAIDSTONE),id:13543074    ,  85.22
Department of Health,Guys and St Thomas NHS Foundation Trust,18/12/2020,(82000) Provisions & Kitchens,(id:41942) Gastrointestinal Medicine & Surgery,NHS SUPPLY CHAIN (MAIDSTONE),id:13535395,   3.33
Department of Health,Guys and St Thomas NHS Foundation Trust,18/12/2020,(83400) Office Equipment,(id:41917) Gastrointestinal Medicine & Surgery,NHS SUPPLY CHAIN (MAIDSTONE),id:13535395,  28.96
Department of Health,Guys and St Thomas NHS Foundation Trust,11/12/2020,(83400) Office Equipment,(id:41917) Gastrointestinal Medicine & Surgery,NHS SUPPLY CHAIN (MAIDSTONE),id:13531623,  77.45
Department of Health,Guys and St Thomas NHS Foundation Trust,11/12/2020,(81200) Medical Surgical Supplies & Equipment,(id:41917) Gastrointestinal Medicine & Surgery,NHS SUPPLY CHAIN (MAIDSTONE),id:13543074    ,5144.03
Department of Health,Guys and St Thomas NHS Foundation Trust,18/12/2020,(81200) Medical Surgical Supplies & Equipment,(id:41917) Gastrointestinal Medicine & Surgery,BOSTON SCIENTIFIC LTD,id:13432126 ,1620.02
Department of Health,Guys and St Thomas NHS Foundation Trust,18/12/2020,(81900) Lab Equipment Purchase,(id:111406) Pathology,VIAPATH ANALYTICS LLP,id:13523116 ,    18196.00
Department of Health,Guys and St Thomas NHS Foundation Trust,18/12/2020,(81900) Lab Equipment Purchase,(id:111406) Pathology,VIAPATH SERVICES LLP,id:13523103  ,   -23351.81
Department of Health,Guys and St Thomas NHS Foundation Trust,11/12/2020,(81200) Medical Surgical Supplies & Equipment,(id:42134) Pathology,NHS SUPPLY CHAIN (MAIDSTONE),id:13543750, 455.78
Department of Health,Guys and St Thomas NHS Foundation Trust,18/12/2020,(89600) Non-Healthcare from other NHS bodies,(id:42134) Pathology,NHS BLOOD AND TRANSPLANT,id:13412158, 595.65
Department of Health,Guys and St Thomas NHS Foundation Trust,22/12/2020,(55100) Admin & Clerical,(id:3367419) Cancer Strategy,NHS NORTH AND EAST LONDON CSU,id:13027936  ,5904.07
Department of Health,Guys and St Thomas NHS Foundation Trust,18/12/2020,(82000) Provisions & Kitchens,(id:42419) Transplant Renal and Urology,NHS SUPPLY CHAIN (MAIDSTONE),id:13535395  , 262.87
Department of Health,Guys and St Thomas NHS Foundation Trust,11/12/2020,(81100) Dressings,(id:42419) Transplant Renal and Urology,NHS SUPPLY CHAIN (MAIDSTONE),id:13543074    , 680.95
Department of Health,Guys and St Thomas NHS Foundation Trust,11/12/2020,(81100) Dressings,(id:42419) Transplant Renal and Urology,NHS SUPPLY CHAIN (MAIDSTONE),id:13543516    , 181.73
Department of Health,Guys and St Thomas NHS Foundation Trust,18/12/2020,(83400) Office Equipment,(id:42419) Transplant Renal and Urology,NHS SUPPLY CHAIN (MAIDSTONE),id:13535395  ,  78.56
Department of Health,Guys and St Thomas NHS Foundation Trust,11/12/2020,(83400) Office Equipment,(id:42419) Transplant Renal and Urology,NHS SUPPLY CHAIN (MAIDSTONE),id:13543750  , 216.38
Department of Health,Guys and St Thomas NHS Foundation Trust,11/12/2020,(81700) Lab Equipment Purchase,(id:42419) Transplant Renal and Urology,NHS SUPPLY CHAIN (MAIDSTONE),id:13542894 ,  55.44
Department of Health,Guys and St Thomas NHS Foundation Trust,11/12/2020,(81700) Lab Equipment Purchase,(id:42419) Transplant Renal and Urology,NHS SUPPLY CHAIN (MAIDSTONE),id:13543074 ,  91.04
Department of Health,Guys and St Thomas NHS Foundation Trust,11/12/2020,(81200) Medical Surgical Supplies & Equipment,(id:2882419) Transplant Renal and Urology,NHS SUPPLY CHAIN (MAIDSTONE),id:13543074    , 655.68
Department of Health,Guys and St Thomas NHS Foundation Trust,11/12/2020,(82000) Provisions & Kitchens,(id:969419) Transplant Renal and Urology,NHS SUPPLY CHAIN (MAIDSTONE),id:13543750 ,  13.15
Department of Health,Guys and St Thomas NHS Foundation Trust,18/12/2020,(82000) Provisions & Kitchens,(id:969419) Transplant Renal and Urology,NHS SUPPLY CHAIN (MAIDSTONE),id:13535395 ,  50.59
Department of Health,Guys and St Thomas NHS Foundation Trust,11/12/2020,(81100) Dressings,(id:969419) Transplant Renal and Urology,NHS SUPPLY CHAIN (MAIDSTONE),id:13543074   , 651.84
Department of Health,Guys and St Thomas NHS Foundation Trust,18/12/2020,(81100) Dressings,(id:969419) Transplant Renal and Urology,NHS SUPPLY CHAIN (MAIDSTONE),id:13535395   ,  34.71
Department of Health,Guys and St Thomas NHS Foundation Trust,04/12/2020,(81200) Medical Surgical Supplies & Equipment,(id:42450) Transplant Renal and Urology,JOHNSON & JOHNSON MEDICAL LTD,id:13484745, 960.12
Department of Health,Guys and St Thomas NHS Foundation Trust,22/12/2020,(81200) Medical Surgical Supplies & Equipment,(id:42449) Transplant Renal and Urology,DIGITIMER LTD,id:13573998 , 520.20
Department of Health,Guys and St Thomas NHS Foundation Trust,11/12/2020,(81225) Medical Surgical Supplies & Equipment,(id:42449) Transplant Renal and Urology,NHS SUPPLY CHAIN (MAIDSTONE),id:13531623 , 266.04
Department of Health,Guys and St Thomas NHS Foundation Trust,11/12/2020,(83400) Office Equipment,(id:42447) Transplant Renal and Urology,NHS SUPPLY CHAIN (MAIDSTONE),id:13531623  , 162.84
Department of Health,Guys and St Thomas NHS Foundation Trust,11/12/2020,(82800) Bedding & Linen,(id:42447) Transplant Renal and Urology,NHS SUPPLY CHAIN (MAIDSTONE),id:13543074   , 142.29
Department of Health,Guys and St Thomas NHS Foundation Trust,11/12/2020,(81100) Dressings,(id:42447) Transplant Renal and Urology,NHS SUPPLY CHAIN (MAIDSTONE),id:13543516    ,  80.66
Department of Health,Guys and St Thomas NHS Foundation Trust,11/12/2020,(81100) Dressings,(id:42447) Transplant Renal and Urology,NHS SUPPLY CHAIN (MAIDSTONE),id:13542894    ,  49.93
Department of Health,Guys and St Thomas NHS Foundation Trust,11/12/2020,(82600) Uniforms & Clothing,(id:42446) Transplant Renal and Urology,NHS SUPPLY CHAIN (MAIDSTONE),id:13543516    ,  72.65
Department of Health,Guys and St Thomas NHS Foundation Trust,04/12/2020,(81200) Medical Surgical Supplies & Equipment,(id:42446) Transplant Renal and Urology,BOSTON SCIENTIFIC LTD,id:13523940   ,4352.94
Department of Health,Guys and St Thomas NHS Foundation Trust,11/12/2020,(81200) Medical Surgical Supplies & Equipment,(id:42446) Transplant Renal and Urology,NHS SUPPLY CHAIN (MAIDSTONE),id:13542894 ,4947.21
Department of Health,Guys and St Thomas NHS Foundation Trust,11/12/2020,(81200) Medical Surgical Supplies & Equipment,(id:42446) Transplant Renal and Urology,SIGMACON (UK) LTD,id:13543752  ,1339.20
Department of Health,Guys and St Thomas NHS Foundation Trust,11/12/2020,(81200) Medical Surgical Supplies & Equipment,(id:42446) Transplant Renal and Urology,STRYKER UK LTD,id:13527194, 504.00
Department of Health,Guys and St Thomas NHS Foundation Trust,18/12/2020,(81200) Medical Surgical Supplies & Equipment,(id:42446) Transplant Renal and Urology,POLAR SPEED DISTRIBUTION LTD,id:13575262 ,3200.00
Department of Health,Guys and St Thomas NHS Foundation Trust,11/12/2020,(81200) Medical Surgical Supplies & Equipment,(id:42446) Transplant Renal and Urology,KARL STORZ ENDOSCOPY UK LTD,id:13529994  ,1512.00
Department of Health,Guys and St Thomas NHS Foundation Trust,11/12/2020,(81500) X Ray Equipment Purchase,(id:42446) Transplant Renal and Urology,NHS SUPPLY CHAIN (MAIDSTONE),id:13543074    ,2328.48
Department of Health,Guys and St Thomas NHS Foundation Trust,11/12/2020,(81200) Medical Surgical Supplies & Equipment,(id:42444) Transplant Renal and Urology,STRYKER UK LTD,id:13500354, 504.00
Department of Health,Guys and St Thomas NHS Foundation Trust,30/12/2020,(52062) Radiographers,(id:42444) Transplant Renal and Urology,PRICEWATERHOUSECOOPERS LLP,id:13589594  ,1380.66
Department of Health,Guys and St Thomas NHS Foundation Trust,11/12/2020,(82700) Uniforms & Clothing,(id:42443) Transplant Renal and Urology,NHS SUPPLY CHAIN (MAIDSTONE),id:13543516    ,  10.56
Department of Health,Guys and St Thomas NHS Foundation Trust,11/12/2020,(82700) Uniforms & Clothing,(id:42443) Transplant Renal and Urology,NHS SUPPLY CHAIN (MAIDSTONE),id:13542894    ,  63.36
Department of Health,Guys and St Thomas NHS Foundation Trust,11/12/2020,(82800) Bedding & Linen,(id:42443) Transplant Renal and Urology,NHS SUPPLY CHAIN (MAIDSTONE),id:13543516   , 113.47
Department of Health,Guys and St Thomas NHS Foundation Trust,11/12/2020,(81100) Dressings,(id:42443) Transplant Renal and Urology,NHS SUPPLY CHAIN (MAIDSTONE),id:13543074    , 558.38
Department of Health,Guys and St Thomas NHS Foundation Trust,18/12/2020,(83400) Office Equipment,(id:42443) Transplant Renal and Urology,NHS SUPPLY CHAIN (MAIDSTONE),id:13535395  , 104.73
Department of Health,Guys and St Thomas NHS Foundation Trust,11/12/2020,(83400) Office Equipment,(id:42443) Transplant Renal and Urology,NHS SUPPLY CHAIN (MAIDSTONE),id:13542894  , 147.22
Department of Health,Guys and St Thomas NHS Foundation Trust,11/12/2020,(83400) Office Equipment,(id:42443) Transplant Renal and Urology,NHS SUPPLY CHAIN (MAIDSTONE),id:13543074  , 147.34
Department of Health,Guys and St Thomas NHS Foundation Trust,18/12/2020,(81230) Medical Surgical Supplies & Equipment,(id:42443) Transplant Renal and Urology,NHS SUPPLY CHAIN (MAIDSTONE),id:13535395 , 175.14
Department of Health,Guys and St Thomas NHS Foundation Trust,18/12/2020,(82700) Uniforms & Clothing,(id:42442) Transplant Renal and Urology,NHS SUPPLY CHAIN (MAIDSTONE),id:13535395    , 190.58
Department of Health,Guys and St Thomas NHS Foundation Trust,11/12/2020,(82700) Uniforms & Clothing,(id:42442) Transplant Renal and Urology,NHS SUPPLY CHAIN (MAIDSTONE),id:13543074    ,  63.36
Department of Health,Guys and St Thomas NHS Foundation Trust,11/12/2020,(82700) Uniforms & Clothing,(id:42442) Transplant Renal and Urology,NHS SUPPLY CHAIN (MAIDSTONE),id:13542894    ,  63.36
Department of Health,Guys and St Thomas NHS Foundation Trust,18/12/2020,(82800) Bedding & Linen,(id:42442) Transplant Renal and Urology,NHS SUPPLY CHAIN (MAIDSTONE),id:13535395   ,  98.32
Department of Health,Guys and St Thomas NHS Foundation Trust,11/12/2020,(82800) Bedding & Linen,(id:42442) Transplant Renal and Urology,NHS SUPPLY CHAIN (MAIDSTONE),id:13543074   , 190.86
Department of Health,Guys and St Thomas NHS Foundation Trust,18/12/2020,(81200) Medical Surgical Supplies & Equipment,(id:42442) Transplant Renal and Urology,NHS SUPPLY CHAIN (MAIDSTONE),id:13535395 , 752.90
Department of Health,Guys and St Thomas NHS Foundation Trust,11/12/2020,(83400) Office Equipment,(id:42442) Transplant Renal and Urology,NHS SUPPLY CHAIN (MAIDSTONE),id:13543074  ,  81.86
Department of Health,Guys and St Thomas NHS Foundation Trust,11/12/2020,(83400) Office Equipment,(id:42442) Transplant Renal and Urology,NHS SUPPLY CHAIN (MAIDSTONE),id:13531623  , 290.95
Department of Health,Guys and St Thomas NHS Foundation Trust,11/12/2020,(83400) Office Equipment,(id:42442) Transplant Renal and Urology,NHS SUPPLY CHAIN (MAIDSTONE),id:13543516  , 257.62
Department of Health,Guys and St Thomas NHS Foundation Trust,11/12/2020,(81225) Medical Surgical Supplies & Equipment,(id:42442) Transplant Renal and Urology,NHS SUPPLY CHAIN (MAIDSTONE),id:13543074 ,  50.04
Department of Health,Guys and St Thomas NHS Foundation Trust,18/12/2020,(81700) Lab Equipment Purchase,(id:42442) Transplant Renal and Urology,NHS SUPPLY CHAIN (MAIDSTONE),id:13535395 ,  32.85
Department of Health,Guys and St Thomas NHS Foundation Trust,18/12/2020,(81200) Medical Surgical Supplies & Equipment,(id:42439) Transplant Renal and Urology,INTUITIVE SURGICAL LTD,id:13557836  ,   134868.00
Department of Health,Guys and St Thomas NHS Foundation Trust,04/12/2020,(81200) Medical Surgical Supplies & Equipment,(id:42439) Transplant Renal and Urology,INTUITIVE SURGICAL LTD,id:13528881  ,7059.60
Department of Health,Guys and St Thomas NHS Foundation Trust,11/12/2020,(81200) Medical Surgical Supplies & Equipment,(id:3671419) Transplant Renal and Urology,NHS SUPPLY CHAIN (MAIDSTONE),id:13543516    , 185.43
Department of Health,Guys and St Thomas NHS Foundation Trust,11/12/2020,(82800) Bedding & Linen,(id:42435) Transplant Renal and Urology,NHS SUPPLY CHAIN (MAIDSTONE),id:13531623   , 153.20
Department of Health,Guys and St Thomas NHS Foundation Trust,11/12/2020,(81200) Medical Surgical Supplies & Equipment,(id:42435) Transplant Renal and Urology,NHS SUPPLY CHAIN (MAIDSTONE),id:13543516 , 800.80
Department of Health,Guys and St Thomas NHS Foundation Trust,11/12/2020,(81200) Medical Surgical Supplies & Equipment,(id:42435) Transplant Renal and Urology,NHS SUPPLY CHAIN (MAIDSTONE),id:13542894 ,1782.92
Department of Health,Guys and St Thomas NHS Foundation Trust,18/12/2020,(83400) Office Equipment,(id:42435) Transplant Renal and Urology,NHS SUPPLY CHAIN (MAIDSTONE),id:13535395  ,  75.39
Department of Health,Guys and St Thomas NHS Foundation Trust,11/12/2020,(83400) Office Equipment,(id:42435) Transplant Renal and Urology,NHS SUPPLY CHAIN (MAIDSTONE),id:13542894  , 191.68
Department of Health,Guys and St Thomas NHS Foundation Trust,11/12/2020,(81700) Lab Equipment Purchase,(id:42435) Transplant Renal and Urology,NHS SUPPLY CHAIN (MAIDSTONE),id:13542894 , 141.99
Department of Health,Guys and St Thomas NHS Foundation Trust,22/12/2020,(81200) Medical Surgical Supplies & Equipment,(id:42433) Transplant Renal and Urology,TELEFLEX MEDICAL,id:13539939   ,1282.50
Department of Health,Guys and St Thomas NHS Foundation Trust,11/12/2020,(81100) Dressings,(id:42428) Transplant Renal and Urology,NHS SUPPLY CHAIN (MAIDSTONE),id:13531623    ,  45.27
Department of Health,Guys and St Thomas NHS Foundation Trust,18/12/2020,(81100) Dressings,(id:42428) Transplant Renal and Urology,NHS SUPPLY CHAIN (MAIDSTONE),id:13535395    ,  42.09
Department of Health,Guys and St Thomas NHS Foundation Trust,04/12/2020,(84400) Transport,(id:42428) Transplant Renal and Urology,CITYSPRINT (UK) LTD,id:13523756   ,    11796.64
Department of Health,Guys and St Thomas NHS Foundation Trust,11/12/2020,(83400) Office Equipment,(id:42428) Transplant Renal and Urology,NHS SUPPLY CHAIN (MAIDSTONE),id:13531623  ,  48.69
Department of Health,Guys and St Thomas NHS Foundation Trust,11/12/2020,(81200) Medical Surgical Supplies & Equipment,(id:42420) Transplant Renal and Urology,NHS SUPPLY CHAIN (MAIDSTONE),id:13543750 ,2099.74
Department of Health,Guys and St Thomas NHS Foundation Trust,11/12/2020,(81200) Medical Surgical Supplies & Equipment,(id:42420) Transplant Renal and Urology,NHS SUPPLY CHAIN (MAIDSTONE),id:13543074 ,1351.58
Department of Health,Guys and St Thomas NHS Foundation Trust,11/12/2020,(81200) Medical Surgical Supplies & Equipment,(id:42420) Transplant Renal and Urology,BAXTER HEALTHCARE LTD,id:13481515   , 900.00
Department of Health,Guys and St Thomas NHS Foundation Trust,11/12/2020,(83400) Office Equipment,(id:42420) Transplant Renal and Urology,NHS SUPPLY CHAIN (MAIDSTONE),id:13543750  ,   8.78
Department of Health,Guys and St Thomas NHS Foundation Trust,11/12/2020,(82000) Provisions & Kitchens,(id:42420) Transplant Renal and Urology,NHS SUPPLY CHAIN (MAIDSTONE),id:13542894  ,  46.08
Department of Health,Guys and St Thomas NHS Foundation Trust,11/12/2020,(82000) Provisions & Kitchens,(id:42420) Transplant Renal and Urology,NHS SUPPLY CHAIN (MAIDSTONE),id:13543750  , 101.02
Department of Health,Guys and St Thomas NHS Foundation Trust,18/12/2020,(81700) Lab Equipment Purchase,(id:42420) Transplant Renal and Urology,NHS SUPPLY CHAIN (MAIDSTONE),id:13535395 , 127.30
Department of Health,Guys and St Thomas NHS Foundation Trust,11/12/2020,(81200) Medical Surgical Supplies & Equipment,(id:42438) Transplant Renal and Urology,NHS SUPPLY CHAIN (MAIDSTONE),id:13543516 ,  27.00
Department of Health,Guys and St Thomas NHS Foundation Trust,11/12/2020,(50562) Qualified Nursing Staff,(id:42438) Transplant Renal and Urology,GLOBE LOCUMS LTD,id:13552869  ,1675.48
Department of Health,Guys and St Thomas NHS Foundation Trust,18/12/2020,(81200) Medical Surgical Supplies & Equipment,(id:42437) Transplant Renal and Urology,DIAVERUM UK LTD,id:13522934    ,    63399.02
Department of Health,Guys and St Thomas NHS Foundation Trust,18/12/2020,(81700) Lab Equipment Purchase,(id:42432) Transplant Renal and Urology,NHS SUPPLY CHAIN (MAIDSTONE),id:13535395 ,  49.81
Department of Health,Guys and St Thomas NHS Foundation Trust,11/12/2020,(86300) Healthcare from non-NHS bodies,(id:42424) Transplant Renal and Urology,DIAVERUM UK LTD,id:13405754 ,    27565.20
Department of Health,Guys and St Thomas NHS Foundation Trust,04/12/2020,(86300) Healthcare from non-NHS bodies,(id:42424) Transplant Renal and Urology,DIAVERUM UK LTD,id:13522954 ,    31593.96
Department of Health,Guys and St Thomas NHS Foundation Trust,04/12/2020,(81200) Medical Surgical Supplies & Equipment,(id:42422) Transplant Renal and Urology,NXSTAGE MEDICAL UK LIMITED,id:12927082   , 505.00
Department of Health,Guys and St Thomas NHS Foundation Trust,04/12/2020,(81200) Medical Surgical Supplies & Equipment,(id:42422) Transplant Renal and Urology,NXSTAGE MEDICAL UK LIMITED,id:13491974   ,1390.35
Department of Health,Guys and St Thomas NHS Foundation Trust,11/12/2020,(81200) Medical Surgical Supplies & Equipment,(id:42422) Transplant Renal and Urology,BAXTER HEALTHCARE LTD,id:13505665   , 732.00
Department of Health,Guys and St Thomas NHS Foundation Trust,11/12/2020,(81200) Medical Surgical Supplies & Equipment,(id:42422) Transplant Renal and Urology,NXSTAGE MEDICAL UK LIMITED,id:13517300   ,1086.24
Department of Health,Guys and St Thomas NHS Foundation Trust,11/12/2020,(81200) Medical Surgical Supplies & Equipment,(id:42422) Transplant Renal and Urology,NXSTAGE MEDICAL UK LIMITED,id:13547356   ,1194.58
Department of Health,Guys and St Thomas NHS Foundation Trust,11/12/2020,(81200) Medical Surgical Supplies & Equipment,(id:42422) Transplant Renal and Urology,NXSTAGE MEDICAL UK LIMITED,id:13298624   ,1309.44
Department of Health,Guys and St Thomas NHS Foundation Trust,11/12/2020,(81200) Medical Surgical Supplies & Equipment,(id:42422) Transplant Renal and Urology,NXSTAGE MEDICAL UK LIMITED,id:13547635   ,1309.44
Department of Health,Guys and St Thomas NHS Foundation Trust,18/12/2020,(81200) Medical Surgical Supplies & Equipment,(id:42422) Transplant Renal and Urology,NXSTAGE MEDICAL UK LIMITED,id:13546514   ,1309.44
Department of Health,Guys and St Thomas NHS Foundation Trust,11/12/2020,(80150) Drug Costs,(id:42422) Transplant Renal and Urology,BAXTER HEALTHCARE LTD,id:13444396,    11730.94
Department of Health,Guys and St Thomas NHS Foundation Trust,11/12/2020,(81100) Dressings,(id:42422) Transplant Renal and Urology,NHS SUPPLY CHAIN (MAIDSTONE),id:13543516    ,  52.80
Department of Health,Guys and St Thomas NHS Foundation Trust,11/12/2020,(80010) Drug Costs,(id:42422) Transplant Renal and Urology,NHS SUPPLY CHAIN (MAIDSTONE),id:13543074   , 346.46
Department of Health,Guys and St Thomas NHS Foundation Trust,11/12/2020,(81200) Medical Surgical Supplies & Equipment,(id:42421) Transplant Renal and Urology,BAXTER HEALTHCARE LTD,id:13458795   ,1021.02
Department of Health,Guys and St Thomas NHS Foundation Trust,11/12/2020,(81200) Medical Surgical Supplies & Equipment,(id:42421) Transplant Renal and Urology,BAXTER HEALTHCARE LTD,id:13458828   ,1208.24
Department of Health,Guys and St Thomas NHS Foundation Trust,11/12/2020,(81200) Medical Surgical Supplies & Equipment,(id:42421) Transplant Renal and Urology,BAXTER HEALTHCARE LTD,id:13444428   ,1264.15
Department of Health,Guys and St Thomas NHS Foundation Trust,11/12/2020,(81200) Medical Surgical Supplies & Equipment,(id:42421) Transplant Renal and Urology,BAXTER HEALTHCARE LTD,id:13458812   ,1559.35
Department of Health,Guys and St Thomas NHS Foundation Trust,18/12/2020,(81200) Medical Surgical Supplies & Equipment,(id:42421) Transplant Renal and Urology,BAXTER HEALTHCARE LTD,id:13555354   , 923.78
Department of Health,Guys and St Thomas NHS Foundation Trust,18/12/2020,(81200) Medical Surgical Supplies & Equipment,(id:42421) Transplant Renal and Urology,BAXTER HEALTHCARE LTD,id:13555320   , 931.93
Department of Health,Guys and St Thomas NHS Foundation Trust,18/12/2020,(81200) Medical Surgical Supplies & Equipment,(id:42421) Transplant Renal and Urology,BAXTER HEALTHCARE LTD,id:13555323   ,1031.72
Department of Health,Guys and St Thomas NHS Foundation Trust,18/12/2020,(81200) Medical Surgical Supplies & Equipment,(id:42421) Transplant Renal and Urology,BAXTER HEALTHCARE LTD,id:13555418   ,1130.46
Department of Health,Guys and St Thomas NHS Foundation Trust,22/12/2020,(86300) Healthcare from non-NHS bodies,(id:42421) Transplant Renal and Urology,DIAVERUM UK LTD,id:13502896 ,   130137.84
Department of Health,Guys and St Thomas NHS Foundation Trust,11/12/2020,(81100) Dressings,(id:884419) Surgery,NHS SUPPLY CHAIN (MAIDSTONE),id:13543750    ,1264.36
Department of Health,Guys and St Thomas NHS Foundation Trust,11/12/2020,(81100) Dressings,(id:884419) Surgery,NHS SUPPLY CHAIN (MAIDSTONE),id:13543074    ,1032.14
Department of Health,Guys and St Thomas NHS Foundation Trust,11/12/2020,(81100) Dressings,(id:884419) Surgery,NHS SUPPLY CHAIN (MAIDSTONE),id:13531623    ,1433.23
Department of Health,Guys and St Thomas NHS Foundation Trust,11/12/2020,(83400) Office Equipment,(id:884419) Surgery,NHS SUPPLY CHAIN (MAIDSTONE),id:13543750  ,   2.93
Department of Health,Guys and St Thomas NHS Foundation Trust,11/12/2020,(81700) Lab Equipment Purchase,(id:884419) Surgery,NHS SUPPLY CHAIN (MAIDSTONE),id:13543074 ,   5.93
Department of Health,Guys and St Thomas NHS Foundation Trust,18/12/2020,(83400) Office Equipment,(id:42485) Surgery,NHS SUPPLY CHAIN (MAIDSTONE),id:13535395   ,  61.20
Department of Health,Guys and St Thomas NHS Foundation Trust,11/12/2020,(82700) Uniforms & Clothing,(id:42485) Surgery,NHS SUPPLY CHAIN (MAIDSTONE),id:13543516,  31.68
Department of Health,Guys and St Thomas NHS Foundation Trust,11/12/2020,(81255) Medical Surgical Supplies & Equipment,(id:42485) Surgery,NHS SUPPLY CHAIN (MAIDSTONE),id:13542894  ,    .94
Department of Health,Guys and St Thomas NHS Foundation Trust,18/12/2020,(81700) Lab Equipment Purchase,(id:42485) Surgery,NHS SUPPLY CHAIN (MAIDSTONE),id:13535395  ,  22.19
Department of Health,Guys and St Thomas NHS Foundation Trust,11/12/2020,(81700) Lab Equipment Purchase,(id:42485) Surgery,NHS SUPPLY CHAIN (MAIDSTONE),id:13531623  ,  12.27
Department of Health,Guys and St Thomas NHS Foundation Trust,11/12/2020,(81700) Lab Equipment Purchase,(id:42485) Surgery,NHS SUPPLY CHAIN (MAIDSTONE),id:13543750  ,  11.86
Department of Health,Guys and St Thomas NHS Foundation Trust,11/12/2020,(81000) Surgical Appliances,(id:42485) Surgery,TALAR MADE ORTHOTICS LTD,id:13543818    , 114.00
Department of Health,Guys and St Thomas NHS Foundation Trust,11/12/2020,(81100) Dressings,(id:42485) Surgery,NHS SUPPLY CHAIN (MAIDSTONE),id:13543750, 342.18
Department of Health,Guys and St Thomas NHS Foundation Trust,11/12/2020,(81200) Medical Surgical Supplies & Equipment,(id:42484) Surgery,SEVERN HEALTHCARE TECHNOLOGIES LTD,id:13537735 ,    10016.40
Department of Health,Guys and St Thomas NHS Foundation Trust,04/12/2020,(81200) Medical Surgical Supplies & Equipment,(id:42484) Surgery,SEVERN HEALTHCARE TECHNOLOGIES LTD,id:13488257 ,1840.80
Department of Health,Guys and St Thomas NHS Foundation Trust,11/12/2020,(81100) Dressings,(id:42484) Surgery,NHS SUPPLY CHAIN (MAIDSTONE),id:13531623, 222.40
Department of Health,Guys and St Thomas NHS Foundation Trust,11/12/2020,(81200) Medical Surgical Supplies & Equipment,(id:42483) Surgery,NHS SUPPLY CHAIN (MAIDSTONE),id:13531623  ,   3.35
Department of Health,Guys and St Thomas NHS Foundation Trust,11/12/2020,(83410) Office Equipment,(id:42483) Surgery,RICOH UK LTD,id:13516172    ,  53.82
Department of Health,Guys and St Thomas NHS Foundation Trust,11/12/2020,(81100) Dressings,(id:42482) Surgery,NHS SUPPLY CHAIN (MAIDSTONE),id:13543074,1871.33
Department of Health,Guys and St Thomas NHS Foundation Trust,11/12/2020,(81100) Dressings,(id:42482) Surgery,NHS SUPPLY CHAIN (MAIDSTONE),id:13543750, 498.02
Department of Health,Guys and St Thomas NHS Foundation Trust,18/12/2020,(81200) Medical Surgical Supplies & Equipment,(id:42467) Surgery,JOHNSON & JOHNSON MEDICAL LTD,id:13526758 ,1518.11
Department of Health,Guys and St Thomas NHS Foundation Trust,11/12/2020,(81200) Medical Surgical Supplies & Equipment,(id:42467) Surgery,JOHNSON & JOHNSON MEDICAL LTD,id:13494645 , 917.99
Department of Health,Guys and St Thomas NHS Foundation Trust,18/12/2020,(81200) Medical Surgical Supplies & Equipment,(id:42467) Surgery,NHS SUPPLY CHAIN (MAIDSTONE),id:13535395  , 296.28
Department of Health,Guys and St Thomas NHS Foundation Trust,18/12/2020,(81200) Medical Surgical Supplies & Equipment,(id:42467) Surgery,JOHNSON & JOHNSON MEDICAL LTD,id:13526749 ,1621.79
Department of Health,Guys and St Thomas NHS Foundation Trust,18/12/2020,(81200) Medical Surgical Supplies & Equipment,(id:42467) Surgery,JOHNSON & JOHNSON MEDICAL LTD,id:13518406 , 608.77
Department of Health,Guys and St Thomas NHS Foundation Trust,22/12/2020,(81000) Surgical Appliances,(id:42467) Surgery,MEDTRONIC LTD,id:13543862, 739.20
Department of Health,Guys and St Thomas NHS Foundation Trust,11/12/2020,(83400) Office Equipment,(id:42467) Surgery,NHS SUPPLY CHAIN (MAIDSTONE),id:13542894   , 387.88
Department of Health,Guys and St Thomas NHS Foundation Trust,18/12/2020,(81225) Medical Surgical Supplies & Equipment,(id:42467) Surgery,NHS SUPPLY CHAIN (MAIDSTONE),id:13535395  ,  99.88
Department of Health,Guys and St Thomas NHS Foundation Trust,11/12/2020,(81225) Medical Surgical Supplies & Equipment,(id:42466) Surgery,NHS SUPPLY CHAIN (MAIDSTONE),id:13543074  ,  74.40
Department of Health,Guys and St Thomas NHS Foundation Trust,11/12/2020,(81225) Medical Surgical Supplies & Equipment,(id:42466) Surgery,NHS SUPPLY CHAIN (MAIDSTONE),id:13542894  ,1034.10
Department of Health,Guys and St Thomas NHS Foundation Trust,11/12/2020,(83400) Office Equipment,(id:42465) Surgery,NHS SUPPLY CHAIN (MAIDSTONE),id:13543750   ,  72.67
Department of Health,Guys and St Thomas NHS Foundation Trust,11/12/2020,(82800) Bedding & Linen,(id:42465) Surgery,NHS SUPPLY CHAIN (MAIDSTONE),id:13543516    , 188.70
Department of Health,Guys and St Thomas NHS Foundation Trust,11/12/2020,(81225) Medical Surgical Supplies & Equipment,(id:42465) Surgery,NHS SUPPLY CHAIN (MAIDSTONE),id:13543074  , 132.16
Department of Health,Guys and St Thomas NHS Foundation Trust,11/12/2020,(81225) Medical Surgical Supplies & Equipment,(id:42465) Surgery,NHS SUPPLY CHAIN (MAIDSTONE),id:13542894  ,  57.15
Department of Health,Guys and St Thomas NHS Foundation Trust,11/12/2020,(81700) Lab Equipment Purchase,(id:42465) Surgery,NHS SUPPLY CHAIN (MAIDSTONE),id:13531623  ,  45.92
Department of Health,Guys and St Thomas NHS Foundation Trust,18/12/2020,(50552) Qualified Nursing Staff,(id:42465) Surgery,MSI GROUP LTD,id:13571308 , 337.22
Department of Health,Guys and St Thomas NHS Foundation Trust,11/12/2020,(81255) Medical Surgical Supplies & Equipment,(id:42465) Surgery,NHS SUPPLY CHAIN (MAIDSTONE),id:13543750  ,   2.18
Department of Health,Guys and St Thomas NHS Foundation Trust,11/12/2020,(83410) Office Equipment,(id:42464) Surgery,RICOH UK LTD,id:13516172    , 285.34
Department of Health,Guys and St Thomas NHS Foundation Trust,11/12/2020,(81700) Lab Equipment Purchase,(id:42464) Surgery,NHS SUPPLY CHAIN (MAIDSTONE),id:13543074  ,  17.80
Department of Health,Guys and St Thomas NHS Foundation Trust,18/12/2020,(81700) Lab Equipment Purchase,(id:42464) Surgery,NHS SUPPLY CHAIN (MAIDSTONE),id:13535395  ,   5.93
Department of Health,Guys and St Thomas NHS Foundation Trust,11/12/2020,(82800) Bedding & Linen,(id:42463) Surgery,NHS SUPPLY CHAIN (MAIDSTONE),id:13543074    ,   7.44
Department of Health,Guys and St Thomas NHS Foundation Trust,18/12/2020,(83400) Office Equipment,(id:42463) Surgery,NHS SUPPLY CHAIN (MAIDSTONE),id:13535395   , 440.39
Department of Health,Guys and St Thomas NHS Foundation Trust,11/12/2020,(83400) Office Equipment,(id:42463) Surgery,NHS SUPPLY CHAIN (MAIDSTONE),id:13543516   ,1766.48
Department of Health,Guys and St Thomas NHS Foundation Trust,11/12/2020,(81000) Surgical Appliances,(id:42461) Surgery,LBG MEDICAL LTD,id:13538954   , 716.93
Department of Health,Guys and St Thomas NHS Foundation Trust,11/12/2020,(82700) Uniforms & Clothing,(id:42459) Surgery,NHS SUPPLY CHAIN (MAIDSTONE),id:13531623,  21.12
Department of Health,Guys and St Thomas NHS Foundation Trust,11/12/2020,(82000) Provisions & Kitchens,(id:42459) Surgery,NHS SUPPLY CHAIN (MAIDSTONE),id:13542894   , 283.63
Department of Health,Guys and St Thomas NHS Foundation Trust,18/12/2020,(82000) Provisions & Kitchens,(id:42459) Surgery,NHS SUPPLY CHAIN (MAIDSTONE),id:13535395   ,  78.62
Department of Health,Guys and St Thomas NHS Foundation Trust,11/12/2020,(82800) Bedding & Linen,(id:42459) Surgery,NHS SUPPLY CHAIN (MAIDSTONE),id:13543516    , 131.98
Department of Health,Guys and St Thomas NHS Foundation Trust,11/12/2020,(81100) Dressings,(id:42459) Surgery,NHS SUPPLY CHAIN (MAIDSTONE),id:13542894, 200.02
Department of Health,Guys and St Thomas NHS Foundation Trust,18/12/2020,(81200) Medical Surgical Supplies & Equipment,(id:42459) Surgery,NHS SUPPLY CHAIN (MAIDSTONE),id:13535395  , 225.53
Department of Health,Guys and St Thomas NHS Foundation Trust,11/12/2020,(83400) Office Equipment,(id:42459) Surgery,NHS SUPPLY CHAIN (MAIDSTONE),id:13543750   , 107.59
Department of Health,Guys and St Thomas NHS Foundation Trust,18/12/2020,(81700) Lab Equipment Purchase,(id:42459) Surgery,NHS SUPPLY CHAIN (MAIDSTONE),id:13535395  ,  15.91
Department of Health,Guys and St Thomas NHS Foundation Trust,11/12/2020,(82700) Uniforms & Clothing,(id:42458) Surgery,NHS SUPPLY CHAIN (MAIDSTONE),id:13543516,  49.15
Department of Health,Guys and St Thomas NHS Foundation Trust,18/12/2020,(81100) Dressings,(id:42458) Surgery,NHS SUPPLY CHAIN (MAIDSTONE),id:13535395, 118.44
Department of Health,Guys and St Thomas NHS Foundation Trust,11/12/2020,(81200) Medical Surgical Supplies & Equipment,(id:42458) Surgery,NHS SUPPLY CHAIN (MAIDSTONE),id:13543750  , 290.02
Department of Health,Guys and St Thomas NHS Foundation Trust,18/12/2020,(83400) Office Equipment,(id:42458) Surgery,NHS SUPPLY CHAIN (MAIDSTONE),id:13535395   ,  35.80
Department of Health,Guys and St Thomas NHS Foundation Trust,18/12/2020,(81255) Medical Surgical Supplies & Equipment,(id:42458) Surgery,NHS SUPPLY CHAIN (MAIDSTONE),id:13535395  ,   2.52
Department of Health,Guys and St Thomas NHS Foundation Trust,11/12/2020,(81255) Medical Surgical Supplies & Equipment,(id:42458) Surgery,NHS SUPPLY CHAIN (MAIDSTONE),id:13531623  ,   4.32
Department of Health,Guys and St Thomas NHS Foundation Trust,11/12/2020,(83400) Office Equipment,(id:42279) Cancer Supportive Services and R&D,NHS SUPPLY CHAIN (MAIDSTONE),id:13543516 ,  48.86
Department of Health,Guys and St Thomas NHS Foundation Trust,18/12/2020,(81275) Medical Surgical Supplies & Equipment,(id:42279) Cancer Supportive Services and R&D,HORIBA ABX UK LTD,id:13255474 , 574.13
Department of Health,Guys and St Thomas NHS Foundation Trust,04/12/2020,(81200) Medical Surgical Supplies & Equipment,(id:42270) Haematology Cellular Pathology and Supporting Services,TERUMO BCT EUROPE NV/SA  (PREVIOUSLY CARIDIAN),id:13531237  ,4169.38
Department of Health,Guys and St Thomas NHS Foundation Trust,04/12/2020,(81200) Medical Surgical Supplies & Equipment,(id:42270) Haematology Cellular Pathology and Supporting Services,TERUMO BCT EUROPE NV/SA  (PREVIOUSLY CARIDIAN),id:13530614  ,4169.38
Department of Health,Guys and St Thomas NHS Foundation Trust,11/12/2020,(81100) Dressings,(id:42270) Haematology Cellular Pathology and Supporting Services,NHS SUPPLY CHAIN (MAIDSTONE),id:13543074   , 265.56
Department of Health,Guys and St Thomas NHS Foundation Trust,11/12/2020,(83400) Office Equipment,(id:42270) Haematology Cellular Pathology and Supporting Services,NHS SUPPLY CHAIN (MAIDSTONE),id:13543074 , 230.27
Department of Health,Guys and St Thomas NHS Foundation Trust,18/12/2020,(81700) Lab Equipment Purchase,(id:42270) Haematology Cellular Pathology and Supporting Services,NHS SUPPLY CHAIN (MAIDSTONE),id:13535395,  69.37
Department of Health,Guys and St Thomas NHS Foundation Trust,11/12/2020,(82800) Bedding & Linen,(id:42270) Haematology Cellular Pathology and Supporting Services,NHS SUPPLY CHAIN (MAIDSTONE),id:13543074  ,  60.36
Department of Health,Guys and St Thomas NHS Foundation Trust,11/12/2020,(82700) Uniforms & Clothing,(id:42270) Haematology Cellular Pathology and Supporting Services,NHS SUPPLY CHAIN (MAIDSTONE),id:13543074   ,  21.12
Department of Health,Guys and St Thomas NHS Foundation Trust,11/12/2020,(82700) Uniforms & Clothing,(id:42265) Haematology Cellular Pathology and Supporting Services,NHS SUPPLY CHAIN (MAIDSTONE),id:13543750   ,  31.68
Department of Health,Guys and St Thomas NHS Foundation Trust,11/12/2020,(82000) Provisions & Kitchens,(id:42265) Haematology Cellular Pathology and Supporting Services,NHS SUPPLY CHAIN (MAIDSTONE),id:13543750 , 126.78
Department of Health,Guys and St Thomas NHS Foundation Trust,18/12/2020,(82000) Provisions & Kitchens,(id:42265) Haematology Cellular Pathology and Supporting Services,NHS SUPPLY CHAIN (MAIDSTONE),id:13535395 , 246.04
Department of Health,Guys and St Thomas NHS Foundation Trust,11/12/2020,(82800) Bedding & Linen,(id:42265) Haematology Cellular Pathology and Supporting Services,NHS SUPPLY CHAIN (MAIDSTONE),id:13543074  ,  97.10
Department of Health,Guys and St Thomas NHS Foundation Trust,18/12/2020,(82800) Bedding & Linen,(id:42265) Haematology Cellular Pathology and Supporting Services,NHS SUPPLY CHAIN (MAIDSTONE),id:13535395  , 192.30
Department of Health,Guys and St Thomas NHS Foundation Trust,11/12/2020,(81100) Dressings,(id:42265) Haematology Cellular Pathology and Supporting Services,NHS SUPPLY CHAIN (MAIDSTONE),id:13543074   , 181.87
Department of Health,Guys and St Thomas NHS Foundation Trust,18/12/2020,(81200) Medical Surgical Supplies & Equipment,(id:42265) Haematology Cellular Pathology and Supporting Services,NHS SUPPLY CHAIN (MAIDSTONE),id:13535395,1826.23
Department of Health,Guys and St Thomas NHS Foundation Trust,11/12/2020,(83400) Office Equipment,(id:42265) Haematology Cellular Pathology and Supporting Services,NHS SUPPLY CHAIN (MAIDSTONE),id:13542894 , 169.47
Department of Health,Guys and St Thomas NHS Foundation Trust,11/12/2020,(81255) Medical Surgical Supplies & Equipment,(id:42265) Haematology Cellular Pathology and Supporting Services,NHS SUPPLY CHAIN (MAIDSTONE),id:13543750,   3.46
Department of Health,Guys and St Thomas NHS Foundation Trust,18/12/2020,(82600) Uniforms & Clothing,(id:42272) Haematology Cellular Pathology and Supporting Services,COURIER SYSTEMS (ECOURIER),id:13571543, 617.84
Department of Health,Guys and St Thomas NHS Foundation Trust,11/12/2020,(80205) Drug Costs,(id:42273) Haematology Cellular Pathology and Supporting Services,HEALTHCARE AT HOME LTD,id:13554137   ,4127.00
Department of Health,Guys and St Thomas NHS Foundation Trust,11/12/2020,(80205) Drug Costs,(id:42273) Haematology Cellular Pathology and Supporting Services,HEALTHCARE AT HOME LTD,id:13543503   ,4927.00
Department of Health,Guys and St Thomas NHS Foundation Trust,11/12/2020,(80205) Drug Costs,(id:42273) Haematology Cellular Pathology and Supporting Services,HEALTHCARE AT HOME LTD,id:13543506   ,8127.00
Department of Health,Guys and St Thomas NHS Foundation Trust,11/12/2020,(80205) Drug Costs,(id:42273) Haematology Cellular Pathology and Supporting Services,HEALTHCARE AT HOME LTD,id:13543508   ,8287.00
Department of Health,Guys and St Thomas NHS Foundation Trust,11/12/2020,(80205) Drug Costs,(id:42273) Haematology Cellular Pathology and Supporting Services,HEALTHCARE AT HOME LTD,id:13543859   ,9727.00
Department of Health,Guys and St Thomas NHS Foundation Trust,11/12/2020,(80205) Drug Costs,(id:42273) Haematology Cellular Pathology and Supporting Services,HEALTHCARE AT HOME LTD,id:13543740   ,    14677.00
Department of Health,Guys and St Thomas NHS Foundation Trust,11/12/2020,(80205) Drug Costs,(id:42273) Haematology Cellular Pathology and Supporting Services,SHIRE PHARMACEUTICALS LTD,id:13543575,1690.00
Department of Health,Guys and St Thomas NHS Foundation Trust,11/12/2020,(80205) Drug Costs,(id:42273) Haematology Cellular Pathology and Supporting Services,HEALTHCARE AT HOME LTD,id:13554258   ,4927.00
Department of Health,Guys and St Thomas NHS Foundation Trust,11/12/2020,(80205) Drug Costs,(id:42273) Haematology Cellular Pathology and Supporting Services,HEALTHCARE AT HOME LTD,id:13543858   ,4987.00
Department of Health,Guys and St Thomas NHS Foundation Trust,11/12/2020,(80205) Drug Costs,(id:42273) Haematology Cellular Pathology and Supporting Services,HEALTHCARE AT HOME LTD,id:13543826   ,5247.00
Department of Health,Guys and St Thomas NHS Foundation Trust,11/12/2020,(80205) Drug Costs,(id:42273) Haematology Cellular Pathology and Supporting Services,HEALTHCARE AT HOME LTD,id:13543792   ,5509.00
Department of Health,Guys and St Thomas NHS Foundation Trust,11/12/2020,(80205) Drug Costs,(id:42273) Haematology Cellular Pathology and Supporting Services,HEALTHCARE AT HOME LTD,id:13543555   ,6487.00
Department of Health,Guys and St Thomas NHS Foundation Trust,11/12/2020,(80205) Drug Costs,(id:42273) Haematology Cellular Pathology and Supporting Services,HEALTHCARE AT HOME LTD,id:13543517   ,6527.00
Department of Health,Guys and St Thomas NHS Foundation Trust,11/12/2020,(80205) Drug Costs,(id:42273) Haematology Cellular Pathology and Supporting Services,HEALTHCARE AT HOME LTD,id:13554154   , 927.00
Department of Health,Guys and St Thomas NHS Foundation Trust,11/12/2020,(80205) Drug Costs,(id:42273) Haematology Cellular Pathology and Supporting Services,HEALTHCARE AT HOME LTD,id:13543790   ,2247.00
Department of Health,Guys and St Thomas NHS Foundation Trust,11/12/2020,(80205) Drug Costs,(id:42273) Haematology Cellular Pathology and Supporting Services,HEALTHCARE AT HOME LTD,id:13543497   ,2527.00
Department of Health,Guys and St Thomas NHS Foundation Trust,11/12/2020,(80205) Drug Costs,(id:42273) Haematology Cellular Pathology and Supporting Services,HEALTHCARE AT HOME LTD,id:13543534   ,3715.00
Department of Health,Guys and St Thomas NHS Foundation Trust,11/12/2020,(80205) Drug Costs,(id:42273) Haematology Cellular Pathology and Supporting Services,HEALTHCARE AT HOME LTD,id:13554354   ,3967.00
Department of Health,Guys and St Thomas NHS Foundation Trust,22/12/2020,(80205) Drug Costs,(id:42273) Haematology Cellular Pathology and Supporting Services,HEALTHCARE AT HOME LTD,id:13575350   ,    24277.00
Department of Health,Guys and St Thomas NHS Foundation Trust,22/12/2020,(80205) Drug Costs,(id:42273) Haematology Cellular Pathology and Supporting Services,HEALTHCARE AT HOME LTD,id:13575315   ,2415.74
Department of Health,Guys and St Thomas NHS Foundation Trust,22/12/2020,(80205) Drug Costs,(id:42273) Haematology Cellular Pathology and Supporting Services,BAXALTA UK LTD,id:13575554 ,3072.35
Department of Health,Guys and St Thomas NHS Foundation Trust,18/12/2020,(80205) Drug Costs,(id:42273) Haematology Cellular Pathology and Supporting Services,HEALTHCARE AT HOME LTD,id:13575242   ,1297.00
Department of Health,Guys and St Thomas NHS Foundation Trust,18/12/2020,(80205) Drug Costs,(id:42273) Haematology Cellular Pathology and Supporting Services,HEALTHCARE AT HOME LTD,id:13574995   ,3127.00
Department of Health,Guys and St Thomas NHS Foundation Trust,18/12/2020,(80205) Drug Costs,(id:42273) Haematology Cellular Pathology and Supporting Services,HEALTHCARE AT HOME LTD,id:13575238   ,4987.00
Department of Health,Guys and St Thomas NHS Foundation Trust,18/12/2020,(80205) Drug Costs,(id:42273) Haematology Cellular Pathology and Supporting Services,HEALTHCARE AT HOME LTD,id:13575271   ,5247.00
Department of Health,Guys and St Thomas NHS Foundation Trust,18/12/2020,(80205) Drug Costs,(id:42273) Haematology Cellular Pathology and Supporting Services,HEALTHCARE AT HOME LTD,id:13574914   ,6067.00
Department of Health,Guys and St Thomas NHS Foundation Trust,18/12/2020,(80205) Drug Costs,(id:42273) Haematology Cellular Pathology and Supporting Services,HEALTHCARE AT HOME LTD,id:13575245   ,    15167.00
Department of Health,Guys and St Thomas NHS Foundation Trust,18/12/2020,(80205) Drug Costs,(id:42273) Haematology Cellular Pathology and Supporting Services,HEALTHCARE AT HOME LTD,id:13574996   ,    20107.00
Department of Health,Guys and St Thomas NHS Foundation Trust,11/12/2020,(83400) Office Equipment,(id:42128) Haematology Cellular Pathology and Supporting Services,NHS SUPPLY CHAIN (MAIDSTONE),id:13543516 ,  65.22
Department of Health,Guys and St Thomas NHS Foundation Trust,11/12/2020,(81100) Dressings,(id:42128) Haematology Cellular Pathology and Supporting Services,NHS SUPPLY CHAIN (MAIDSTONE),id:13543074   ,  50.40
Department of Health,Guys and St Thomas NHS Foundation Trust,04/12/2020,(54052) Technical Officers,(id:42128) Haematology Cellular Pathology and Supporting Services,TOTAL ASSIST RECRUITMENT LTD,id:13530935    , 990.41
Department of Health,Guys and St Thomas NHS Foundation Trust,11/12/2020,(54052) Technical Officers,(id:42128) Haematology Cellular Pathology and Supporting Services,TOTAL ASSIST RECRUITMENT LTD,id:13552823    ,1007.48
Department of Health,Guys and St Thomas NHS Foundation Trust,11/12/2020,(83400) Office Equipment,(id:42258) Oncology Services,NHS SUPPLY CHAIN (MAIDSTONE),id:13543516   ,  67.44
Department of Health,Guys and St Thomas NHS Foundation Trust,11/12/2020,(82800) Bedding & Linen,(id:42258) Oncology Services,NHS SUPPLY CHAIN (MAIDSTONE),id:13543750    , 107.47
Department of Health,Guys and St Thomas NHS Foundation Trust,11/12/2020,(82800) Bedding & Linen,(id:42258) Oncology Services,NHS SUPPLY CHAIN (MAIDSTONE),id:13543074    , 124.58
Department of Health,Guys and St Thomas NHS Foundation Trust,18/12/2020,(82800) Bedding & Linen,(id:42258) Oncology Services,NHS SUPPLY CHAIN (MAIDSTONE),id:13535395    ,  70.23
Department of Health,Guys and St Thomas NHS Foundation Trust,11/12/2020,(83410) Office Equipment,(id:42258) Oncology Services,RICOH UK LTD,id:13516172    , 402.38
Department of Health,Guys and St Thomas NHS Foundation Trust,30/12/2020,(52062) Radiographers,(id:42258) Oncology Services,PRICEWATERHOUSECOOPERS LLP,id:13589594   ,3838.87
Department of Health,Guys and St Thomas NHS Foundation Trust,11/12/2020,(81500) X Ray Equipment Purchase,(id:42258) Oncology Services,ELEKTA LTD (CIS5),id:13544635 ,7229.86
Department of Health,Guys and St Thomas NHS Foundation Trust,11/12/2020,(81100) Dressings,(id:42258) Oncology Services,NHS SUPPLY CHAIN (MAIDSTONE),id:13543074, 368.67
Department of Health,Guys and St Thomas NHS Foundation Trust,11/12/2020,(83400) Office Equipment,(id:42261) Oncology Services,NHS SUPPLY CHAIN (MAIDSTONE),id:13543074   ,  24.48
Department of Health,Guys and St Thomas NHS Foundation Trust,11/12/2020,(81000) Surgical Appliances,(id:42261) Oncology Services,MEDI UK LTD,id:13548516  , 176.05
Department of Health,Guys and St Thomas NHS Foundation Trust,11/12/2020,(81200) Medical Surgical Supplies & Equipment,(id:4631424) Oncology Services,NHS SUPPLY CHAIN (MAIDSTONE),id:13543750,1597.96
Department of Health,Guys and St Thomas NHS Foundation Trust,11/12/2020,(81200) Medical Surgical Supplies & Equipment,(id:42260) Oncology Services,NHS SUPPLY CHAIN (MAIDSTONE),id:13543074  ,6025.52
Department of Health,Guys and St Thomas NHS Foundation Trust,04/12/2020,(81200) Medical Surgical Supplies & Equipment,(id:42260) Oncology Services,KIMAL PLC,id:13536709 ,4238.28
Department of Health,Guys and St Thomas NHS Foundation Trust,04/12/2020,(81200) Medical Surgical Supplies & Equipment,(id:42260) Oncology Services,KIMAL PLC,id:13536687 ,4238.28
Department of Health,Guys and St Thomas NHS Foundation Trust,11/12/2020,(82800) Bedding & Linen,(id:42260) Oncology Services,NHS SUPPLY CHAIN (MAIDSTONE),id:13542894    , 393.85
Department of Health,Guys and St Thomas NHS Foundation Trust,11/12/2020,(82800) Bedding & Linen,(id:42260) Oncology Services,NHS SUPPLY CHAIN (MAIDSTONE),id:13531623    , 175.47
Department of Health,Guys and St Thomas NHS Foundation Trust,11/12/2020,(82800) Bedding & Linen,(id:42260) Oncology Services,NHS SUPPLY CHAIN (MAIDSTONE),id:13543516    , 332.30
Department of Health,Guys and St Thomas NHS Foundation Trust,11/12/2020,(80150) Drug Costs,(id:42260) Oncology Services,NHS SUPPLY CHAIN (MAIDSTONE),id:13542894    , 151.20
Department of Health,Guys and St Thomas NHS Foundation Trust,11/12/2020,(83400) Office Equipment,(id:42260) Oncology Services,NHS SUPPLY CHAIN (MAIDSTONE),id:13542894   , 699.68
Department of Health,Guys and St Thomas NHS Foundation Trust,18/12/2020,(83400) Office Equipment,(id:42260) Oncology Services,NHS SUPPLY CHAIN (MAIDSTONE),id:13535395   ,1266.27
Department of Health,Guys and St Thomas NHS Foundation Trust,18/12/2020,(81700) Lab Equipment Purchase,(id:42260) Oncology Services,NHS SUPPLY CHAIN (MAIDSTONE),id:13535395  , 489.94
Department of Health,Guys and St Thomas NHS Foundation Trust,11/12/2020,(82000) Provisions & Kitchens,(id:42260) Oncology Services,NHS SUPPLY CHAIN (MAIDSTONE),id:13542894   , 208.01
Department of Health,Guys and St Thomas NHS Foundation Trust,11/12/2020,(82000) Provisions & Kitchens,(id:42259) Oncology Services,NHS SUPPLY CHAIN (MAIDSTONE),id:13543074   ,  67.40
Department of Health,Guys and St Thomas NHS Foundation Trust,11/12/2020,(81200) Medical Surgical Supplies & Equipment,(id:42259) Oncology Services,NHS SUPPLY CHAIN (MAIDSTONE),id:13542894  ,1823.91
Department of Health,Guys and St Thomas NHS Foundation Trust,11/12/2020,(81200) Medical Surgical Supplies & Equipment,(id:42259) Oncology Services,NHS SUPPLY CHAIN (MAIDSTONE),id:13543750  ,2037.44
Department of Health,Guys and St Thomas NHS Foundation Trust,11/12/2020,(81200) Medical Surgical Supplies & Equipment,(id:42259) Oncology Services,NHS SUPPLY CHAIN (MAIDSTONE),id:13543516  ,2284.30
Department of Health,Guys and St Thomas NHS Foundation Trust,18/12/2020,(83400) Office Equipment,(id:42259) Oncology Services,NHS SUPPLY CHAIN (MAIDSTONE),id:13535395   ,  79.78
Department of Health,Guys and St Thomas NHS Foundation Trust,11/12/2020,(81225) Medical Surgical Supplies & Equipment,(id:42259) Oncology Services,NHS SUPPLY CHAIN (MAIDSTONE),id:13543750  ,   9.70
Department of Health,Guys and St Thomas NHS Foundation Trust,11/12/2020,(50200) Consultants,(id:42280) Surgical Oncology,KINGS COLLEGE LONDON:03529700,id:13541979  ,    -8323.48
Department of Health,Guys and St Thomas NHS Foundation Trust,11/12/2020,(81100) Dressings,(id:42280) Surgical Oncology,NHS SUPPLY CHAIN (MAIDSTONE),id:13543750, 126.51
Department of Health,Guys and St Thomas NHS Foundation Trust,11/12/2020,(81200) Medical Surgical Supplies & Equipment,(id:42280) Surgical Oncology,NHS SUPPLY CHAIN (MAIDSTONE),id:13543516  , 204.72
Department of Health,Guys and St Thomas NHS Foundation Trust,11/12/2020,(81200) Medical Surgical Supplies & Equipment,(id:42280) Surgical Oncology,JOHNSON & JOHNSON MEDICAL LTD,id:13484108 , 586.81
Department of Health,Guys and St Thomas NHS Foundation Trust,04/12/2020,(81200) Medical Surgical Supplies & Equipment,(id:42280) Surgical Oncology,Q MEDICAL TECHNOLOGIES LTD,id:13488169    ,2600.40
Department of Health,Guys and St Thomas NHS Foundation Trust,11/12/2020,(82700) Uniforms & Clothing,(id:42280) Surgical Oncology,NHS SUPPLY CHAIN (MAIDSTONE),id:13542894,  79.20
Department of Health,Guys and St Thomas NHS Foundation Trust,11/12/2020,(81200) Medical Surgical Supplies & Equipment,(id:243406) Surgical Oncology,NHS SUPPLY CHAIN (MAIDSTONE),id:13543074 , 933.14
Department of Health,Guys and St Thomas NHS Foundation Trust,11/12/2020,(81200) Medical Surgical Supplies & Equipment,(id:243406) Surgical Oncology,NHS SUPPLY CHAIN (MAIDSTONE),id:13543750 ,1494.52
Department of Health,Guys and St Thomas NHS Foundation Trust,11/12/2020,(81255) Medical Surgical Supplies & Equipment,(id:243406) Surgical Oncology,NHS SUPPLY CHAIN (MAIDSTONE),id:13543516 ,   2.49
Department of Health,Guys and St Thomas NHS Foundation Trust,11/12/2020,(81100) Dressings,(id:243406) Surgical Oncology,NHS SUPPLY CHAIN (MAIDSTONE),id:13543074    , 257.84
Department of Health,Guys and St Thomas NHS Foundation Trust,11/12/2020,(82700) Uniforms & Clothing,(id:243406) Surgical Oncology,NHS SUPPLY CHAIN (MAIDSTONE),id:13531623    ,  31.68
Department of Health,Guys and St Thomas NHS Foundation Trust,11/12/2020,(82700) Uniforms & Clothing,(id:243406) Surgical Oncology,NHS SUPPLY CHAIN (MAIDSTONE),id:13543516    ,  31.68
Department of Health,Guys and St Thomas NHS Foundation Trust,11/12/2020,(82800) Bedding & Linen,(id:243406) Surgical Oncology,NHS SUPPLY CHAIN (MAIDSTONE),id:13543750   , 330.03
Department of Health,Guys and St Thomas NHS Foundation Trust,18/12/2020,(82000) Provisions & Kitchens,(id:243406) Surgical Oncology,NHS SUPPLY CHAIN (MAIDSTONE),id:13535395  ,  13.24
Department of Health,Guys and St Thomas NHS Foundation Trust,11/12/2020,(81100) Dressings,(id:42474) Surgical Oncology,NHS SUPPLY CHAIN (MAIDSTONE),id:13543074, 129.79
Department of Health,Guys and St Thomas NHS Foundation Trust,11/12/2020,(81200) Medical Surgical Supplies & Equipment,(id:42474) Surgical Oncology,OLYMPUS KEYMED,id:13545638 ,1315.20
Department of Health,Guys and St Thomas NHS Foundation Trust,04/12/2020,(81200) Medical Surgical Supplies & Equipment,(id:42474) Surgical Oncology,MEDTRONIC LTD,id:13521843  ,1160.40
Department of Health,Guys and St Thomas NHS Foundation Trust,11/12/2020,(81275) Medical Surgical Supplies & Equipment,(id:42474) Surgical Oncology,NHS SUPPLY CHAIN (MAIDSTONE),id:13543074  ,  24.98
Department of Health,Guys and St Thomas NHS Foundation Trust,11/12/2020,(81700) Lab Equipment Purchase,(id:42474) Surgical Oncology,NHS SUPPLY CHAIN (MAIDSTONE),id:13543074  ,  59.88
Department of Health,Guys and St Thomas NHS Foundation Trust,11/12/2020,(81700) Lab Equipment Purchase,(id:42474) Surgical Oncology,NHS SUPPLY CHAIN (MAIDSTONE),id:13531623  ,  18.27
Department of Health,Guys and St Thomas NHS Foundation Trust,04/12/2020,(81000) Surgical Appliances,(id:42474) Surgical Oncology,MEDTRONIC LTD,id:13521839, 978.00
Department of Health,Guys and St Thomas NHS Foundation Trust,11/12/2020,(81100) Dressings,(id:42473) Surgical Oncology,NHS SUPPLY CHAIN (MAIDSTONE),id:13542894,  49.68
Department of Health,Guys and St Thomas NHS Foundation Trust,04/12/2020,(81100) Dressings,(id:42473) Surgical Oncology,JOHNSON & JOHNSON MEDICAL LTD,id:13484088    , 556.60
Department of Health,Guys and St Thomas NHS Foundation Trust,22/12/2020,(81200) Medical Surgical Supplies & Equipment,(id:42473) Surgical Oncology,SOUTHERN IMPLANTS U.K. LTD,id:13567074    , 972.00
Department of Health,Guys and St Thomas NHS Foundation Trust,04/12/2020,(81200) Medical Surgical Supplies & Equipment,(id:42473) Surgical Oncology,CCMED LTD,id:13520854 , 867.00
Department of Health,Guys and St Thomas NHS Foundation Trust,04/12/2020,(81215) Medical Surgical Supplies & Equipment,(id:42475) Surgical Oncology,CONNEVANS LTD,id:13483388  , 518.17
Department of Health,Guys and St Thomas NHS Foundation Trust,04/12/2020,(81215) Medical Surgical Supplies & Equipment,(id:42475) Surgical Oncology,ADVANCED BIONICS SARL (AND UK LTD),id:13517058 ,7800.00
Department of Health,Guys and St Thomas NHS Foundation Trust,18/12/2020,(81215) Medical Surgical Supplies & Equipment,(id:42475) Surgical Oncology,NHS SUPPLY CHAIN (MAIDSTONE),id:13535395  ,    18070.29
Department of Health,Guys and St Thomas NHS Foundation Trust,11/12/2020,(81225) Medical Surgical Supplies & Equipment,(id:42472) Surgical Oncology,NHS SUPPLY CHAIN (MAIDSTONE),id:13543750  , 847.26
Department of Health,Guys and St Thomas NHS Foundation Trust,18/12/2020,(82800) Bedding & Linen,(id:42286) Surgical Oncology,NHS SUPPLY CHAIN (MAIDSTONE),id:13535395    , 110.40
Department of Health,Guys and St Thomas NHS Foundation Trust,11/12/2020,(81100) Dressings,(id:42286) Surgical Oncology,NHS SUPPLY CHAIN (MAIDSTONE),id:13543750,  22.80
Department of Health,Guys and St Thomas NHS Foundation Trust,11/12/2020,(81200) Medical Surgical Supplies & Equipment,(id:42286) Surgical Oncology,NHS SUPPLY CHAIN (MAIDSTONE),id:13543750  ,3164.04
Department of Health,Guys and St Thomas NHS Foundation Trust,18/12/2020,(81200) Medical Surgical Supplies & Equipment,(id:42286) Surgical Oncology,INTEGRA NEUROSCIENCES LIMITED,id:13560096 , 511.20
Department of Health,Guys and St Thomas NHS Foundation Trust,11/12/2020,(82000) Provisions & Kitchens,(id:42284) Surgical Oncology,NHS SUPPLY CHAIN (MAIDSTONE),id:13542894   ,  12.51
Department of Health,Guys and St Thomas NHS Foundation Trust,18/12/2020,(82800) Bedding & Linen,(id:42284) Surgical Oncology,NHS SUPPLY CHAIN (MAIDSTONE),id:13535395    ,  75.79
Department of Health,Guys and St Thomas NHS Foundation Trust,11/12/2020,(82800) Bedding & Linen,(id:42284) Surgical Oncology,NHS SUPPLY CHAIN (MAIDSTONE),id:13531623    ,  64.12
Department of Health,Guys and St Thomas NHS Foundation Trust,11/12/2020,(82800) Bedding & Linen,(id:42284) Surgical Oncology,NHS SUPPLY CHAIN (MAIDSTONE),id:13543516    ,  84.68
Department of Health,Guys and St Thomas NHS Foundation Trust,11/12/2020,(50522) Unqualified Nursing Staff,(id:42284) Surgical Oncology,MEDICSPRO LTD,id:13552721    , 499.34
Department of Health,Guys and St Thomas NHS Foundation Trust,11/12/2020,(83400) Office Equipment,(id:42284) Surgical Oncology,NHS SUPPLY CHAIN (MAIDSTONE),id:13531623   ,  83.49
Department of Health,Guys and St Thomas NHS Foundation Trust,11/12/2020,(81255) Medical Surgical Supplies & Equipment,(id:42284) Surgical Oncology,NHS SUPPLY CHAIN (MAIDSTONE),id:13543516  ,   3.12
Department of Health,Guys and St Thomas NHS Foundation Trust,04/12/2020,(81225) Medical Surgical Supplies & Equipment,(id:42471) Surgical Oncology,SEVERN HEALTHCARE TECHNOLOGIES LTD,id:13488253 , 468.00
Department of Health,Guys and St Thomas NHS Foundation Trust,18/12/2020,(82800) Bedding & Linen,(id:42470) Surgical Oncology,NHS SUPPLY CHAIN (MAIDSTONE),id:13535395    ,  13.46
Department of Health,Guys and St Thomas NHS Foundation Trust,18/12/2020,(81200) Medical Surgical Supplies & Equipment,(id:42470) Surgical Oncology,NHS SUPPLY CHAIN (MAIDSTONE),id:13535395  ,2805.36
Department of Health,Guys and St Thomas NHS Foundation Trust,11/12/2020,(81225) Medical Surgical Supplies & Equipment,(id:42470) Surgical Oncology,NHS SUPPLY CHAIN (MAIDSTONE),id:13543074  ,  19.39
Department of Health,Guys and St Thomas NHS Foundation Trust,11/12/2020,(81700) Lab Equipment Purchase,(id:42470) Surgical Oncology,NHS SUPPLY CHAIN (MAIDSTONE),id:13543074  ,  43.82
Department of Health,Guys and St Thomas NHS Foundation Trust,11/12/2020,(81225) Medical Surgical Supplies & Equipment,(id:2182419) Acute & General Medicine,NHS SUPPLY CHAIN (MAIDSTONE),id:13542894   ,  80.95
Department of Health,Guys and St Thomas NHS Foundation Trust,11/12/2020,(82700) Uniforms & Clothing,(id:2182419) Acute & General Medicine,NHS SUPPLY CHAIN (MAIDSTONE),id:13542894 , 143.12
Department of Health,Guys and St Thomas NHS Foundation Trust,11/12/2020,(82700) Uniforms & Clothing,(id:2182419) Acute & General Medicine,NHS SUPPLY CHAIN (MAIDSTONE),id:13531623 , 111.44
Department of Health,Guys and St Thomas NHS Foundation Trust,04/12/2020,(81200) Medical Surgical Supplies & Equipment,(id:2182419) Acute & General Medicine,SCC PLC)SPECIALIST COMPUTER CENTRES,id:13536682 ,  60.00
Department of Health,Guys and St Thomas NHS Foundation Trust,11/12/2020,(50522) Unqualified Nursing Staff,(id:2182419) Acute & General Medicine,MSI GROUP LTD,id:13552798, 211.10
Department of Health,Guys and St Thomas NHS Foundation Trust,18/12/2020,(81100) Dressings,(id:2182419) Acute & General Medicine,NHS SUPPLY CHAIN (MAIDSTONE),id:13535395 , 209.09
Department of Health,Guys and St Thomas NHS Foundation Trust,11/12/2020,(83400) Office Equipment,(id:2182419) Acute & General Medicine,NHS SUPPLY CHAIN (MAIDSTONE),id:13543074    , 321.08
Department of Health,Guys and St Thomas NHS Foundation Trust,11/12/2020,(83500) Furniture & Fittings,(id:2182419) Acute & General Medicine,TECHNIBLINDS LTD,id:13527958  , 583.80
Department of Health,Guys and St Thomas NHS Foundation Trust,11/12/2020,(83400) Office Equipment,(id:41860) Acute & General Medicine,NHS SUPPLY CHAIN (MAIDSTONE),id:13543750 ,  72.28
Department of Health,Guys and St Thomas NHS Foundation Trust,11/12/2020,(81100) Dressings,(id:41860) Acute & General Medicine,NHS SUPPLY CHAIN (MAIDSTONE),id:13543516   , 109.48
Department of Health,Guys and St Thomas NHS Foundation Trust,18/12/2020,(50552) Qualified Nursing Staff,(id:41860) Acute & General Medicine,MSI GROUP LTD,id:13571312    , 736.12
Department of Health,Guys and St Thomas NHS Foundation Trust,11/12/2020,(50552) Qualified Nursing Staff,(id:41860) Acute & General Medicine,MSI GROUP LTD,id:13552730    , 913.56
Department of Health,Guys and St Thomas NHS Foundation Trust,04/12/2020,(50552) Qualified Nursing Staff,(id:41860) Acute & General Medicine,CONTINENTAL NURSE LTD,id:13531104 ,2116.56
Department of Health,Guys and St Thomas NHS Foundation Trust,04/12/2020,(50552) Qualified Nursing Staff,(id:41860) Acute & General Medicine,GLOBE LOCUMS LTD,id:13531186 , 328.67
Department of Health,Guys and St Thomas NHS Foundation Trust,11/12/2020,(83410) Office Equipment,(id:41860) Acute & General Medicine,RICOH UK LTD,id:13516172  , 179.37
Department of Health,Guys and St Thomas NHS Foundation Trust,11/12/2020,(50522) Unqualified Nursing Staff,(id:41860) Acute & General Medicine,CARE PROVIDERS HEALTHCARE,id:13555978, 278.60
Department of Health,Guys and St Thomas NHS Foundation Trust,11/12/2020,(81200) Medical Surgical Supplies & Equipment,(id:41860) Acute & General Medicine,NHS SUPPLY CHAIN (MAIDSTONE),id:13543516, 585.20
Department of Health,Guys and St Thomas NHS Foundation Trust,18/12/2020,(81225) Medical Surgical Supplies & Equipment,(id:41860) Acute & General Medicine,NHS SUPPLY CHAIN (MAIDSTONE),id:13535395,  13.85
Department of Health,Guys and St Thomas NHS Foundation Trust,18/12/2020,(81700) Lab Equipment Purchase,(id:41860) Acute & General Medicine,NHS SUPPLY CHAIN (MAIDSTONE),id:13535395,  19.01
Department of Health,Guys and St Thomas NHS Foundation Trust,11/12/2020,(82800) Bedding & Linen,(id:41859) Acute & General Medicine,NHS SUPPLY CHAIN (MAIDSTONE),id:13543750  , 151.59
Department of Health,Guys and St Thomas NHS Foundation Trust,11/12/2020,(81100) Dressings,(id:41859) Acute & General Medicine,NHS SUPPLY CHAIN (MAIDSTONE),id:13543516   , 474.29
Department of Health,Guys and St Thomas NHS Foundation Trust,11/12/2020,(50522) Unqualified Nursing Staff,(id:41859) Acute & General Medicine,GLOBE LOCUMS LTD,id:13552700    , 200.81
Department of Health,Guys and St Thomas NHS Foundation Trust,18/12/2020,(81700) Lab Equipment Purchase,(id:41859) Acute & General Medicine,NHS SUPPLY CHAIN (MAIDSTONE),id:13535395,  25.37
Department of Health,Guys and St Thomas NHS Foundation Trust,11/12/2020,(82800) Bedding & Linen,(id:41858) Acute & General Medicine,NHS SUPPLY CHAIN (MAIDSTONE),id:13542894  , 194.09
Department of Health,Guys and St Thomas NHS Foundation Trust,11/12/2020,(50522) Unqualified Nursing Staff,(id:41858) Acute & General Medicine,MSI GROUP LTD,id:13552864  , 419.18
Department of Health,Guys and St Thomas NHS Foundation Trust,11/12/2020,(50522) Unqualified Nursing Staff,(id:41858) Acute & General Medicine,MSI GROUP LTD,id:13552862  , 296.28
Department of Health,Guys and St Thomas NHS Foundation Trust,04/12/2020,(50522) Unqualified Nursing Staff,(id:41858) Acute & General Medicine,GLOBE LOCUMS LTD,id:13531183    , 197.67
Department of Health,Guys and St Thomas NHS Foundation Trust,11/12/2020,(81200) Medical Surgical Supplies & Equipment,(id:41858) Acute & General Medicine,NHS SUPPLY CHAIN (MAIDSTONE),id:13543074,1151.59
Department of Health,Guys and St Thomas NHS Foundation Trust,11/12/2020,(81200) Medical Surgical Supplies & Equipment,(id:41858) Acute & General Medicine,NHS SUPPLY CHAIN (MAIDSTONE),id:13543750, 855.55
Department of Health,Guys and St Thomas NHS Foundation Trust,11/12/2020,(81700) Lab Equipment Purchase,(id:41858) Acute & General Medicine,NHS SUPPLY CHAIN (MAIDSTONE),id:13543516,  15.72
Department of Health,Guys and St Thomas NHS Foundation Trust,18/12/2020,(81700) Lab Equipment Purchase,(id:41858) Acute & General Medicine,NHS SUPPLY CHAIN (MAIDSTONE),id:13535395,  49.34
Department of Health,Guys and St Thomas NHS Foundation Trust,18/12/2020,(50552) Qualified Nursing Staff,(id:41872) Acute & General Medicine,MSI GROUP LTD,id:13571358    , 335.35
Department of Health,Guys and St Thomas NHS Foundation Trust,04/12/2020,(50552) Qualified Nursing Staff,(id:41872) Acute & General Medicine,CONTINENTAL NURSE LTD,id:13531174 ,2060.43
Department of Health,Guys and St Thomas NHS Foundation Trust,11/12/2020,(82000) Provisions & Kitchens,(id:41869) Acute & General Medicine,NHS SUPPLY CHAIN (MAIDSTONE),id:13542894 ,  60.09
Department of Health,Guys and St Thomas NHS Foundation Trust,18/12/2020,(83500) Furniture & Fittings,(id:41869) Acute & General Medicine,NHS SUPPLY CHAIN (MAIDSTONE),id:13535395  , 405.00
Department of Health,Guys and St Thomas NHS Foundation Trust,11/12/2020,(82800) Bedding & Linen,(id:41869) Acute & General Medicine,NHS SUPPLY CHAIN (MAIDSTONE),id:13543516  , 423.70
Department of Health,Guys and St Thomas NHS Foundation Trust,11/12/2020,(82800) Bedding & Linen,(id:41869) Acute & General Medicine,NHS SUPPLY CHAIN (MAIDSTONE),id:13531623  , 410.72
Department of Health,Guys and St Thomas NHS Foundation Trust,11/12/2020,(82800) Bedding & Linen,(id:41869) Acute & General Medicine,NHS SUPPLY CHAIN (MAIDSTONE),id:13543074  , 443.77
Department of Health,Guys and St Thomas NHS Foundation Trust,11/12/2020,(81200) Medical Surgical Supplies & Equipment,(id:41869) Acute & General Medicine,NHS SUPPLY CHAIN (MAIDSTONE),id:13543750,4467.22
Department of Health,Guys and St Thomas NHS Foundation Trust,22/12/2020,(81200) Medical Surgical Supplies & Equipment,(id:41869) Acute & General Medicine,GREINER BIO-ONE LTD,id:13569988    ,1192.32
Department of Health,Guys and St Thomas NHS Foundation Trust,11/12/2020,(81100) Dressings,(id:41869) Acute & General Medicine,NHS SUPPLY CHAIN (MAIDSTONE),id:13543074   , 426.37
Department of Health,Guys and St Thomas NHS Foundation Trust,11/12/2020,(83410) Office Equipment,(id:41869) Acute & General Medicine,RICOH UK LTD,id:13516172  ,3306.20
Department of Health,Guys and St Thomas NHS Foundation Trust,11/12/2020,(81225) Medical Surgical Supplies & Equipment,(id:41869) Acute & General Medicine,NHS SUPPLY CHAIN (MAIDSTONE),id:13543074, 467.34
Department of Health,Guys and St Thomas NHS Foundation Trust,11/12/2020,(81700) Lab Equipment Purchase,(id:41869) Acute & General Medicine,NHS SUPPLY CHAIN (MAIDSTONE),id:13542894,  69.03
Department of Health,Guys and St Thomas NHS Foundation Trust,11/12/2020,(81700) Lab Equipment Purchase,(id:41869) Acute & General Medicine,NHS SUPPLY CHAIN (MAIDSTONE),id:13543074, 415.04
Department of Health,Guys and St Thomas NHS Foundation Trust,11/12/2020,(82800) Bedding & Linen,(id:41868) Acute & General Medicine,NHS SUPPLY CHAIN (MAIDSTONE),id:13543750  , 155.03
Department of Health,Guys and St Thomas NHS Foundation Trust,11/12/2020,(82800) Bedding & Linen,(id:41868) Acute & General Medicine,NHS SUPPLY CHAIN (MAIDSTONE),id:13531623  , 121.54
Department of Health,Guys and St Thomas NHS Foundation Trust,11/12/2020,(81100) Dressings,(id:41868) Acute & General Medicine,NHS SUPPLY CHAIN (MAIDSTONE),id:13542894   ,  45.02
Department of Health,Guys and St Thomas NHS Foundation Trust,11/12/2020,(81200) Medical Surgical Supplies & Equipment,(id:41868) Acute & General Medicine,NHS SUPPLY CHAIN (MAIDSTONE),id:13542894, 283.16
Department of Health,Guys and St Thomas NHS Foundation Trust,11/12/2020,(89595) Non-Healthcare from Foundation Trusts,(id:41868) Acute & General Medicine,SOUTH LONDON AND MAUDSLEY NHS FOUNDATION TRUST,id:13502192  ,    14027.00
Department of Health,Guys and St Thomas NHS Foundation Trust,11/12/2020,(81100) Dressings,(id:41882) Acute & General Medicine,NHS SUPPLY CHAIN (MAIDSTONE),id:13543516   ,  12.72
Department of Health,Guys and St Thomas NHS Foundation Trust,18/12/2020,(81200) Medical Surgical Supplies & Equipment,(id:41882) Acute & General Medicine,NHS SUPPLY CHAIN (MAIDSTONE),id:13535395,  59.33
Department of Health,Guys and St Thomas NHS Foundation Trust,11/12/2020,(83400) Office Equipment,(id:41880) Acute & General Medicine,NHS SUPPLY CHAIN (MAIDSTONE),id:13543074 ,  90.51
Department of Health,Guys and St Thomas NHS Foundation Trust,11/12/2020,(83400) Office Equipment,(id:41880) Acute & General Medicine,NHS SUPPLY CHAIN (MAIDSTONE),id:13543516 ,  68.57
Department of Health,Guys and St Thomas NHS Foundation Trust,11/12/2020,(82800) Bedding & Linen,(id:41880) Acute & General Medicine,NHS SUPPLY CHAIN (MAIDSTONE),id:13543750  , 211.39
Department of Health,Guys and St Thomas NHS Foundation Trust,11/12/2020,(82800) Bedding & Linen,(id:41880) Acute & General Medicine,NHS SUPPLY CHAIN (MAIDSTONE),id:13531623  , 206.69
Department of Health,Guys and St Thomas NHS Foundation Trust,04/12/2020,(50522) Unqualified Nursing Staff,(id:41880) Acute & General Medicine,MSI GROUP LTD,id:13530979  , 258.45
Department of Health,Guys and St Thomas NHS Foundation Trust,11/12/2020,(50522) Unqualified Nursing Staff,(id:41880) Acute & General Medicine,MSI GROUP LTD,id:13552864  , 419.20
Department of Health,Guys and St Thomas NHS Foundation Trust,11/12/2020,(50522) Unqualified Nursing Staff,(id:41880) Acute & General Medicine,MSI GROUP LTD,id:13552860  , 262.34
Department of Health,Guys and St Thomas NHS Foundation Trust,11/12/2020,(81100) Dressings,(id:41879) Acute & General Medicine,NHS SUPPLY CHAIN (MAIDSTONE),id:13542894   , 381.23
Department of Health,Guys and St Thomas NHS Foundation Trust,18/12/2020,(50522) Unqualified Nursing Staff,(id:41879) Acute & General Medicine,MSI GROUP LTD,id:13571318  , 525.94
Department of Health,Guys and St Thomas NHS Foundation Trust,11/12/2020,(50522) Unqualified Nursing Staff,(id:41879) Acute & General Medicine,GLOBE LOCUMS LTD,id:13552895    , 188.91
Department of Health,Guys and St Thomas NHS Foundation Trust,11/12/2020,(50522) Unqualified Nursing Staff,(id:41879) Acute & General Medicine,CARE PROVIDERS HEALTHCARE,id:13555963, 252.06
Department of Health,Guys and St Thomas NHS Foundation Trust,11/12/2020,(50522) Unqualified Nursing Staff,(id:41879) Acute & General Medicine,MSI GROUP LTD,id:13552862  , 296.28
Department of Health,Guys and St Thomas NHS Foundation Trust,11/12/2020,(81200) Medical Surgical Supplies & Equipment,(id:41879) Acute & General Medicine,NHS SUPPLY CHAIN (MAIDSTONE),id:13543750, 983.01
Department of Health,Guys and St Thomas NHS Foundation Trust,11/12/2020,(81225) Medical Surgical Supplies & Equipment,(id:41879) Acute & General Medicine,NHS SUPPLY CHAIN (MAIDSTONE),id:13531623,   9.70
Department of Health,Guys and St Thomas NHS Foundation Trust,11/12/2020,(82000) Provisions & Kitchens,(id:41878) Acute & General Medicine,NHS SUPPLY CHAIN (MAIDSTONE),id:13531623 ,  13.20
Department of Health,Guys and St Thomas NHS Foundation Trust,11/12/2020,(83400) Office Equipment,(id:41878) Acute & General Medicine,NHS SUPPLY CHAIN (MAIDSTONE),id:13543750 , 231.25
Department of Health,Guys and St Thomas NHS Foundation Trust,11/12/2020,(82800) Bedding & Linen,(id:41878) Acute & General Medicine,NHS SUPPLY CHAIN (MAIDSTONE),id:13542894  , 262.28
Department of Health,Guys and St Thomas NHS Foundation Trust,04/12/2020,(50552) Qualified Nursing Staff,(id:41878) Acute & General Medicine,MSI GROUP LTD,id:13531097    , 357.42
Department of Health,Guys and St Thomas NHS Foundation Trust,18/12/2020,(50522) Unqualified Nursing Staff,(id:41878) Acute & General Medicine,MSI GROUP LTD,id:13571462  , 272.15
Department of Health,Guys and St Thomas NHS Foundation Trust,11/12/2020,(50522) Unqualified Nursing Staff,(id:41878) Acute & General Medicine,MSI GROUP LTD,id:13552910  , 255.97
Department of Health,Guys and St Thomas NHS Foundation Trust,18/12/2020,(81200) Medical Surgical Supplies & Equipment,(id:41878) Acute & General Medicine,NHS SUPPLY CHAIN (MAIDSTONE),id:13535395, 732.16
Department of Health,Guys and St Thomas NHS Foundation Trust,11/12/2020,(81200) Medical Surgical Supplies & Equipment,(id:41878) Acute & General Medicine,NHS SUPPLY CHAIN (MAIDSTONE),id:13542894, 621.88
Department of Health,Guys and St Thomas NHS Foundation Trust,11/12/2020,(81200) Medical Surgical Supplies & Equipment,(id:41878) Acute & General Medicine,NHS SUPPLY CHAIN (MAIDSTONE),id:13543750, 984.89
Department of Health,Guys and St Thomas NHS Foundation Trust,11/12/2020,(81225) Medical Surgical Supplies & Equipment,(id:41878) Acute & General Medicine,NHS SUPPLY CHAIN (MAIDSTONE),id:13531623,  30.24
Department of Health,Guys and St Thomas NHS Foundation Trust,11/12/2020,(50200) Consultants,(id:41876) Acute & General Medicine,KINGS COLLEGE LONDON:03529700,id:13505054,2987.41
Department of Health,Guys and St Thomas NHS Foundation Trust,11/12/2020,(81000) Surgical Appliances,(id:41876) Acute & General Medicine,TALAR MADE ORTHOTICS LTD,id:13543818  , 110.39
Department of Health,Guys and St Thomas NHS Foundation Trust,11/12/2020,(82700) Uniforms & Clothing,(id:41881) Acute & General Medicine,NHS SUPPLY CHAIN (MAIDSTONE),id:13542894   , 144.19
Department of Health,Guys and St Thomas NHS Foundation Trust,11/12/2020,(83400) Office Equipment,(id:41881) Acute & General Medicine,NHS SUPPLY CHAIN (MAIDSTONE),id:13543074 , 224.63
Department of Health,Guys and St Thomas NHS Foundation Trust,11/12/2020,(82800) Bedding & Linen,(id:41881) Acute & General Medicine,NHS SUPPLY CHAIN (MAIDSTONE),id:13531623  , 290.03
Department of Health,Guys and St Thomas NHS Foundation Trust,11/12/2020,(81100) Dressings,(id:41881) Acute & General Medicine,NHS SUPPLY CHAIN (MAIDSTONE),id:13531623   , 142.52
Department of Health,Guys and St Thomas NHS Foundation Trust,18/12/2020,(50552) Qualified Nursing Staff,(id:41881) Acute & General Medicine,CARE PROVIDERS HEALTHCARE,id:13571428  , 654.47
Department of Health,Guys and St Thomas NHS Foundation Trust,18/12/2020,(50522) Unqualified Nursing Staff,(id:41881) Acute & General Medicine,MSI GROUP LTD,id:13571232  , 208.93
Department of Health,Guys and St Thomas NHS Foundation Trust,18/12/2020,(50522) Unqualified Nursing Staff,(id:41881) Acute & General Medicine,MSI GROUP LTD,id:13575046  , 498.87
Department of Health,Guys and St Thomas NHS Foundation Trust,11/12/2020,(50522) Unqualified Nursing Staff,(id:41881) Acute & General Medicine,MSI GROUP LTD,id:13552633  , 833.09
Department of Health,Guys and St Thomas NHS Foundation Trust,11/12/2020,(50522) Unqualified Nursing Staff,(id:41881) Acute & General Medicine,MSI GROUP LTD,id:13552771  , 258.62
Department of Health,Guys and St Thomas NHS Foundation Trust,11/12/2020,(81700) Lab Equipment Purchase,(id:41881) Acute & General Medicine,NHS SUPPLY CHAIN (MAIDSTONE),id:13543516,  21.24
Department of Health,Guys and St Thomas NHS Foundation Trust,04/12/2020,(81200) Medical Surgical Supplies & Equipment,(id:42025) Dental Services,HENRY SCHEIN,id:13517657, 575.22
Department of Health,Guys and St Thomas NHS Foundation Trust,18/12/2020,(81200) Medical Surgical Supplies & Equipment,(id:42037) Dental Services,NHS SUPPLY CHAIN (MAIDSTONE),id:13535395    ,1219.49
Department of Health,Guys and St Thomas NHS Foundation Trust,11/12/2020,(83400) Office Equipment,(id:42037) Dental Services,NHS SUPPLY CHAIN (MAIDSTONE),id:13543750,  50.22
Department of Health,Guys and St Thomas NHS Foundation Trust,18/12/2020,(83400) Office Equipment,(id:42037) Dental Services,NHS SUPPLY CHAIN (MAIDSTONE),id:13535395, 344.52
Department of Health,Guys and St Thomas NHS Foundation Trust,11/12/2020,(82800) Bedding & Linen,(id:42037) Dental Services,NHS SUPPLY CHAIN (MAIDSTONE),id:13531623 , 120.60
Department of Health,Guys and St Thomas NHS Foundation Trust,11/12/2020,(82800) Bedding & Linen,(id:42007) Dental Services,NHS SUPPLY CHAIN (MAIDSTONE),id:13543074 , 117.06
Department of Health,Guys and St Thomas NHS Foundation Trust,18/12/2020,(81200) Medical Surgical Supplies & Equipment,(id:42007) Dental Services,NHS SUPPLY CHAIN (MAIDSTONE),id:13535395    ,4883.46
Department of Health,Guys and St Thomas NHS Foundation Trust,11/12/2020,(83400) Office Equipment,(id:42007) Dental Services,NHS SUPPLY CHAIN (MAIDSTONE),id:13543074,  73.28
Department of Health,Guys and St Thomas NHS Foundation Trust,11/12/2020,(81100) Dressings,(id:42005) Dental Services,NHS SUPPLY CHAIN (MAIDSTONE),id:13531623  ,   1.80
Department of Health,Guys and St Thomas NHS Foundation Trust,11/12/2020,(81100) Dressings,(id:42005) Dental Services,NHS SUPPLY CHAIN (MAIDSTONE),id:13543750  ,  58.08
Department of Health,Guys and St Thomas NHS Foundation Trust,11/12/2020,(83400) Office Equipment,(id:42005) Dental Services,NHS SUPPLY CHAIN (MAIDSTONE),id:13543516,  10.51
Department of Health,Guys and St Thomas NHS Foundation Trust,11/12/2020,(82800) Bedding & Linen,(id:42015) Dental Services,NHS SUPPLY CHAIN (MAIDSTONE),id:13543750 ,  40.20
Department of Health,Guys and St Thomas NHS Foundation Trust,11/12/2020,(81200) Medical Surgical Supplies & Equipment,(id:42028) Dental Services,NHS SUPPLY CHAIN (MAIDSTONE),id:13542894    , 539.23
Department of Health,Guys and St Thomas NHS Foundation Trust,11/12/2020,(81700) Lab Equipment Purchase,(id:42028) Dental Services,NHS SUPPLY CHAIN (MAIDSTONE),id:13543750    ,  16.18
Department of Health,Guys and St Thomas NHS Foundation Trust,11/12/2020,(81700) Lab Equipment Purchase,(id:42028) Dental Services,NHS SUPPLY CHAIN (MAIDSTONE),id:13542894    ,   3.12
Department of Health,Guys and St Thomas NHS Foundation Trust,18/12/2020,(81255) Medical Surgical Supplies & Equipment,(id:42028) Dental Services,NHS SUPPLY CHAIN (MAIDSTONE),id:13535395    ,   6.24
Department of Health,Guys and St Thomas NHS Foundation Trust,11/12/2020,(81200) Medical Surgical Supplies & Equipment,(id:42016) Dental Services,DENTSPLY IH LTD,id:13525094  , 652.50
Department of Health,Guys and St Thomas NHS Foundation Trust,04/12/2020,(81200) Medical Surgical Supplies & Equipment,(id:42016) Dental Services,NOBEL BIOCARE UK LTD,id:13488354  , 531.53
Department of Health,Guys and St Thomas NHS Foundation Trust,04/12/2020,(81200) Medical Surgical Supplies & Equipment,(id:42016) Dental Services,DENTSPLY IH LTD,id:13518169  ,1237.50
Department of Health,Guys and St Thomas NHS Foundation Trust,04/12/2020,(81200) Medical Surgical Supplies & Equipment,(id:42016) Dental Services,DENTSPLY IH LTD,id:13515116  ,1517.68
Department of Health,Guys and St Thomas NHS Foundation Trust,04/12/2020,(81200) Medical Surgical Supplies & Equipment,(id:42014) Dental Services,PLANMECA UK LTD (FORMERLY PLANDENT LTD),id:13516614   ,1226.60
Department of Health,Guys and St Thomas NHS Foundation Trust,14/12/2020,(52052) Radiographers,(id:42014) Dental Services,PRICEWATERHOUSECOOPERS LLP,id:13554560,1886.60
Department of Health,Guys and St Thomas NHS Foundation Trust,18/12/2020,(81700) Lab Equipment Purchase,(id:41996) Dental Services,NHS SUPPLY CHAIN (MAIDSTONE),id:13535395    ,  15.91
Department of Health,Guys and St Thomas NHS Foundation Trust,11/12/2020,(83400) Office Equipment,(id:41994) Dental Services,NHS SUPPLY CHAIN (MAIDSTONE),id:13531623,  15.89
Department of Health,Guys and St Thomas NHS Foundation Trust,04/12/2020,(83500) Furniture & Fittings,(id:4622420) Dental Services,NESOR EQUIPMENT CO,id:13455376    ,   113460.00
Department of Health,Guys and St Thomas NHS Foundation Trust,04/12/2020,(81200) Medical Surgical Supplies & Equipment,(id:1634433) Dental Services,HENRY SCHEIN,id:13517715   , 929.04
Department of Health,Guys and St Thomas NHS Foundation Trust,18/12/2020,(81200) Medical Surgical Supplies & Equipment,(id:1634433) Dental Services,HENRY SCHEIN,id:13562155   , 500.72
Department of Health,Guys and St Thomas NHS Foundation Trust,11/12/2020,(81200) Medical Surgical Supplies & Equipment,(id:1634433) Dental Services,HENRY SCHEIN,id:13544796   , 912.50
Department of Health,Guys and St Thomas NHS Foundation Trust,11/12/2020,(83400) Office Equipment,(id:1634429) Dental Services,NHS SUPPLY CHAIN (MAIDSTONE),id:13543074   , 199.33
Department of Health,Guys and St Thomas NHS Foundation Trust,11/12/2020,(81200) Medical Surgical Supplies & Equipment,(id:1634429) Dental Services,NHS SUPPLY CHAIN (MAIDSTONE),id:13543516  ,1472.91
Department of Health,Guys and St Thomas NHS Foundation Trust,04/12/2020,(81700) Lab Equipment Purchase,(id:641456) Specialist Ambulatory Services,ROCHE DIAGNOSTICS LTD,id:13509534, 510.24
Department of Health,Guys and St Thomas NHS Foundation Trust,11/12/2020,(81200) Medical Surgical Supplies & Equipment,(id:379409) Specialist Ambulatory Services,NHS SUPPLY CHAIN (MAIDSTONE),id:13542894   , 150.00
Department of Health,Guys and St Thomas NHS Foundation Trust,11/12/2020,(50200) Consultants,(id:379409) Specialist Ambulatory Services,KINGS COLLEGE LONDON:03529700,id:13505154   ,2301.73
Department of Health,Guys and St Thomas NHS Foundation Trust,11/12/2020,(81700) Lab Equipment Purchase,(id:4431419) Specialist Ambulatory Services,NHS SUPPLY CHAIN (MAIDSTONE),id:13543074  ,  21.00
Department of Health,Guys and St Thomas NHS Foundation Trust,11/12/2020,(81200) Medical Surgical Supplies & Equipment,(id:42193) Specialist Ambulatory Services,NHS SUPPLY CHAIN (MAIDSTONE),id:13531623    , 156.48
Department of Health,Guys and St Thomas NHS Foundation Trust,04/12/2020,(50552) Qualified Nursing Staff,(id:42193) Specialist Ambulatory Services,CONTINENTAL NURSE LTD,id:13531033,1920.75
Department of Health,Guys and St Thomas NHS Foundation Trust,18/12/2020,(50552) Qualified Nursing Staff,(id:42193) Specialist Ambulatory Services,CONTINENTAL NURSE LTD,id:13571220,1920.75
Department of Health,Guys and St Thomas NHS Foundation Trust,11/12/2020,(81200) Medical Surgical Supplies & Equipment,(id:42358) Specialist Ambulatory Services,NHS SUPPLY CHAIN (MAIDSTONE),id:13543750    , 168.00
Department of Health,Guys and St Thomas NHS Foundation Trust,11/12/2020,(81275) Medical Surgical Supplies & Equipment,(id:42358) Specialist Ambulatory Services,NHS SUPPLY CHAIN (MAIDSTONE),id:13531623    ,  34.51
Department of Health,Guys and St Thomas NHS Foundation Trust,18/12/2020,(82800) Bedding & Linen,(id:3607419) Specialist Ambulatory Services,NHS SUPPLY CHAIN (MAIDSTONE),id:13535395    ,  70.24
Department of Health,Guys and St Thomas NHS Foundation Trust,11/12/2020,(81200) Medical Surgical Supplies & Equipment,(id:3607419) Specialist Ambulatory Services,NHS SUPPLY CHAIN (MAIDSTONE),id:13531623  ,  15.07
Department of Health,Guys and St Thomas NHS Foundation Trust,11/12/2020,(83410) Office Equipment,(id:42100) Specialist Ambulatory Services,RICOH UK LTD,id:13516172 , 258.32
Department of Health,Guys and St Thomas NHS Foundation Trust,18/12/2020,(50200) Consultants,(id:42099) Specialist Ambulatory Services,ST GEORGE'S UNIVERSITY HOSPITALS NHS FOUNDATION TRUST,id:13348197,1256.85
Department of Health,Guys and St Thomas NHS Foundation Trust,11/12/2020,(83400) Office Equipment,(id:42091) Specialist Ambulatory Services,NHS SUPPLY CHAIN (MAIDSTONE),id:13543074, 233.95
Department of Health,Guys and St Thomas NHS Foundation Trust,11/12/2020,(82800) Bedding & Linen,(id:42091) Specialist Ambulatory Services,NHS SUPPLY CHAIN (MAIDSTONE),id:13543074 , 192.02
Department of Health,Guys and St Thomas NHS Foundation Trust,11/12/2020,(81100) Dressings,(id:42091) Specialist Ambulatory Services,NHS SUPPLY CHAIN (MAIDSTONE),id:13531623  ,   3.06
Department of Health,Guys and St Thomas NHS Foundation Trust,11/12/2020,(83400) Office Equipment,(id:42097) Specialist Ambulatory Services,NHS SUPPLY CHAIN (MAIDSTONE),id:13543516, 164.95
Department of Health,Guys and St Thomas NHS Foundation Trust,11/12/2020,(81100) Dressings,(id:42097) Specialist Ambulatory Services,NHS SUPPLY CHAIN (MAIDSTONE),id:13543074  , 177.42
Department of Health,Guys and St Thomas NHS Foundation Trust,11/12/2020,(81200) Medical Surgical Supplies & Equipment,(id:42097) Specialist Ambulatory Services,JOHNSON & JOHNSON MEDICAL LTD,id:13484736   ,1128.46
Department of Health,Guys and St Thomas NHS Foundation Trust,11/12/2020,(81100) Dressings,(id:42079) Specialist Ambulatory Services,NHS SUPPLY CHAIN (MAIDSTONE),id:13543074  , 251.27
Department of Health,Guys and St Thomas NHS Foundation Trust,18/12/2020,(82000) Provisions & Kitchens,(id:42079) Specialist Ambulatory Services,NHS SUPPLY CHAIN (MAIDSTONE),id:13535395, 134.81
Department of Health,Guys and St Thomas NHS Foundation Trust,11/12/2020,(82000) Provisions & Kitchens,(id:42079) Specialist Ambulatory Services,NHS SUPPLY CHAIN (MAIDSTONE),id:13542894,  31.20
Department of Health,Guys and St Thomas NHS Foundation Trust,11/12/2020,(81000) Surgical Appliances,(id:42066) Specialist Ambulatory Services,MEDI UK LTD,id:13548516    ,  19.80
Department of Health,Guys and St Thomas NHS Foundation Trust,11/12/2020,(81200) Medical Surgical Supplies & Equipment,(id:391417) Specialist Ambulatory Services,NHS SUPPLY CHAIN (MAIDSTONE),id:13543516   ,  53.17
Department of Health,Guys and St Thomas NHS Foundation Trust,11/12/2020,(81200) Medical Surgical Supplies & Equipment,(id:391417) Specialist Ambulatory Services,NHS SUPPLY CHAIN (MAIDSTONE),id:13543750   ,   2.48
Department of Health,Guys and St Thomas NHS Foundation Trust,11/12/2020,(83400) Office Equipment,(id:42064) Specialist Ambulatory Services,NHS SUPPLY CHAIN (MAIDSTONE),id:13543074,  38.81
Department of Health,Guys and St Thomas NHS Foundation Trust,11/12/2020,(83410) Office Equipment,(id:42064) Specialist Ambulatory Services,RICOH UK LTD,id:13516172 , 166.87
Department of Health,Guys and St Thomas NHS Foundation Trust,11/12/2020,(82000) Provisions & Kitchens,(id:590565) Specialist Ambulatory Services,NHS SUPPLY CHAIN (MAIDSTONE),id:13531623    , 364.05
Department of Health,Guys and St Thomas NHS Foundation Trust,18/12/2020,(84656) Establishment,(id:42057) Specialist Ambulatory Services,DICT8 LIMITED,id:13556014   ,2150.40
Department of Health,Guys and St Thomas NHS Foundation Trust,11/12/2020,(83400) Office Equipment,(id:42050) Specialist Ambulatory Services,NHS SUPPLY CHAIN (MAIDSTONE),id:13543074, 265.02
Department of Health,Guys and St Thomas NHS Foundation Trust,11/12/2020,(81200) Medical Surgical Supplies & Equipment,(id:42050) Specialist Ambulatory Services,NHS SUPPLY CHAIN (MAIDSTONE),id:13543516    , 545.48
Department of Health,Guys and St Thomas NHS Foundation Trust,11/12/2020,(81700) Lab Equipment Purchase,(id:42050) Specialist Ambulatory Services,NHS SUPPLY CHAIN (MAIDSTONE),id:13542894    ,  39.46
Department of Health,Guys and St Thomas NHS Foundation Trust,18/12/2020,(82000) Provisions & Kitchens,(id:42050) Specialist Ambulatory Services,NHS SUPPLY CHAIN (MAIDSTONE),id:13535395,  24.75
Department of Health,Guys and St Thomas NHS Foundation Trust,02/12/2020,(53682) Pharmacists,(id:42165) Pharmacy,PRICEWATERHOUSECOOPERS LLP,id:13529075    ,1832.04
Department of Health,Guys and St Thomas NHS Foundation Trust,22/12/2020,(84400) Transport,(id:4622421) Pharmacy,LLOYDS PHARMACY LTD,id:13542268 ,4683.17
Department of Health,Guys and St Thomas NHS Foundation Trust,22/12/2020,(84400) Transport,(id:4622421) Pharmacy,LLOYDS PHARMACY LTD,id:13542272 ,7300.68
Department of Health,Guys and St Thomas NHS Foundation Trust,22/12/2020,(84400) Transport,(id:4622421) Pharmacy,LLOYDS PHARMACY LTD,id:13542282 ,    12094.50
Department of Health,Guys and St Thomas NHS Foundation Trust,11/12/2020,(81200) Medical Surgical Supplies & Equipment,(id:581409) Pharmacy,NHS SUPPLY CHAIN (MAIDSTONE),id:13542894, 755.63
Department of Health,Guys and St Thomas NHS Foundation Trust,18/12/2020,(81200) Medical Surgical Supplies & Equipment,(id:581409) Pharmacy,ELIS UK LIMITED,id:13526619   ,5341.03
Department of Health,Guys and St Thomas NHS Foundation Trust,11/12/2020,(82600) Uniforms & Clothing,(id:581409) Pharmacy,NHS SUPPLY CHAIN (MAIDSTONE),id:13543750   ,  73.80
Department of Health,Guys and St Thomas NHS Foundation Trust,11/12/2020,(83400) Office Equipment,(id:581409) Pharmacy,NHS SUPPLY CHAIN (MAIDSTONE),id:13542894 ,  12.96
Department of Health,Guys and St Thomas NHS Foundation Trust,16/12/2020,(53672) Pharmacists,(id:581409) Pharmacy,PRICEWATERHOUSECOOPERS LLP,id:13569354   ,1400.59
Department of Health,Guys and St Thomas NHS Foundation Trust,02/12/2020,(53662) Pharmacists,(id:581409) Pharmacy,PRICEWATERHOUSECOOPERS LLP,id:13529075   ,1208.32
Department of Health,Guys and St Thomas NHS Foundation Trust,18/12/2020,(81200) Medical Surgical Supplies & Equipment,(id:42159) Pharmacy,DENNY BROS LTD,id:13527834, 635.95
Department of Health,Guys and St Thomas NHS Foundation Trust,11/12/2020,(81400) Medical Surgical Supplies & Equipment,(id:42159) Pharmacy,EXTRACT TECHNOLOGY LTD:26331100,id:13552495   ,2770.00
Department of Health,Guys and St Thomas NHS Foundation Trust,18/12/2020,(83400) Office Equipment,(id:42159) Pharmacy,AQUILANT DISTRIBUTION,id:13517697    , 849.72
Department of Health,Guys and St Thomas NHS Foundation Trust,11/12/2020,(84500) Establishment,(id:42160) Pharmacy,NHS SUPPLY CHAIN (MAIDSTONE),id:13543516, 366.24
Department of Health,Guys and St Thomas NHS Foundation Trust,18/12/2020,(84500) Establishment,(id:42160) Pharmacy,NHS SUPPLY CHAIN (MAIDSTONE),id:13535395, 437.04
Department of Health,Guys and St Thomas NHS Foundation Trust,11/12/2020,(81700) Lab Equipment Purchase,(id:42160) Pharmacy,NHS SUPPLY CHAIN (MAIDSTONE),id:13543516 ,  31.68
Department of Health,Guys and St Thomas NHS Foundation Trust,11/12/2020,(83410) Office Equipment,(id:42160) Pharmacy,RICOH UK LTD,id:13516172   , 151.93
Department of Health,Guys and St Thomas NHS Foundation Trust,11/12/2020,(83410) Office Equipment,(id:42178) Medical Specialties,RICOH UK LTD,id:13516172  ,  78.55
Department of Health,Guys and St Thomas NHS Foundation Trust,11/12/2020,(81000) Surgical Appliances,(id:42171) Medical Specialties,TALAR MADE ORTHOTICS LTD,id:13543818  ,  93.00
Department of Health,Guys and St Thomas NHS Foundation Trust,11/12/2020,(82800) Bedding & Linen,(id:42217) Medical Specialties,NHS SUPPLY CHAIN (MAIDSTONE),id:13543074  ,  16.73
Department of Health,Guys and St Thomas NHS Foundation Trust,11/12/2020,(81100) Dressings,(id:42217) Medical Specialties,NHS SUPPLY CHAIN (MAIDSTONE),id:13543074   ,  38.59
Department of Health,Guys and St Thomas NHS Foundation Trust,30/12/2020,(51262) Dieticians,(id:42251) Medical Specialties,PRICEWATERHOUSECOOPERS LLP,id:13589594    , 752.40
Department of Health,Guys and St Thomas NHS Foundation Trust,11/12/2020,(81200) Medical Surgical Supplies & Equipment,(id:42223) Medical Specialties,NHS SUPPLY CHAIN (MAIDSTONE),id:13543750,1565.64
Department of Health,Guys and St Thomas NHS Foundation Trust,18/12/2020,(81200) Medical Surgical Supplies & Equipment,(id:42223) Medical Specialties,ALTOMED LTD,id:13521794  , 554.40
Department of Health,Guys and St Thomas NHS Foundation Trust,18/12/2020,(81200) Medical Surgical Supplies & Equipment,(id:42223) Medical Specialties,ULTRAVISION CLPL,id:13239955  ,3530.12
Department of Health,Guys and St Thomas NHS Foundation Trust,22/12/2020,(81200) Medical Surgical Supplies & Equipment,(id:42223) Medical Specialties,BLINK MEDICAL LTD,id:13545035 , 775.20
Department of Health,Guys and St Thomas NHS Foundation Trust,11/12/2020,(83400) Office Equipment,(id:42223) Medical Specialties,NHS SUPPLY CHAIN (MAIDSTONE),id:13543516 ,  14.10
Department of Health,Guys and St Thomas NHS Foundation Trust,11/12/2020,(82000) Provisions & Kitchens,(id:42223) Medical Specialties,NHS SUPPLY CHAIN (MAIDSTONE),id:13543074 ,  36.87
Department of Health,Guys and St Thomas NHS Foundation Trust,11/12/2020,(81200) Medical Surgical Supplies & Equipment,(id:42221) Medical Specialties,ALTOMED LTD,id:13508402  ,3424.20
Department of Health,Guys and St Thomas NHS Foundation Trust,11/12/2020,(81200) Medical Surgical Supplies & Equipment,(id:42221) Medical Specialties,NHS SUPPLY CHAIN (MAIDSTONE),id:13543516,6550.74
Department of Health,Guys and St Thomas NHS Foundation Trust,04/12/2020,(81200) Medical Surgical Supplies & Equipment,(id:42221) Medical Specialties,ALCON EYE CARE UK LIMITED,id:13522595   ,3024.00
Department of Health,Guys and St Thomas NHS Foundation Trust,04/12/2020,(81200) Medical Surgical Supplies & Equipment,(id:42221) Medical Specialties,JOHNSON & JOHNSON MEDICAL LTD,id:13484760    , 831.60
Department of Health,Guys and St Thomas NHS Foundation Trust,04/12/2020,(81200) Medical Surgical Supplies & Equipment,(id:42221) Medical Specialties,AMO UK LTD,id:13526835   ,1296.00
Department of Health,Guys and St Thomas NHS Foundation Trust,18/12/2020,(81200) Medical Surgical Supplies & Equipment,(id:42221) Medical Specialties,NHS SUPPLY CHAIN (MAIDSTONE),id:13535395,3064.75
Department of Health,Guys and St Thomas NHS Foundation Trust,18/12/2020,(81200) Medical Surgical Supplies & Equipment,(id:42221) Medical Specialties,ALCON EYE CARE UK LIMITED,id:13573574   ,2016.00
Department of Health,Guys and St Thomas NHS Foundation Trust,11/12/2020,(81200) Medical Surgical Supplies & Equipment,(id:42221) Medical Specialties,AMO UK LTD,id:13526854   ,1296.00
Department of Health,Guys and St Thomas NHS Foundation Trust,11/12/2020,(81200) Medical Surgical Supplies & Equipment,(id:42221) Medical Specialties,ALCON EYE CARE UK LIMITED,id:13522679   ,1440.00
Department of Health,Guys and St Thomas NHS Foundation Trust,11/12/2020,(81100) Dressings,(id:42221) Medical Specialties,NHS SUPPLY CHAIN (MAIDSTONE),id:13542894   ,  54.72
Department of Health,Guys and St Thomas NHS Foundation Trust,11/12/2020,(81100) Dressings,(id:42221) Medical Specialties,NHS SUPPLY CHAIN (MAIDSTONE),id:13543074   ,  25.70
Department of Health,Guys and St Thomas NHS Foundation Trust,04/12/2020,(81225) Medical Surgical Supplies & Equipment,(id:42221) Medical Specialties,CARL ZEISS LTD,id:13513614    ,1200.00
Department of Health,Guys and St Thomas NHS Foundation Trust,18/12/2020,(81225) Medical Surgical Supplies & Equipment,(id:42221) Medical Specialties,CARL ZEISS LTD,id:13567014    ,1260.00
Department of Health,Guys and St Thomas NHS Foundation Trust,04/12/2020,(84500) Establishment,(id:42213) Medical Specialties,OFFICE DEPOT UK LTD,id:13472671   , 210.68
Department of Health,Guys and St Thomas NHS Foundation Trust,11/12/2020,(82800) Bedding & Linen,(id:42213) Medical Specialties,NHS SUPPLY CHAIN (MAIDSTONE),id:13542894  , 100.59
Department of Health,Guys and St Thomas NHS Foundation Trust,11/12/2020,(81100) Dressings,(id:42213) Medical Specialties,NHS SUPPLY CHAIN (MAIDSTONE),id:13543516   ,  37.80
Department of Health,Guys and St Thomas NHS Foundation Trust,11/12/2020,(81000) Surgical Appliances,(id:42213) Medical Specialties,TALAR MADE ORTHOTICS LTD,id:13538635  ,  93.00
Department of Health,Guys and St Thomas NHS Foundation Trust,11/12/2020,(81700) Lab Equipment Purchase,(id:42213) Medical Specialties,NHS SUPPLY CHAIN (MAIDSTONE),id:13543516, 539.18
Department of Health,Guys and St Thomas NHS Foundation Trust,11/12/2020,(81700) Lab Equipment Purchase,(id:42213) Medical Specialties,NHS SUPPLY CHAIN (MAIDSTONE),id:13543750,  65.04
Department of Health,Guys and St Thomas NHS Foundation Trust,11/12/2020,(83410) Office Equipment,(id:42209) Medical Specialties,RICOH UK LTD,id:13516172  ,  94.08
Department of Health,Guys and St Thomas NHS Foundation Trust,11/12/2020,(81200) Medical Surgical Supplies & Equipment,(id:42208) Medical Specialties,MEDTRONIC LTD,id:13521815, 505.09
Department of Health,Guys and St Thomas NHS Foundation Trust,18/12/2020,(81200) Medical Surgical Supplies & Equipment,(id:42208) Medical Specialties,AIR LIQUIDE (HOMECARE) LTD,id:13550754  , 520.80
Department of Health,Guys and St Thomas NHS Foundation Trust,18/12/2020,(81200) Medical Surgical Supplies & Equipment,(id:42208) Medical Specialties,MEDTRONIC LTD,id:13530274, 588.00
Department of Health,Guys and St Thomas NHS Foundation Trust,11/12/2020,(81200) Medical Surgical Supplies & Equipment,(id:42208) Medical Specialties,MEDTRONIC LTD,id:13502247, 844.85
Department of Health,Guys and St Thomas NHS Foundation Trust,11/12/2020,(81200) Medical Surgical Supplies & Equipment,(id:42208) Medical Specialties,MEDTRONIC LTD,id:13476494, 780.70
Department of Health,Guys and St Thomas NHS Foundation Trust,11/12/2020,(81200) Medical Surgical Supplies & Equipment,(id:42208) Medical Specialties,ROCHE DIAGNOSTICS LTD,id:13523102  , 770.56
Department of Health,Guys and St Thomas NHS Foundation Trust,11/12/2020,(81200) Medical Surgical Supplies & Equipment,(id:42208) Medical Specialties,DEXCOM INTERNATIONAL LTD,id:13496754    , 793.50
Department of Health,Guys and St Thomas NHS Foundation Trust,11/12/2020,(81200) Medical Surgical Supplies & Equipment,(id:42208) Medical Specialties,DEXCOM INTERNATIONAL LTD,id:13545595    , 793.50
Department of Health,Guys and St Thomas NHS Foundation Trust,11/12/2020,(81200) Medical Surgical Supplies & Equipment,(id:42208) Medical Specialties,MEDTRONIC LTD,id:13482745, 537.66
Department of Health,Guys and St Thomas NHS Foundation Trust,11/12/2020,(81200) Medical Surgical Supplies & Equipment,(id:42208) Medical Specialties,ROCHE DIABETES CARE LIMITED,id:13522067 ,-917.92
Department of Health,Guys and St Thomas NHS Foundation Trust,22/12/2020,(81200) Medical Surgical Supplies & Equipment,(id:42208) Medical Specialties,DEXCOM INTERNATIONAL LTD,id:13574434    , 793.50
Department of Health,Guys and St Thomas NHS Foundation Trust,11/12/2020,(81200) Medical Surgical Supplies & Equipment,(id:42208) Medical Specialties,MEDTRONIC LTD,id:13483976, 567.00
Department of Health,Guys and St Thomas NHS Foundation Trust,11/12/2020,(81200) Medical Surgical Supplies & Equipment,(id:42208) Medical Specialties,INSULET INTERNATIONAL LTD,id:13533534   , 712.08
Department of Health,Guys and St Thomas NHS Foundation Trust,04/12/2020,(81200) Medical Surgical Supplies & Equipment,(id:41937) Medical Specialties,TPS HEALTHCARE GROUP,id:13502534   ,1416.00
Department of Health,Guys and St Thomas NHS Foundation Trust,04/12/2020,(81200) Medical Surgical Supplies & Equipment,(id:41937) Medical Specialties,MEDTRONIC LTD,id:13515554,-668.40
Department of Health,Guys and St Thomas NHS Foundation Trust,22/12/2020,(81200) Medical Surgical Supplies & Equipment,(id:41937) Medical Specialties,TPS HEALTHCARE GROUP,id:13542575   ,2448.00
Department of Health,Guys and St Thomas NHS Foundation Trust,11/12/2020,(81100) Dressings,(id:41937) Medical Specialties,NHS SUPPLY CHAIN (MAIDSTONE),id:13543750   ,  10.50
Department of Health,Guys and St Thomas NHS Foundation Trust,11/12/2020,(81100) Dressings,(id:41937) Medical Specialties,NHS SUPPLY CHAIN (MAIDSTONE),id:13543074   ,  41.04
Department of Health,Guys and St Thomas NHS Foundation Trust,11/12/2020,(83410) Office Equipment,(id:41937) Medical Specialties,RICOH UK LTD,id:13516172  , 525.31
Department of Health,Guys and St Thomas NHS Foundation Trust,11/12/2020,(81225) Medical Surgical Supplies & Equipment,(id:41937) Medical Specialties,NHS SUPPLY CHAIN (MAIDSTONE),id:13543074,   5.99
Department of Health,Guys and St Thomas NHS Foundation Trust,11/12/2020,(81225) Medical Surgical Supplies & Equipment,(id:41937) Medical Specialties,NHS SUPPLY CHAIN (MAIDSTONE),id:13531623,   5.99
Department of Health,Guys and St Thomas NHS Foundation Trust,11/12/2020,(81700) Lab Equipment Purchase,(id:41937) Medical Specialties,NHS SUPPLY CHAIN (MAIDSTONE),id:13543750,  17.80
Department of Health,Guys and St Thomas NHS Foundation Trust,11/12/2020,(81200) Medical Surgical Supplies & Equipment,(id:42232) Therapies and Rehabilitation,NHS SUPPLY CHAIN (MAIDSTONE),id:13531623 ,1088.69
Department of Health,Guys and St Thomas NHS Foundation Trust,02/12/2020,(51862) Physiotherapists,(id:42232) Therapies and Rehabilitation,PRICEWATERHOUSECOOPERS LLP,id:13529075    ,3055.46
Department of Health,Guys and St Thomas NHS Foundation Trust,16/12/2020,(51862) Physiotherapists,(id:42232) Therapies and Rehabilitation,PRICEWATERHOUSECOOPERS LLP,id:13569354    ,4498.88
Department of Health,Guys and St Thomas NHS Foundation Trust,02/12/2020,(51862) Physiotherapists,(id:42230) Therapies and Rehabilitation,PRICEWATERHOUSECOOPERS LLP,id:13529075    ,1832.71
Department of Health,Guys and St Thomas NHS Foundation Trust,11/12/2020,(81400) Medical Surgical Supplies & Equipment,(id:4631419) Therapies and Rehabilitation,FULL SUPPORT HEALTHCARE LTD,id:13533094, 750.00
Department of Health,Guys and St Thomas NHS Foundation Trust,02/12/2020,(51472) Occupational Therapists,(id:42240) Therapies and Rehabilitation,PRICEWATERHOUSECOOPERS LLP,id:13529075  , 551.97
Department of Health,Guys and St Thomas NHS Foundation Trust,14/12/2020,(51472) Occupational Therapists,(id:42240) Therapies and Rehabilitation,PRICEWATERHOUSECOOPERS LLP,id:13554560  ,2026.09
Department of Health,Guys and St Thomas NHS Foundation Trust,30/12/2020,(51472) Occupational Therapists,(id:42240) Therapies and Rehabilitation,PRICEWATERHOUSECOOPERS LLP,id:13589594  ,3816.03
Department of Health,Guys and St Thomas NHS Foundation Trust,16/12/2020,(51472) Occupational Therapists,(id:42240) Therapies and Rehabilitation,PRICEWATERHOUSECOOPERS LLP,id:13569354  ,1127.97
Department of Health,Guys and St Thomas NHS Foundation Trust,04/12/2020,(81100) Dressings,(id:42239) Therapies and Rehabilitation,PERFORMANCE HEALTH INTERNATIONAL LTD (PATTERSON),id:13446115    ,   7.73
Department of Health,Guys and St Thomas NHS Foundation Trust,04/12/2020,(81100) Dressings,(id:42239) Therapies and Rehabilitation,PROMEDICS ORTHOPAEDICS LTD,id:13522004 ,  13.80
Department of Health,Guys and St Thomas NHS Foundation Trust,18/12/2020,(81100) Dressings,(id:42239) Therapies and Rehabilitation,NHS SUPPLY CHAIN (MAIDSTONE),id:13535395    ,1150.59
Department of Health,Guys and St Thomas NHS Foundation Trust,11/12/2020,(82800) Bedding & Linen,(id:42239) Therapies and Rehabilitation,NHS SUPPLY CHAIN (MAIDSTONE),id:13543516   ,  12.00
Department of Health,Guys and St Thomas NHS Foundation Trust,11/12/2020,(81225) Medical Surgical Supplies & Equipment,(id:42239) Therapies and Rehabilitation,NHS SUPPLY CHAIN (MAIDSTONE),id:13531623 ,  34.20
Department of Health,Guys and St Thomas NHS Foundation Trust,11/12/2020,(81225) Medical Surgical Supplies & Equipment,(id:42239) Therapies and Rehabilitation,NHS SUPPLY CHAIN (MAIDSTONE),id:13542894 ,  53.28
Department of Health,Guys and St Thomas NHS Foundation Trust,04/12/2020,(81225) Medical Surgical Supplies & Equipment,(id:42239) Therapies and Rehabilitation,PERFORMANCE HEALTH INTERNATIONAL LTD (PATTERSON),id:13446115 , 102.10
Department of Health,Guys and St Thomas NHS Foundation Trust,11/12/2020,(81200) Medical Surgical Supplies & Equipment,(id:42239) Therapies and Rehabilitation,NHS SUPPLY CHAIN (MAIDSTONE),id:13543074 ,  16.34
Department of Health,Guys and St Thomas NHS Foundation Trust,18/12/2020,(81100) Dressings,(id:590566) Therapies and Rehabilitation,NHS SUPPLY CHAIN (MAIDSTONE),id:13535395   , 558.38
Department of Health,Guys and St Thomas NHS Foundation Trust,11/12/2020,(81100) Dressings,(id:590530) Therapies and Rehabilitation,NHS SUPPLY CHAIN (MAIDSTONE),id:13543750   , 107.85
Department of Health,Guys and St Thomas NHS Foundation Trust,11/12/2020,(81100) Dressings,(id:590530) Therapies and Rehabilitation,NHS SUPPLY CHAIN (MAIDSTONE),id:13543516   ,  54.31
Department of Health,Guys and St Thomas NHS Foundation Trust,11/12/2020,(81100) Dressings,(id:590490) Therapies and Rehabilitation,NHS SUPPLY CHAIN (MAIDSTONE),id:13543516   ,  17.83
Department of Health,Guys and St Thomas NHS Foundation Trust,11/12/2020,(81100) Dressings,(id:42243) Therapies and Rehabilitation,NHS SUPPLY CHAIN (MAIDSTONE),id:13543750    ,  48.42
Department of Health,Guys and St Thomas NHS Foundation Trust,30/12/2020,(53072) Speech Therapists,(id:42248) Therapies and Rehabilitation,PRICEWATERHOUSECOOPERS LLP,id:13589594   ,1421.49
Department of Health,Guys and St Thomas NHS Foundation Trust,16/12/2020,(53062) Speech Therapists,(id:42248) Therapies and Rehabilitation,PRICEWATERHOUSECOOPERS LLP,id:13569354   ,1169.04
Department of Health,Guys and St Thomas NHS Foundation Trust,30/12/2020,(53062) Speech Therapists,(id:42248) Therapies and Rehabilitation,PRICEWATERHOUSECOOPERS LLP,id:13589594   ,1232.67
Department of Health,Guys and St Thomas NHS Foundation Trust,04/12/2020,(81200) Medical Surgical Supplies & Equipment,(id:590499) Therapies and Rehabilitation,SUNRISE MEDICAL LIMITED,id:13498954,1114.56
Department of Health,Guys and St Thomas NHS Foundation Trust,04/12/2020,(81200) Medical Surgical Supplies & Equipment,(id:590499) Therapies and Rehabilitation,SUNRISE MEDICAL LIMITED,id:13498854,1863.60
Department of Health,Guys and St Thomas NHS Foundation Trust,04/12/2020,(81225) Medical Surgical Supplies & Equipment,(id:590499) Therapies and Rehabilitation,BES HEALTHCARE LTD,id:13498814,2292.00
Department of Health,Guys and St Thomas NHS Foundation Trust,11/12/2020,(81225) Medical Surgical Supplies & Equipment,(id:590498) Therapies and Rehabilitation,JANE SAUNDERS & MANNING LTD,id:13542062 , 648.72
Department of Health,Guys and St Thomas NHS Foundation Trust,11/12/2020,(81225) Medical Surgical Supplies & Equipment,(id:590498) Therapies and Rehabilitation,JANE SAUNDERS & MANNING LTD,id:13542319 , 523.25
Department of Health,Guys and St Thomas NHS Foundation Trust,11/12/2020,(81225) Medical Surgical Supplies & Equipment,(id:590498) Therapies and Rehabilitation,JANE SAUNDERS & MANNING LTD,id:13542034 , 896.51
Department of Health,Guys and St Thomas NHS Foundation Trust,18/12/2020,(81225) Medical Surgical Supplies & Equipment,(id:590498) Therapies and Rehabilitation,JANE SAUNDERS & MANNING LTD,id:13542307 , 561.30
Department of Health,Guys and St Thomas NHS Foundation Trust,11/12/2020,(81000) Surgical Appliances,(id:590498) Therapies and Rehabilitation,REED MEDICAL LIMITED,id:13541794 , 536.80
Department of Health,Guys and St Thomas NHS Foundation Trust,18/12/2020,(89595) Non-Healthcare from Foundation Trusts,(id:590497) Therapies and Rehabilitation,KING'S COLLEGE HOSPITAL NHS FOUNDATION TRUST,id:13527760    ,    76613.67
Department of Health,Guys and St Thomas NHS Foundation Trust,22/12/2020,(81225) Medical Surgical Supplies & Equipment,(id:42242) Therapies and Rehabilitation,BROWNS MORE HAIR NOW LIMITED,id:13570055 ,5259.97
Department of Health,Guys and St Thomas NHS Foundation Trust,22/12/2020,(81225) Medical Surgical Supplies & Equipment,(id:42242) Therapies and Rehabilitation,BROWNS MORE HAIR NOW LIMITED,id:13580614 ,1514.01
Department of Health,Guys and St Thomas NHS Foundation Trust,22/12/2020,(81225) Medical Surgical Supplies & Equipment,(id:42242) Therapies and Rehabilitation,BROWNS MORE HAIR NOW LIMITED,id:13580416 ,7515.14
Department of Health,Guys and St Thomas NHS Foundation Trust,22/12/2020,(81225) Medical Surgical Supplies & Equipment,(id:42242) Therapies and Rehabilitation,BROWNS MORE HAIR NOW LIMITED,id:13580334 ,3972.29
Department of Health,Guys and St Thomas NHS Foundation Trust,22/12/2020,(81225) Medical Surgical Supplies & Equipment,(id:42242) Therapies and Rehabilitation,BROWNS MORE HAIR NOW LIMITED,id:13580436 ,8394.31
Department of Health,Guys and St Thomas NHS Foundation Trust,22/12/2020,(81225) Medical Surgical Supplies & Equipment,(id:42242) Therapies and Rehabilitation,BROWNS MORE HAIR NOW LIMITED,id:13580494 ,9957.13
Department of Health,Guys and St Thomas NHS Foundation Trust,30/12/2020,(52072) Radiographers,(id:42368) Clinical Imaging & Med Physics,PRICEWATERHOUSECOOPERS LLP,id:13589594,5139.85
Department of Health,Guys and St Thomas NHS Foundation Trust,11/12/2020,(50552) Qualified Nursing Staff,(id:42368) Clinical Imaging & Med Physics,CONTINENTAL NURSE LTD,id:13552942,1274.90
Department of Health,Guys and St Thomas NHS Foundation Trust,11/12/2020,(82800) Bedding & Linen,(id:42367) Clinical Imaging & Med Physics,NHS SUPPLY CHAIN (MAIDSTONE),id:13531623 , 324.48
Department of Health,Guys and St Thomas NHS Foundation Trust,11/12/2020,(81200) Medical Surgical Supplies & Equipment,(id:42367) Clinical Imaging & Med Physics,AQUILANT LTD,id:13542725, 540.00
Department of Health,Guys and St Thomas NHS Foundation Trust,11/12/2020,(81200) Medical Surgical Supplies & Equipment,(id:42367) Clinical Imaging & Med Physics,COOK UK LTD,id:13484127 , 924.00
Department of Health,Guys and St Thomas NHS Foundation Trust,18/12/2020,(81200) Medical Surgical Supplies & Equipment,(id:42367) Clinical Imaging & Med Physics,COOK UK LTD,id:13529382 , 194.40
Department of Health,Guys and St Thomas NHS Foundation Trust,18/12/2020,(81200) Medical Surgical Supplies & Equipment,(id:42367) Clinical Imaging & Med Physics,BARD LTD,id:13526804    , 604.80
Department of Health,Guys and St Thomas NHS Foundation Trust,18/12/2020,(81200) Medical Surgical Supplies & Equipment,(id:42367) Clinical Imaging & Med Physics,AQUILANT LTD,id:13515323,1500.00
Department of Health,Guys and St Thomas NHS Foundation Trust,22/12/2020,(81200) Medical Surgical Supplies & Equipment,(id:42367) Clinical Imaging & Med Physics,BOSTON SCIENTIFIC LTD,id:13534162 , 606.00
Department of Health,Guys and St Thomas NHS Foundation Trust,22/12/2020,(81200) Medical Surgical Supplies & Equipment,(id:42367) Clinical Imaging & Med Physics,BOSTON SCIENTIFIC LTD,id:13534152 , 705.60
Department of Health,Guys and St Thomas NHS Foundation Trust,04/12/2020,(81235) Medical Surgical Supplies & Equipment,(id:42367) Clinical Imaging & Med Physics,BOSTON SCIENTIFIC LTD,id:13478859 , 372.00
Department of Health,Guys and St Thomas NHS Foundation Trust,22/12/2020,(81230) Medical Surgical Supplies & Equipment,(id:42367) Clinical Imaging & Med Physics,BOSTON SCIENTIFIC LTD,id:13534154 , 396.00
Department of Health,Guys and St Thomas NHS Foundation Trust,11/12/2020,(81230) Medical Surgical Supplies & Equipment,(id:42367) Clinical Imaging & Med Physics,COOK UK LTD,id:13499734 , 240.00
Department of Health,Guys and St Thomas NHS Foundation Trust,11/12/2020,(81230) Medical Surgical Supplies & Equipment,(id:42367) Clinical Imaging & Med Physics,COOK UK LTD,id:13484773 , 115.20
Department of Health,Guys and St Thomas NHS Foundation Trust,22/12/2020,(81250) Medical Surgical Supplies & Equipment,(id:42367) Clinical Imaging & Med Physics,GETINGE LTD,id:13579796 ,1212.00
Department of Health,Guys and St Thomas NHS Foundation Trust,11/12/2020,(81200) Medical Surgical Supplies & Equipment,(id:42366) Clinical Imaging & Med Physics,NHS SUPPLY CHAIN (MAIDSTONE),id:13531623    ,2249.02
Department of Health,Guys and St Thomas NHS Foundation Trust,11/12/2020,(81700) Lab Equipment Purchase,(id:42366) Clinical Imaging & Med Physics,NHS SUPPLY CHAIN (MAIDSTONE),id:13531623    ,  34.21
Department of Health,Guys and St Thomas NHS Foundation Trust,11/12/2020,(81700) Lab Equipment Purchase,(id:42366) Clinical Imaging & Med Physics,NHS SUPPLY CHAIN (MAIDSTONE),id:13543074    ,  37.15
Department of Health,Guys and St Thomas NHS Foundation Trust,18/12/2020,(81225) Medical Surgical Supplies & Equipment,(id:42366) Clinical Imaging & Med Physics,NHS SUPPLY CHAIN (MAIDSTONE),id:13535395    , 110.88
Department of Health,Guys and St Thomas NHS Foundation Trust,18/12/2020,(83400) Office Equipment,(id:4187419) Clinical Imaging & Med Physics,BAYER PLC,id:13568814  ,2112.00
Department of Health,Guys and St Thomas NHS Foundation Trust,11/12/2020,(83400) Office Equipment,(id:4187419) Clinical Imaging & Med Physics,BAYER PLC,id:13542635  ,2112.00
Department of Health,Guys and St Thomas NHS Foundation Trust,04/12/2020,(81200) Medical Surgical Supplies & Equipment,(id:4187419) Clinical Imaging & Med Physics,ADVANCED ACCELERATOR APPLICATIONS (UK & IRELAND) LTD,id:13520114   ,    16690.50
Department of Health,Guys and St Thomas NHS Foundation Trust,04/12/2020,(81200) Medical Surgical Supplies & Equipment,(id:4187419) Clinical Imaging & Med Physics,ADVANCED ACCELERATOR APPLICATIONS (UK & IRELAND) LTD,id:13535424   ,    16690.50
Department of Health,Guys and St Thomas NHS Foundation Trust,18/12/2020,(81200) Medical Surgical Supplies & Equipment,(id:4187419) Clinical Imaging & Med Physics,ADVANCED ACCELERATOR APPLICATIONS (UK & IRELAND) LTD,id:13535389   ,    16690.50
Department of Health,Guys and St Thomas NHS Foundation Trust,11/12/2020,(82600) Uniforms & Clothing,(id:42372) Clinical Imaging & Med Physics,NHS SUPPLY CHAIN (MAIDSTONE),id:13542894  ,  17.68
Department of Health,Guys and St Thomas NHS Foundation Trust,11/12/2020,(81100) Dressings,(id:42372) Clinical Imaging & Med Physics,NHS SUPPLY CHAIN (MAIDSTONE),id:13531623  ,  25.61
Department of Health,Guys and St Thomas NHS Foundation Trust,18/12/2020,(81200) Medical Surgical Supplies & Equipment,(id:42372) Clinical Imaging & Med Physics,WICKHAM LABORATORIES LTD,id:13562756   ,1274.00
Department of Health,Guys and St Thomas NHS Foundation Trust,11/12/2020,(81275) Medical Surgical Supplies & Equipment,(id:42372) Clinical Imaging & Med Physics,GE HEALTHCARE (50652318),id:13526994   ,1260.00
Department of Health,Guys and St Thomas NHS Foundation Trust,04/12/2020,(81275) Medical Surgical Supplies & Equipment,(id:42372) Clinical Imaging & Med Physics,GE HEALTHCARE (50652318),id:13519434   ,1414.14
Department of Health,Guys and St Thomas NHS Foundation Trust,22/12/2020,(81400) Medical Surgical Supplies & Equipment,(id:42379) Clinical Imaging & Med Physics,TENACORE UK LTD,id:13554487  , 585.00
Department of Health,Guys and St Thomas NHS Foundation Trust,11/12/2020,(83410) Office Equipment,(id:42375) Clinical Imaging & Med Physics,RICOH UK LTD,id:13516172 , 246.51
Department of Health,Guys and St Thomas NHS Foundation Trust,11/12/2020,(81400) Medical Surgical Supplies & Equipment,(id:42373) Clinical Imaging & Med Physics,ADVANCED STERILIZATION PRODUCTS (UK) LTD,id:13545951  ,    -6700.00
Department of Health,Guys and St Thomas NHS Foundation Trust,04/12/2020,(81250) Medical Surgical Supplies & Equipment,(id:1348419) Clinical Imaging & Med Physics,AQUILANT LTD,id:13517660   ,2124.00
Department of Health,Guys and St Thomas NHS Foundation Trust,11/12/2020,(81200) Medical Surgical Supplies & Equipment,(id:1348419) Clinical Imaging & Med Physics,NHS SUPPLY CHAIN (MAIDSTONE),id:13531623  ,2044.14
Department of Health,Guys and St Thomas NHS Foundation Trust,11/12/2020,(81200) Medical Surgical Supplies & Equipment,(id:1348419) Clinical Imaging & Med Physics,NHS SUPPLY CHAIN (MAIDSTONE),id:13543516  ,2041.20
Department of Health,Guys and St Thomas NHS Foundation Trust,04/12/2020,(89440) Research and Development,(id:42255) Integrated Local Services,MARIE CURIE,id:13310080    ,    33823.00
Department of Health,Guys and St Thomas NHS Foundation Trust,11/12/2020,(83410) Office Equipment,(id:590427) Integrated Local Services,RICOH UK LTD,id:13516172, 254.86
Department of Health,Guys and St Thomas NHS Foundation Trust,11/12/2020,(81200) Medical Surgical Supplies & Equipment,(id:590579) Integrated Local Services,NHS SUPPLY CHAIN (MAIDSTONE),id:13543516   ,  11.94
Department of Health,Guys and St Thomas NHS Foundation Trust,18/12/2020,(81100) Dressings,(id:590579) Integrated Local Services,NHS SUPPLY CHAIN (MAIDSTONE),id:13535395 ,   2.04
Department of Health,Guys and St Thomas NHS Foundation Trust,11/12/2020,(83400) Office Equipment,(id:590563) Integrated Local Services,NHS SUPPLY CHAIN (MAIDSTONE),id:13543074    ,   7.70
Department of Health,Guys and St Thomas NHS Foundation Trust,30/12/2020,(53072) Speech Therapists,(id:590495) Integrated Local Services,PRICEWATERHOUSECOOPERS LLP,id:13589594,  12.52
Department of Health,Guys and St Thomas NHS Foundation Trust,14/12/2020,(51872) Physiotherapists,(id:1885422) Integrated Local Services,PRICEWATERHOUSECOOPERS LLP,id:13554560, 852.46
Department of Health,Guys and St Thomas NHS Foundation Trust,14/12/2020,(51862) Physiotherapists,(id:1371419) Integrated Local Services,PRICEWATERHOUSECOOPERS LLP,id:13554560,2736.07
Department of Health,Guys and St Thomas NHS Foundation Trust,02/12/2020,(51872) Physiotherapists,(id:1371419) Integrated Local Services,PRICEWATERHOUSECOOPERS LLP,id:13529075,1466.80
Department of Health,Guys and St Thomas NHS Foundation Trust,16/12/2020,(51462) Occupational Therapists,(id:699422) Integrated Local Services,PRICEWATERHOUSECOOPERS LLP,id:13569354    ,4097.95
Department of Health,Guys and St Thomas NHS Foundation Trust,11/12/2020,(50572) Qualified Nursing Staff,(id:699422) Integrated Local Services,MSI GROUP LTD,id:13552774  ,1236.68
Department of Health,Guys and St Thomas NHS Foundation Trust,14/12/2020,(51462) Occupational Therapists,(id:1913419) Integrated Local Services,PRICEWATERHOUSECOOPERS LLP,id:13554560   ,1771.72
Department of Health,Guys and St Thomas NHS Foundation Trust,11/12/2020,(82600) Uniforms & Clothing,(id:1913419) Integrated Local Services,NHS SUPPLY CHAIN (MAIDSTONE),id:13543074,  31.25
Department of Health,Guys and St Thomas NHS Foundation Trust,14/12/2020,(51862) Physiotherapists,(id:1888419) Integrated Local Services,PRICEWATERHOUSECOOPERS LLP,id:13554560, 963.46
Department of Health,Guys and St Thomas NHS Foundation Trust,18/12/2020,(82600) Uniforms & Clothing,(id:684420) Integrated Local Services,NHS SUPPLY CHAIN (MAIDSTONE),id:13535395 ,  16.20
Department of Health,Guys and St Thomas NHS Foundation Trust,16/12/2020,(51462) Occupational Therapists,(id:684419) Integrated Local Services,PRICEWATERHOUSECOOPERS LLP,id:13569354    ,1015.10
Department of Health,Guys and St Thomas NHS Foundation Trust,30/12/2020,(51842) Physiotherapists,(id:684419) Integrated Local Services,PRICEWATERHOUSECOOPERS LLP,id:13589594 , 790.70
Department of Health,Guys and St Thomas NHS Foundation Trust,16/12/2020,(51842) Physiotherapists,(id:684419) Integrated Local Services,PRICEWATERHOUSECOOPERS LLP,id:13569354 , 790.70
Department of Health,Guys and St Thomas NHS Foundation Trust,02/12/2020,(51872) Physiotherapists,(id:684419) Integrated Local Services,PRICEWATERHOUSECOOPERS LLP,id:13529075 ,1449.64
Department of Health,Guys and St Thomas NHS Foundation Trust,11/12/2020,(81200) Medical Surgical Supplies & Equipment,(id:590522) Integrated Local Services,NHS SUPPLY CHAIN (MAIDSTONE),id:13543516   ,  42.48
Department of Health,Guys and St Thomas NHS Foundation Trust,11/12/2020,(81200) Medical Surgical Supplies & Equipment,(id:590522) Integrated Local Services,NHS SUPPLY CHAIN (MAIDSTONE),id:13542894   ,  57.60
Department of Health,Guys and St Thomas NHS Foundation Trust,11/12/2020,(81100) Dressings,(id:590522) Integrated Local Services,NHS SUPPLY CHAIN (MAIDSTONE),id:13542894 , 327.46
Department of Health,Guys and St Thomas NHS Foundation Trust,18/12/2020,(50552) Qualified Nursing Staff,(id:590522) Integrated Local Services,NURSING 2000 LTD,id:13571187    , 823.02
Department of Health,Guys and St Thomas NHS Foundation Trust,11/12/2020,(82600) Uniforms & Clothing,(id:590522) Integrated Local Services,NHS SUPPLY CHAIN (MAIDSTONE),id:13543516 ,  27.00
Department of Health,Guys and St Thomas NHS Foundation Trust,11/12/2020,(82000) Provisions & Kitchens,(id:590521) Integrated Local Services,NHS SUPPLY CHAIN (MAIDSTONE),id:13543516    ,  15.60
Department of Health,Guys and St Thomas NHS Foundation Trust,11/12/2020,(81100) Dressings,(id:590521) Integrated Local Services,NHS SUPPLY CHAIN (MAIDSTONE),id:13543074 , 123.36
Department of Health,Guys and St Thomas NHS Foundation Trust,11/12/2020,(82600) Uniforms & Clothing,(id:590521) Integrated Local Services,NHS SUPPLY CHAIN (MAIDSTONE),id:13543074 ,   8.10
Department of Health,Guys and St Thomas NHS Foundation Trust,22/12/2020,(50552) Qualified Nursing Staff,(id:590521) Integrated Local Services,NURSING 2000 LTD,id:13552742    , 710.06
Department of Health,Guys and St Thomas NHS Foundation Trust,18/12/2020,(81200) Medical Surgical Supplies & Equipment,(id:590520) Integrated Local Services,NHS SUPPLY CHAIN (MAIDSTONE),id:13535395   ,8292.53
Department of Health,Guys and St Thomas NHS Foundation Trust,11/12/2020,(50552) Qualified Nursing Staff,(id:590520) Integrated Local Services,YOUR WORLD RECRUITMENT LIMITED(YOUR WORLD HEALTHCARE),id:13510633  , 987.75
Department of Health,Guys and St Thomas NHS Foundation Trust,11/12/2020,(82000) Provisions & Kitchens,(id:590520) Integrated Local Services,NHS SUPPLY CHAIN (MAIDSTONE),id:13543516    ,  16.08
Department of Health,Guys and St Thomas NHS Foundation Trust,11/12/2020,(81200) Medical Surgical Supplies & Equipment,(id:590473) Integrated Local Services,NHS SUPPLY CHAIN (MAIDSTONE),id:13543750   , 322.15
Department of Health,Guys and St Thomas NHS Foundation Trust,18/12/2020,(50552) Qualified Nursing Staff,(id:590473) Integrated Local Services,MSI GROUP LTD,id:13571461  ,1017.09
Department of Health,Guys and St Thomas NHS Foundation Trust,11/12/2020,(50552) Qualified Nursing Staff,(id:590473) Integrated Local Services,MSI GROUP LTD,id:13552727  ,1013.90
Department of Health,Guys and St Thomas NHS Foundation Trust,18/12/2020,(81700) Lab Equipment Purchase,(id:590473) Integrated Local Services,NHS SUPPLY CHAIN (MAIDSTONE),id:13535395   ,  19.73
Department of Health,Guys and St Thomas NHS Foundation Trust,11/12/2020,(81700) Lab Equipment Purchase,(id:590473) Integrated Local Services,NHS SUPPLY CHAIN (MAIDSTONE),id:13531623   ,  50.59
Department of Health,Guys and St Thomas NHS Foundation Trust,11/12/2020,(83400) Office Equipment,(id:590471) Integrated Local Services,NHS SUPPLY CHAIN (MAIDSTONE),id:13542894    ,  18.00
Department of Health,Guys and St Thomas NHS Foundation Trust,18/12/2020,(81200) Medical Surgical Supplies & Equipment,(id:590471) Integrated Local Services,NHS SUPPLY CHAIN (MAIDSTONE),id:13535395   , 146.07
Department of Health,Guys and St Thomas NHS Foundation Trust,18/12/2020,(82000) Provisions & Kitchens,(id:590471) Integrated Local Services,NHS SUPPLY CHAIN (MAIDSTONE),id:13535395    ,  27.65
Department of Health,Guys and St Thomas NHS Foundation Trust,11/12/2020,(81275) Medical Surgical Supplies & Equipment,(id:590471) Integrated Local Services,NHS SUPPLY CHAIN (MAIDSTONE),id:13543750   ,  11.86
Department of Health,Guys and St Thomas NHS Foundation Trust,11/12/2020,(81200) Medical Surgical Supplies & Equipment,(id:590535) Integrated Local Services,NHS SUPPLY CHAIN (MAIDSTONE),id:13531623   ,  37.06
Department of Health,Guys and St Thomas NHS Foundation Trust,22/12/2020,(81200) Medical Surgical Supplies & Equipment,(id:590481) Integrated Local Services,NHS SUPPLY CHAIN (MAIDSTONE),id:13577834   ,6216.75
Department of Health,Guys and St Thomas NHS Foundation Trust,22/12/2020,(81200) Medical Surgical Supplies & Equipment,(id:590481) Integrated Local Services,NHS SUPPLY CHAIN (MAIDSTONE),id:13577914   ,1109.94
Department of Health,Guys and St Thomas NHS Foundation Trust,22/12/2020,(81200) Medical Surgical Supplies & Equipment,(id:590481) Integrated Local Services,NHS SUPPLY CHAIN (MAIDSTONE),id:13577574   , 848.29
Department of Health,Guys and St Thomas NHS Foundation Trust,11/12/2020,(82000) Provisions & Kitchens,(id:590527) Integrated Local Services,NHS SUPPLY CHAIN (MAIDSTONE),id:13543750    ,  39.62
Department of Health,Guys and St Thomas NHS Foundation Trust,11/12/2020,(83400) Office Equipment,(id:590527) Integrated Local Services,NHS SUPPLY CHAIN (MAIDSTONE),id:13543074    ,  11.20
Department of Health,Guys and St Thomas NHS Foundation Trust,11/12/2020,(81200) Medical Surgical Supplies & Equipment,(id:590527) Integrated Local Services,NHS SUPPLY CHAIN (MAIDSTONE),id:13543074   , 428.76
Department of Health,Guys and St Thomas NHS Foundation Trust,11/12/2020,(81200) Medical Surgical Supplies & Equipment,(id:590526) Integrated Local Services,NHS SUPPLY CHAIN (MAIDSTONE),id:13542894   ,  32.63
Department of Health,Guys and St Thomas NHS Foundation Trust,11/12/2020,(83410) Office Equipment,(id:590526) Integrated Local Services,RICOH UK LTD,id:13516172, 140.76
Department of Health,Guys and St Thomas NHS Foundation Trust,18/12/2020,(80010) Drug Costs,(id:590526) Integrated Local Services,NHS SUPPLY CHAIN (MAIDSTONE),id:13535395,  19.44
Department of Health,Guys and St Thomas NHS Foundation Trust,11/12/2020,(82800) Bedding & Linen,(id:903421) Integrated Local Services,NHS SUPPLY CHAIN (MAIDSTONE),id:13543750,  20.10
Department of Health,Guys and St Thomas NHS Foundation Trust,11/12/2020,(82000) Provisions & Kitchens,(id:903421) Integrated Local Services,NHS SUPPLY CHAIN (MAIDSTONE),id:13543750    ,  12.96
Department of Health,Guys and St Thomas NHS Foundation Trust,14/12/2020,(51872) Physiotherapists,(id:903421) Integrated Local Services,PRICEWATERHOUSECOOPERS LLP,id:13554560 ,1334.07
Department of Health,Guys and St Thomas NHS Foundation Trust,22/12/2020,(50552) Qualified Nursing Staff,(id:4609419) Integrated Local Services,NURSING 2000 LTD,id:13552742   , 177.52
Department of Health,Guys and St Thomas NHS Foundation Trust,18/12/2020,(50552) Qualified Nursing Staff,(id:4263423) Integrated Local Services,NURSING 2000 LTD,id:13571454   , 439.79
Department of Health,Guys and St Thomas NHS Foundation Trust,18/12/2020,(84657) Establishment,(id:590608) Integrated Care Management,IRON MOUNTAIN (UK) LTD,id:13525018  , 720.38
Department of Health,Guys and St Thomas NHS Foundation Trust,11/12/2020,(50562) Qualified Nursing Staff,(id:42518) Evelina Womens Services,JUST NURSES (NURSCO HEALTHCARE LIMITED),id:13552695    , 680.98
Department of Health,Guys and St Thomas NHS Foundation Trust,11/12/2020,(81200) Medical Surgical Supplies & Equipment,(id:42518) Evelina Womens Services,NHS SUPPLY CHAIN (MAIDSTONE),id:13542894 ,  36.90
Department of Health,Guys and St Thomas NHS Foundation Trust,11/12/2020,(82000) Provisions & Kitchens,(id:42517) Evelina Womens Services,NHS SUPPLY CHAIN (MAIDSTONE),id:13543516  ,   5.70
Department of Health,Guys and St Thomas NHS Foundation Trust,11/12/2020,(83400) Office Equipment,(id:42517) Evelina Womens Services,PERSONAL HOMECARE PHARMACY LTD,id:13547574,    55114.32
Department of Health,Guys and St Thomas NHS Foundation Trust,11/12/2020,(81100) Dressings,(id:42517) Evelina Womens Services,NHS SUPPLY CHAIN (MAIDSTONE),id:13543750    ,  22.63
Department of Health,Guys and St Thomas NHS Foundation Trust,04/12/2020,(81100) Dressings,(id:42517) Evelina Womens Services,ELIS UK LIMITED,id:13523123  , 565.00
Department of Health,Guys and St Thomas NHS Foundation Trust,18/12/2020,(81700) Lab Equipment Purchase,(id:42517) Evelina Womens Services,NHS SUPPLY CHAIN (MAIDSTONE),id:13535395 ,  51.70
Department of Health,Guys and St Thomas NHS Foundation Trust,11/12/2020,(81700) Lab Equipment Purchase,(id:42517) Evelina Womens Services,NHS SUPPLY CHAIN (MAIDSTONE),id:13543750 ,  73.98
Department of Health,Guys and St Thomas NHS Foundation Trust,20/12/2020,(89000) Other - Training courses and conferences,(id:42514) Evelina Womens Services,ROYAL COLLEGE OF OBSTETRICIANS & GYNAECO,id:13569562 ,5000.00
Department of Health,Guys and St Thomas NHS Foundation Trust,11/12/2020,(83400) Office Equipment,(id:42513) Evelina Womens Services,NHS SUPPLY CHAIN (MAIDSTONE),id:13531623  , 164.16
Department of Health,Guys and St Thomas NHS Foundation Trust,11/12/2020,(83400) Office Equipment,(id:42513) Evelina Womens Services,NHS SUPPLY CHAIN (MAIDSTONE),id:13542894  ,  36.42
Department of Health,Guys and St Thomas NHS Foundation Trust,11/12/2020,(83400) Office Equipment,(id:42513) Evelina Womens Services,NHS SUPPLY CHAIN (MAIDSTONE),id:13543516  ,  51.48
Department of Health,Guys and St Thomas NHS Foundation Trust,11/12/2020,(81100) Dressings,(id:42513) Evelina Womens Services,NHS SUPPLY CHAIN (MAIDSTONE),id:13543074    , 415.80
Department of Health,Guys and St Thomas NHS Foundation Trust,11/12/2020,(81255) Medical Surgical Supplies & Equipment,(id:42513) Evelina Womens Services,NHS SUPPLY CHAIN (MAIDSTONE),id:13543074 ,   1.87
Department of Health,Guys and St Thomas NHS Foundation Trust,18/12/2020,(81700) Lab Equipment Purchase,(id:42513) Evelina Womens Services,NHS SUPPLY CHAIN (MAIDSTONE),id:13535395 ,   9.55
Department of Health,Guys and St Thomas NHS Foundation Trust,11/12/2020,(82800) Bedding & Linen,(id:42513) Evelina Womens Services,NHS SUPPLY CHAIN (MAIDSTONE),id:13543516   ,   1.72
Department of Health,Guys and St Thomas NHS Foundation Trust,11/12/2020,(82700) Uniforms & Clothing,(id:42513) Evelina Womens Services,NHS SUPPLY CHAIN (MAIDSTONE),id:13543750    ,  42.24
Department of Health,Guys and St Thomas NHS Foundation Trust,11/12/2020,(81225) Medical Surgical Supplies & Equipment,(id:42513) Evelina Womens Services,NHS SUPPLY CHAIN (MAIDSTONE),id:13543750 ,   4.85
Department of Health,Guys and St Thomas NHS Foundation Trust,11/12/2020,(81200) Medical Surgical Supplies & Equipment,(id:42511) Evelina Womens Services,NHS SUPPLY CHAIN (MAIDSTONE),id:13543516 ,1980.00
Department of Health,Guys and St Thomas NHS Foundation Trust,11/12/2020,(81200) Medical Surgical Supplies & Equipment,(id:42510) Evelina Womens Services,NHS SUPPLY CHAIN (MAIDSTONE),id:13543516 ,  25.30
Department of Health,Guys and St Thomas NHS Foundation Trust,11/12/2020,(81225) Medical Surgical Supplies & Equipment,(id:42510) Evelina Womens Services,NHS SUPPLY CHAIN (MAIDSTONE),id:13543516 ,   6.73
Department of Health,Guys and St Thomas NHS Foundation Trust,18/12/2020,(81225) Medical Surgical Supplies & Equipment,(id:42510) Evelina Womens Services,NHS SUPPLY CHAIN (MAIDSTONE),id:13535395 ,  13.46
Department of Health,Guys and St Thomas NHS Foundation Trust,04/12/2020,(50552) Qualified Nursing Staff,(id:42509) Evelina Womens Services,GENEVA HEALTH INTERNATIONAL LIMITED,id:13525010   ,-586.47
Department of Health,Guys and St Thomas NHS Foundation Trust,18/12/2020,(50522) Unqualified Nursing Staff,(id:42509) Evelina Womens Services,MSI GROUP LTD,id:13571391   , 244.17
Department of Health,Guys and St Thomas NHS Foundation Trust,11/12/2020,(81200) Medical Surgical Supplies & Equipment,(id:42509) Evelina Womens Services,LOCAMED LTD,id:13475835   ,2134.20
Department of Health,Guys and St Thomas NHS Foundation Trust,11/12/2020,(82000) Provisions & Kitchens,(id:42506) Evelina Womens Services,NHS SUPPLY CHAIN (MAIDSTONE),id:13531623  ,   3.67
Department of Health,Guys and St Thomas NHS Foundation Trust,11/12/2020,(82800) Bedding & Linen,(id:42506) Evelina Womens Services,NHS SUPPLY CHAIN (MAIDSTONE),id:13543074   ,  36.95
Department of Health,Guys and St Thomas NHS Foundation Trust,11/12/2020,(82800) Bedding & Linen,(id:42486) Evelina Womens Services,NHS SUPPLY CHAIN (MAIDSTONE),id:13531623   ,  20.10
Department of Health,Guys and St Thomas NHS Foundation Trust,11/12/2020,(83400) Office Equipment,(id:4314419) Evelina Womens Services,VINYL GRAPHICS LTD,id:13510497,2373.60
Department of Health,Guys and St Thomas NHS Foundation Trust,11/12/2020,(81200) Medical Surgical Supplies & Equipment,(id:42497) Evelina Womens Services,NHS SUPPLY CHAIN (MAIDSTONE),id:13543516 ,1250.40
Department of Health,Guys and St Thomas NHS Foundation Trust,11/12/2020,(81100) Dressings,(id:42496) Evelina Womens Services,NHS SUPPLY CHAIN (MAIDSTONE),id:13531623    ,   5.80
Department of Health,Guys and St Thomas NHS Foundation Trust,11/12/2020,(82000) Provisions & Kitchens,(id:42493) Evelina Womens Services,NHS SUPPLY CHAIN (MAIDSTONE),id:13542894  ,  80.08
Department of Health,Guys and St Thomas NHS Foundation Trust,11/12/2020,(83400) Office Equipment,(id:42493) Evelina Womens Services,NHS SUPPLY CHAIN (MAIDSTONE),id:13542894  ,  81.87
Department of Health,Guys and St Thomas NHS Foundation Trust,11/12/2020,(83400) Office Equipment,(id:42493) Evelina Womens Services,NHS SUPPLY CHAIN (MAIDSTONE),id:13543750  ,  82.46
Department of Health,Guys and St Thomas NHS Foundation Trust,18/12/2020,(81100) Dressings,(id:42493) Evelina Womens Services,NHS SUPPLY CHAIN (MAIDSTONE),id:13535395    , 142.11
Department of Health,Guys and St Thomas NHS Foundation Trust,18/12/2020,(81200) Medical Surgical Supplies & Equipment,(id:42493) Evelina Womens Services,NHS SUPPLY CHAIN (MAIDSTONE),id:13535395 , 656.55
Department of Health,Guys and St Thomas NHS Foundation Trust,18/12/2020,(81275) Medical Surgical Supplies & Equipment,(id:42493) Evelina Womens Services,NHS SUPPLY CHAIN (MAIDSTONE),id:13535395 ,   5.93
Department of Health,Guys and St Thomas NHS Foundation Trust,11/12/2020,(81700) Lab Equipment Purchase,(id:42493) Evelina Womens Services,NHS SUPPLY CHAIN (MAIDSTONE),id:13543074 ,  27.71
Department of Health,Guys and St Thomas NHS Foundation Trust,11/12/2020,(81700) Lab Equipment Purchase,(id:42493) Evelina Womens Services,NHS SUPPLY CHAIN (MAIDSTONE),id:13543750 ,  21.83
Department of Health,Guys and St Thomas NHS Foundation Trust,11/12/2020,(81700) Lab Equipment Purchase,(id:42493) Evelina Womens Services,NHS SUPPLY CHAIN (MAIDSTONE),id:13542894 ,  43.54
Department of Health,Guys and St Thomas NHS Foundation Trust,11/12/2020,(82000) Provisions & Kitchens,(id:42492) Evelina Womens Services,NHS SUPPLY CHAIN (MAIDSTONE),id:13543750  , 131.58
Department of Health,Guys and St Thomas NHS Foundation Trust,18/12/2020,(82000) Provisions & Kitchens,(id:42492) Evelina Womens Services,NHS SUPPLY CHAIN (MAIDSTONE),id:13535395  ,  52.54
Department of Health,Guys and St Thomas NHS Foundation Trust,11/12/2020,(81200) Medical Surgical Supplies & Equipment,(id:42492) Evelina Womens Services,NHS SUPPLY CHAIN (MAIDSTONE),id:13531623 ,4684.02
Department of Health,Guys and St Thomas NHS Foundation Trust,04/12/2020,(81200) Medical Surgical Supplies & Equipment,(id:42492) Evelina Womens Services,365 HEALTHCARE LTD,id:13518634 , 608.58
Department of Health,Guys and St Thomas NHS Foundation Trust,11/12/2020,(81225) Medical Surgical Supplies & Equipment,(id:42492) Evelina Womens Services,NHS SUPPLY CHAIN (MAIDSTONE),id:13542894 ,  55.42
Department of Health,Guys and St Thomas NHS Foundation Trust,11/12/2020,(81225) Medical Surgical Supplies & Equipment,(id:42492) Evelina Womens Services,NHS SUPPLY CHAIN (MAIDSTONE),id:13543750 , 127.09
Department of Health,Guys and St Thomas NHS Foundation Trust,18/12/2020,(81275) Medical Surgical Supplies & Equipment,(id:42492) Evelina Womens Services,NHS SUPPLY CHAIN (MAIDSTONE),id:13535395 ,   5.93
Department of Health,Guys and St Thomas NHS Foundation Trust,11/12/2020,(81275) Medical Surgical Supplies & Equipment,(id:42492) Evelina Womens Services,NHS SUPPLY CHAIN (MAIDSTONE),id:13543074 ,   5.93
Department of Health,Guys and St Thomas NHS Foundation Trust,22/12/2020,(50562) Qualified Nursing Staff,(id:42492) Evelina Womens Services,PULSE HEALTHCARE LIMITED,id:13580204    , 474.65
Department of Health,Guys and St Thomas NHS Foundation Trust,11/12/2020,(82000) Provisions & Kitchens,(id:42491) Evelina Womens Services,NHS SUPPLY CHAIN (MAIDSTONE),id:13542894  , 175.82
Department of Health,Guys and St Thomas NHS Foundation Trust,11/12/2020,(82800) Bedding & Linen,(id:42491) Evelina Womens Services,NHS SUPPLY CHAIN (MAIDSTONE),id:13543516   , 145.28
Department of Health,Guys and St Thomas NHS Foundation Trust,18/12/2020,(81275) Medical Surgical Supplies & Equipment,(id:42491) Evelina Womens Services,NHS SUPPLY CHAIN (MAIDSTONE),id:13535395 , 166.15
Department of Health,Guys and St Thomas NHS Foundation Trust,11/12/2020,(81100) Dressings,(id:42491) Evelina Womens Services,NHS SUPPLY CHAIN (MAIDSTONE),id:13542894    , 147.97
Department of Health,Guys and St Thomas NHS Foundation Trust,11/12/2020,(81700) Lab Equipment Purchase,(id:42491) Evelina Womens Services,NHS SUPPLY CHAIN (MAIDSTONE),id:13542894 ,   6.30
Department of Health,Guys and St Thomas NHS Foundation Trust,11/12/2020,(82700) Uniforms & Clothing,(id:42348) Evelina Central,NHS SUPPLY CHAIN (MAIDSTONE),id:13542894  ,  16.99
Department of Health,Guys and St Thomas NHS Foundation Trust,11/12/2020,(82700) Uniforms & Clothing,(id:42348) Evelina Central,NHS SUPPLY CHAIN (MAIDSTONE),id:13531623  , 105.94
Department of Health,Guys and St Thomas NHS Foundation Trust,11/12/2020,(82000) Provisions & Kitchens,(id:42348) Evelina Central,NHS SUPPLY CHAIN (MAIDSTONE),id:13543074,  12.58
Department of Health,Guys and St Thomas NHS Foundation Trust,18/12/2020,(84500) Establishment,(id:42348) Evelina Central,NHS SUPPLY CHAIN (MAIDSTONE),id:13535395   ,  59.88
Department of Health,Guys and St Thomas NHS Foundation Trust,11/12/2020,(81100) Dressings,(id:42348) Evelina Central,NHS SUPPLY CHAIN (MAIDSTONE),id:13543074  , 235.26
Department of Health,Guys and St Thomas NHS Foundation Trust,18/12/2020,(81100) Dressings,(id:42348) Evelina Central,NHS SUPPLY CHAIN (MAIDSTONE),id:13535395  , 231.43
Department of Health,Guys and St Thomas NHS Foundation Trust,11/12/2020,(81100) Dressings,(id:42348) Evelina Central,NXSTAGE MEDICAL UK LIMITED,id:12503162    ,1696.00
Department of Health,Guys and St Thomas NHS Foundation Trust,11/12/2020,(81255) Medical Surgical Supplies & Equipment,(id:42348) Evelina Central,NHS SUPPLY CHAIN (MAIDSTONE),id:13531623    ,   4.68
Department of Health,Guys and St Thomas NHS Foundation Trust,11/12/2020,(83400) Office Equipment,(id:42348) Evelina Central,NHS SUPPLY CHAIN (MAIDSTONE),id:13542894, 211.05
Department of Health,Guys and St Thomas NHS Foundation Trust,18/12/2020,(81225) Medical Surgical Supplies & Equipment,(id:42348) Evelina Central,NHS SUPPLY CHAIN (MAIDSTONE),id:13535395    ,  18.55
Department of Health,Guys and St Thomas NHS Foundation Trust,11/12/2020,(81700) Lab Equipment Purchase,(id:42348) Evelina Central,NHS SUPPLY CHAIN (MAIDSTONE),id:13543074    ,   7.25
Department of Health,Guys and St Thomas NHS Foundation Trust,11/12/2020,(82700) Uniforms & Clothing,(id:42331) Evelina Central,NHS SUPPLY CHAIN (MAIDSTONE),id:13543516  ,  10.85
Department of Health,Guys and St Thomas NHS Foundation Trust,11/12/2020,(82800) Bedding & Linen,(id:42331) Evelina Central,NHS SUPPLY CHAIN (MAIDSTONE),id:13542894 , 164.88
Department of Health,Guys and St Thomas NHS Foundation Trust,11/12/2020,(82800) Bedding & Linen,(id:42331) Evelina Central,NHS SUPPLY CHAIN (MAIDSTONE),id:13543750 , 111.89
Department of Health,Guys and St Thomas NHS Foundation Trust,11/12/2020,(83410) Office Equipment,(id:42331) Evelina Central,RICOH UK LTD,id:13516172 , 173.35
Department of Health,Guys and St Thomas NHS Foundation Trust,11/12/2020,(81200) Medical Surgical Supplies & Equipment,(id:42331) Evelina Central,NHS SUPPLY CHAIN (MAIDSTONE),id:13543074    ,1307.59
Department of Health,Guys and St Thomas NHS Foundation Trust,11/12/2020,(81200) Medical Surgical Supplies & Equipment,(id:42331) Evelina Central,NHS SUPPLY CHAIN (MAIDSTONE),id:13543750    ,2502.19
Department of Health,Guys and St Thomas NHS Foundation Trust,11/12/2020,(83400) Office Equipment,(id:42331) Evelina Central,NHS SUPPLY CHAIN (MAIDSTONE),id:13543750, 244.65
Department of Health,Guys and St Thomas NHS Foundation Trust,11/12/2020,(83400) Office Equipment,(id:42331) Evelina Central,NHS SUPPLY CHAIN (MAIDSTONE),id:13543516, 304.67
Department of Health,Guys and St Thomas NHS Foundation Trust,11/12/2020,(81225) Medical Surgical Supplies & Equipment,(id:42331) Evelina Central,NHS SUPPLY CHAIN (MAIDSTONE),id:13542894    ,   5.34
Department of Health,Guys and St Thomas NHS Foundation Trust,11/12/2020,(81100) Dressings,(id:42331) Evelina Central,NHS SUPPLY CHAIN (MAIDSTONE),id:13542894  , 574.34
Department of Health,Guys and St Thomas NHS Foundation Trust,11/12/2020,(81700) Lab Equipment Purchase,(id:42331) Evelina Central,NHS SUPPLY CHAIN (MAIDSTONE),id:13543074    ,  21.41
Department of Health,Guys and St Thomas NHS Foundation Trust,11/12/2020,(82000) Provisions & Kitchens,(id:42331) Evelina Central,NHS SUPPLY CHAIN (MAIDSTONE),id:13543750,  57.45
Department of Health,Guys and St Thomas NHS Foundation Trust,18/12/2020,(83500) Furniture & Fittings,(id:42325) Evelina Central,THE GARMENT RAIL COMPANY LTD,id:13561394 , 391.59
Department of Health,Guys and St Thomas NHS Foundation Trust,11/12/2020,(81200) Medical Surgical Supplies & Equipment,(id:42325) Evelina Central,NHS SUPPLY CHAIN (MAIDSTONE),id:13542894    , 329.10
Department of Health,Guys and St Thomas NHS Foundation Trust,11/12/2020,(81200) Medical Surgical Supplies & Equipment,(id:42325) Evelina Central,NHS SUPPLY CHAIN (MAIDSTONE),id:13543074    , 576.96
Department of Health,Guys and St Thomas NHS Foundation Trust,18/12/2020,(81200) Medical Surgical Supplies & Equipment,(id:42325) Evelina Central,THE GARMENT RAIL COMPANY LTD,id:13561394    , 774.57
Department of Health,Guys and St Thomas NHS Foundation Trust,11/12/2020,(86300) Healthcare from non-NHS bodies,(id:590445) Evelina Community Services,NATUS NICOLET UK LTD ( T/A OTOMETRICS UK),id:13494474 ,    54750.86
Department of Health,Guys and St Thomas NHS Foundation Trust,11/12/2020,(81225) Medical Surgical Supplies & Equipment,(id:590444) Evelina Community Services,NHS SUPPLY CHAIN (MAIDSTONE),id:13543074  , 955.55
Department of Health,Guys and St Thomas NHS Foundation Trust,18/12/2020,(81225) Medical Surgical Supplies & Equipment,(id:590444) Evelina Community Services,PHONAK UK LTD,id:13462955  ,4968.00
Department of Health,Guys and St Thomas NHS Foundation Trust,11/12/2020,(81200) Medical Surgical Supplies & Equipment,(id:590444) Evelina Community Services,NHS SUPPLY CHAIN (MAIDSTONE),id:13531623  , 228.00
Department of Health,Guys and St Thomas NHS Foundation Trust,16/12/2020,(51872) Physiotherapists,(id:590450) Evelina Community Services,PRICEWATERHOUSECOOPERS LLP,id:13569354,2337.27
Department of Health,Guys and St Thomas NHS Foundation Trust,18/12/2020,(81200) Medical Surgical Supplies & Equipment,(id:706420) Evelina Community Services,TTS GROUP LTD,id:13515346  , 823.58
Department of Health,Guys and St Thomas NHS Foundation Trust,02/12/2020,(53062) Speech Therapists,(id:590451) Evelina Community Services,PRICEWATERHOUSECOOPERS LLP,id:13529075    ,6832.94
Department of Health,Guys and St Thomas NHS Foundation Trust,11/12/2020,(81200) Medical Surgical Supplies & Equipment,(id:590449) Evelina Community Services,NHS SUPPLY CHAIN (MAIDSTONE),id:13542894  , 409.92
Department of Health,Guys and St Thomas NHS Foundation Trust,11/12/2020,(82000) Provisions & Kitchens,(id:590557) Evelina Community Services,NHS SUPPLY CHAIN (MAIDSTONE),id:13542894   ,  21.52
Department of Health,Guys and St Thomas NHS Foundation Trust,11/12/2020,(83400) Office Equipment,(id:590557) Evelina Community Services,NHS SUPPLY CHAIN (MAIDSTONE),id:13531623   ,  27.84
Department of Health,Guys and St Thomas NHS Foundation Trust,11/12/2020,(82000) Provisions & Kitchens,(id:590447) Evelina Community Services,NHS SUPPLY CHAIN (MAIDSTONE),id:13543074   ,   6.48
Department of Health,Guys and St Thomas NHS Foundation Trust,11/12/2020,(83400) Office Equipment,(id:590541) Evelina Community Services,NHS SUPPLY CHAIN (MAIDSTONE),id:13542894   ,  34.01
Department of Health,Guys and St Thomas NHS Foundation Trust,11/12/2020,(83500) Furniture & Fittings,(id:590416) Evelina Community Services,NHS SUPPLY CHAIN (MAIDSTONE),id:13542894    ,  62.40
Department of Health,Guys and St Thomas NHS Foundation Trust,11/12/2020,(82000) Provisions & Kitchens,(id:590416) Evelina Community Services,NHS SUPPLY CHAIN (MAIDSTONE),id:13543074   , 154.20
Department of Health,Guys and St Thomas NHS Foundation Trust,11/12/2020,(50562) Qualified Nursing Staff,(id:590540) Evelina Community Services,ARTHUR RAI MEDICAL SERVICES LTD,id:13552707   , 790.20
Department of Health,Guys and St Thomas NHS Foundation Trust,18/12/2020,(89595) Non-Healthcare from Foundation Trusts,(id:590441) Evelina Community Services,SOUTH LONDON AND MAUDSLEY NHS FOUNDATION TRUST,id:13501294    ,5250.00
Department of Health,Guys and St Thomas NHS Foundation Trust,11/12/2020,(81200) Medical Surgical Supplies & Equipment,(id:2356419) Evelina Medicine & Neonatology,NHS SUPPLY CHAIN (MAIDSTONE),id:13543516  , 468.72
Department of Health,Guys and St Thomas NHS Foundation Trust,11/12/2020,(81100) Dressings,(id:2356419) Evelina Medicine & Neonatology,NHS SUPPLY CHAIN (MAIDSTONE),id:13543074,  43.73
Department of Health,Guys and St Thomas NHS Foundation Trust,11/12/2020,(81700) Lab Equipment Purchase,(id:2356419) Evelina Medicine & Neonatology,NHS SUPPLY CHAIN (MAIDSTONE),id:13531623  ,  21.25
Department of Health,Guys and St Thomas NHS Foundation Trust,11/12/2020,(81700) Lab Equipment Purchase,(id:2356419) Evelina Medicine & Neonatology,NHS SUPPLY CHAIN (MAIDSTONE),id:13542894  ,  11.04
Department of Health,Guys and St Thomas NHS Foundation Trust,22/12/2020,(84500) Establishment,(id:1681419) Evelina Medicine & Neonatology,ABSOLUTE PROOF,id:13575394, 672.00
Department of Health,Guys and St Thomas NHS Foundation Trust,04/12/2020,(81200) Medical Surgical Supplies & Equipment,(id:1196422) Evelina Medicine & Neonatology,LINDSAY SURGICAL SUPPLIES LIMITED,id:13312941  ,2272.32
Department of Health,Guys and St Thomas NHS Foundation Trust,18/12/2020,(81200) Medical Surgical Supplies & Equipment,(id:42349) Evelina Medicine & Neonatology,NHS SUPPLY CHAIN (MAIDSTONE),id:13535395    ,   9.78
Department of Health,Guys and St Thomas NHS Foundation Trust,11/12/2020,(84656) Establishment,(id:42349) Evelina Medicine & Neonatology,DICT8 LIMITED,id:13542534   , 505.44
Department of Health,Guys and St Thomas NHS Foundation Trust,11/12/2020,(81275) Medical Surgical Supplies & Equipment,(id:2497419) Evelina Medicine & Neonatology,NHS SUPPLY CHAIN (MAIDSTONE),id:13531623  ,  94.20
Department of Health,Guys and St Thomas NHS Foundation Trust,11/12/2020,(81200) Medical Surgical Supplies & Equipment,(id:436409) Evelina Medicine & Neonatology,NHS SUPPLY CHAIN (MAIDSTONE),id:13543516   ,  94.50
Department of Health,Guys and St Thomas NHS Foundation Trust,11/12/2020,(81200) Medical Surgical Supplies & Equipment,(id:42335) Evelina Medicine & Neonatology,NHS SUPPLY CHAIN (MAIDSTONE),id:13543516    ,    57626.69
Department of Health,Guys and St Thomas NHS Foundation Trust,11/12/2020,(83410) Office Equipment,(id:42335) Evelina Medicine & Neonatology,RICOH UK LTD,id:13516172 , 165.09
Department of Health,Guys and St Thomas NHS Foundation Trust,11/12/2020,(81000) Surgical Appliances,(id:42335) Evelina Medicine & Neonatology,TALAR MADE ORTHOTICS LTD,id:13543865 ,  46.50
Department of Health,Guys and St Thomas NHS Foundation Trust,11/12/2020,(81000) Surgical Appliances,(id:42335) Evelina Medicine & Neonatology,TALAR MADE ORTHOTICS LTD,id:13543818 ,  85.73
Department of Health,Guys and St Thomas NHS Foundation Trust,22/12/2020,(81000) Surgical Appliances,(id:42335) Evelina Medicine & Neonatology,JOHN FLORENCE LTD,id:13580074   , 967.64
Department of Health,Guys and St Thomas NHS Foundation Trust,11/12/2020,(81100) Dressings,(id:42333) Evelina Medicine & Neonatology,NHS SUPPLY CHAIN (MAIDSTONE),id:13543074  ,   2.21
Department of Health,Guys and St Thomas NHS Foundation Trust,11/12/2020,(82700) Uniforms & Clothing,(id:42327) Evelina Medicine & Neonatology,NHS SUPPLY CHAIN (MAIDSTONE),id:13542894  ,  36.84
Department of Health,Guys and St Thomas NHS Foundation Trust,18/12/2020,(81100) Dressings,(id:42327) Evelina Medicine & Neonatology,NHS SUPPLY CHAIN (MAIDSTONE),id:13535395  , 404.15
Department of Health,Guys and St Thomas NHS Foundation Trust,11/12/2020,(81200) Medical Surgical Supplies & Equipment,(id:42327) Evelina Medicine & Neonatology,NHS SUPPLY CHAIN (MAIDSTONE),id:13531623    ,9256.51
Department of Health,Guys and St Thomas NHS Foundation Trust,11/12/2020,(81200) Medical Surgical Supplies & Equipment,(id:42327) Evelina Medicine & Neonatology,VYGON (UK) LTD,id:13499682   , 355.20
Department of Health,Guys and St Thomas NHS Foundation Trust,18/12/2020,(81200) Medical Surgical Supplies & Equipment,(id:42327) Evelina Medicine & Neonatology,NHS SUPPLY CHAIN (MAIDSTONE),id:13535395    ,9770.34
Department of Health,Guys and St Thomas NHS Foundation Trust,18/12/2020,(81200) Medical Surgical Supplies & Equipment,(id:42327) Evelina Medicine & Neonatology,VYGON (UK) LTD,id:13526801   , 490.02
Department of Health,Guys and St Thomas NHS Foundation Trust,18/12/2020,(81230) Medical Surgical Supplies & Equipment,(id:42327) Evelina Medicine & Neonatology,NHS SUPPLY CHAIN (MAIDSTONE),id:13535395    , 950.40
Department of Health,Guys and St Thomas NHS Foundation Trust,18/12/2020,(81700) Lab Equipment Purchase,(id:42327) Evelina Medicine & Neonatology,NHS SUPPLY CHAIN (MAIDSTONE),id:13535395    ,  78.29
Department of Health,Guys and St Thomas NHS Foundation Trust,18/12/2020,(80010) Drug Costs,(id:1196420) Evelina Medicine & Neonatology,DEXCOM INTERNATIONAL LTD,id:13557059   , 793.50
Department of Health,Guys and St Thomas NHS Foundation Trust,18/12/2020,(80010) Drug Costs,(id:1196420) Evelina Medicine & Neonatology,DEXCOM INTERNATIONAL LTD,id:13557062   , 793.50
Department of Health,Guys and St Thomas NHS Foundation Trust,11/12/2020,(81200) Medical Surgical Supplies & Equipment,(id:2982419) Evelina Medicine & Neonatology,VYAIRE UK 236 LTD,id:13452594   ,4311.60
Department of Health,Guys and St Thomas NHS Foundation Trust,22/12/2020,(81200) Medical Surgical Supplies & Equipment,(id:2982419) Evelina Medicine & Neonatology,HENLEYS MEDICAL SUPPLIES LTD,id:13544963  , 774.00
Department of Health,Guys and St Thomas NHS Foundation Trust,18/12/2020,(50552) Qualified Nursing Staff,(id:2496419) Evelina Medicine & Neonatology,CONTINENTAL NURSE LTD,id:13571219   ,1290.07
Department of Health,Guys and St Thomas NHS Foundation Trust,11/12/2020,(81200) Medical Surgical Supplies & Equipment,(id:2496419) Evelina Medicine & Neonatology,NHS SUPPLY CHAIN (MAIDSTONE),id:13543516  , 284.46
Department of Health,Guys and St Thomas NHS Foundation Trust,11/12/2020,(83400) Office Equipment,(id:2496419) Evelina Medicine & Neonatology,NHS SUPPLY CHAIN (MAIDSTONE),id:13542894   ,  84.09
Department of Health,Guys and St Thomas NHS Foundation Trust,11/12/2020,(82800) Bedding & Linen,(id:2496419) Evelina Medicine & Neonatology,NHS SUPPLY CHAIN (MAIDSTONE),id:13542894    ,  26.29
Department of Health,Guys and St Thomas NHS Foundation Trust,11/12/2020,(82000) Provisions & Kitchens,(id:2496419) Evelina Medicine & Neonatology,NHS SUPPLY CHAIN (MAIDSTONE),id:13542894   ,  10.85
Department of Health,Guys and St Thomas NHS Foundation Trust,04/12/2020,(50552) Qualified Nursing Staff,(id:41874) Evelina Medicine & Neonatology,CONTINENTAL NURSE LTD,id:13531106,2414.12
Department of Health,Guys and St Thomas NHS Foundation Trust,11/12/2020,(81700) Lab Equipment Purchase,(id:41874) Evelina Medicine & Neonatology,NHS SUPPLY CHAIN (MAIDSTONE),id:13543750    ,  18.96
Department of Health,Guys and St Thomas NHS Foundation Trust,11/12/2020,(83400) Office Equipment,(id:2495419) Evelina Medicine & Neonatology,NHS SUPPLY CHAIN (MAIDSTONE),id:13542894   , 235.51
Department of Health,Guys and St Thomas NHS Foundation Trust,04/12/2020,(50552) Qualified Nursing Staff,(id:2495419) Evelina Medicine & Neonatology,GLOBE LOCUMS LTD,id:13531060   , 311.04
Department of Health,Guys and St Thomas NHS Foundation Trust,16/12/2020,(81200) Medical Surgical Supplies & Equipment,(id:42326) Evelina Medicine & Neonatology,RESONANCE HEALTH ANALYSIS SERVICES PTY LTD,id:12740071, 648.00
Department of Health,Guys and St Thomas NHS Foundation Trust,11/12/2020,(83400) Office Equipment,(id:42323) Evelina Medicine & Neonatology,NHS SUPPLY CHAIN (MAIDSTONE),id:13543516,  17.03
Department of Health,Guys and St Thomas NHS Foundation Trust,11/12/2020,(81100) Dressings,(id:42323) Evelina Medicine & Neonatology,NHS SUPPLY CHAIN (MAIDSTONE),id:13542894  ,   5.81
Department of Health,Guys and St Thomas NHS Foundation Trust,11/12/2020,(81100) Dressings,(id:42323) Evelina Medicine & Neonatology,NHS SUPPLY CHAIN (MAIDSTONE),id:13543750  ,  93.33
Department of Health,Guys and St Thomas NHS Foundation Trust,11/12/2020,(82800) Bedding & Linen,(id:42323) Evelina Medicine & Neonatology,NHS SUPPLY CHAIN (MAIDSTONE),id:13543074 ,  64.07
Department of Health,Guys and St Thomas NHS Foundation Trust,11/12/2020,(82800) Bedding & Linen,(id:42315) Evelina Medicine & Neonatology,NHS SUPPLY CHAIN (MAIDSTONE),id:13543516 ,  74.56
Department of Health,Guys and St Thomas NHS Foundation Trust,18/12/2020,(82800) Bedding & Linen,(id:42315) Evelina Medicine & Neonatology,NHS SUPPLY CHAIN (MAIDSTONE),id:13535395 ,  23.41
Department of Health,Guys and St Thomas NHS Foundation Trust,11/12/2020,(81200) Medical Surgical Supplies & Equipment,(id:42315) Evelina Medicine & Neonatology,NHS SUPPLY CHAIN (MAIDSTONE),id:13542894    , 817.91
Department of Health,Guys and St Thomas NHS Foundation Trust,18/12/2020,(83400) Office Equipment,(id:42315) Evelina Medicine & Neonatology,NHS SUPPLY CHAIN (MAIDSTONE),id:13535395,  40.97
Department of Health,Guys and St Thomas NHS Foundation Trust,11/12/2020,(83400) Office Equipment,(id:42315) Evelina Medicine & Neonatology,NHS SUPPLY CHAIN (MAIDSTONE),id:13531623,  94.03
Department of Health,Guys and St Thomas NHS Foundation Trust,11/12/2020,(83400) Office Equipment,(id:42059) Evelina Medicine & Neonatology,NHS SUPPLY CHAIN (MAIDSTONE),id:13543750,    .72
Department of Health,Guys and St Thomas NHS Foundation Trust,11/12/2020,(81700) Lab Equipment Purchase,(id:4082419) Evelina Surgery Theatres & PICU,NHS SUPPLY CHAIN (MAIDSTONE),id:13543750 ,   5.93
Department of Health,Guys and St Thomas NHS Foundation Trust,11/12/2020,(82000) Provisions & Kitchens,(id:4082419) Evelina Surgery Theatres & PICU,NHS SUPPLY CHAIN (MAIDSTONE),id:13543074  ,  26.04
Department of Health,Guys and St Thomas NHS Foundation Trust,11/12/2020,(82000) Provisions & Kitchens,(id:4082419) Evelina Surgery Theatres & PICU,NHS SUPPLY CHAIN (MAIDSTONE),id:13531623  ,  19.01
Department of Health,Guys and St Thomas NHS Foundation Trust,18/12/2020,(82800) Bedding & Linen,(id:4082419) Evelina Surgery Theatres & PICU,NHS SUPPLY CHAIN (MAIDSTONE),id:13535395   ,  46.82
Department of Health,Guys and St Thomas NHS Foundation Trust,04/12/2020,(81200) Medical Surgical Supplies & Equipment,(id:42312) Evelina Surgery Theatres & PICU,WL GORE & ASSOCIATES (UK) LTD,id:13509583  ,1818.00
Department of Health,Guys and St Thomas NHS Foundation Trust,18/12/2020,(81200) Medical Surgical Supplies & Equipment,(id:42312) Evelina Surgery Theatres & PICU,KIMAL PLC,id:13563557  , 734.44
Department of Health,Guys and St Thomas NHS Foundation Trust,18/12/2020,(81200) Medical Surgical Supplies & Equipment,(id:42312) Evelina Surgery Theatres & PICU,JOHNSON & JOHNSON MEDICAL LTD,id:13529358  ,    12000.00
Department of Health,Guys and St Thomas NHS Foundation Trust,18/12/2020,(81240) Medical Surgical Supplies & Equipment,(id:42312) Evelina Surgery Theatres & PICU,MEDTRONIC LTD,id:13571531   ,    11982.00
Department of Health,Guys and St Thomas NHS Foundation Trust,11/12/2020,(81700) Lab Equipment Purchase,(id:42312) Evelina Surgery Theatres & PICU,NHS SUPPLY CHAIN (MAIDSTONE),id:13543516   ,  37.20
Department of Health,Guys and St Thomas NHS Foundation Trust,18/12/2020,(84656) Establishment,(id:42312) Evelina Surgery Theatres & PICU,DICT8 LIMITED,id:13535756  ,2984.04
Department of Health,Guys and St Thomas NHS Foundation Trust,18/12/2020,(81235) Medical Surgical Supplies & Equipment,(id:42312) Evelina Surgery Theatres & PICU,BARD LTD,id:13534255   , 722.26
Department of Health,Guys and St Thomas NHS Foundation Trust,11/12/2020,(81235) Medical Surgical Supplies & Equipment,(id:42312) Evelina Surgery Theatres & PICU,BARD LTD,id:13506696   , 722.26
Department of Health,Guys and St Thomas NHS Foundation Trust,11/12/2020,(81230) Medical Surgical Supplies & Equipment,(id:42312) Evelina Surgery Theatres & PICU,TELEFLEX MEDICAL,id:13494612, 564.00
Department of Health,Guys and St Thomas NHS Foundation Trust,11/12/2020,(81230) Medical Surgical Supplies & Equipment,(id:42312) Evelina Surgery Theatres & PICU,NHS SUPPLY CHAIN (MAIDSTONE),id:13531623   , 624.00
Department of Health,Guys and St Thomas NHS Foundation Trust,11/12/2020,(81200) Medical Surgical Supplies & Equipment,(id:42351) Evelina Surgery Theatres & PICU,NHS SUPPLY CHAIN (MAIDSTONE),id:13543074   ,  55.79
Department of Health,Guys and St Thomas NHS Foundation Trust,11/12/2020,(82600) Uniforms & Clothing,(id:41914) Evelina Surgery Theatres & PICU,NHS SUPPLY CHAIN (MAIDSTONE),id:13531623 ,  44.28
Department of Health,Guys and St Thomas NHS Foundation Trust,11/12/2020,(81200) Medical Surgical Supplies & Equipment,(id:41914) Evelina Surgery Theatres & PICU,JOHNSON & JOHNSON MEDICAL LTD,id:13488993  , 310.96
Department of Health,Guys and St Thomas NHS Foundation Trust,04/12/2020,(50562) Qualified Nursing Staff,(id:41914) Evelina Surgery Theatres & PICU,PULSE HEALTHCARE LIMITED,id:13536098 , 551.44
Department of Health,Guys and St Thomas NHS Foundation Trust,11/12/2020,(81200) Medical Surgical Supplies & Equipment,(id:41910) Evelina Surgery Theatres & PICU,NHS SUPPLY CHAIN (MAIDSTONE),id:13531623   ,2817.90
Department of Health,Guys and St Thomas NHS Foundation Trust,18/12/2020,(81200) Medical Surgical Supplies & Equipment,(id:1196421) Evelina Surgery Theatres & PICU,NUVASIVE UK LTD,id:13553015    ,    14126.53
Department of Health,Guys and St Thomas NHS Foundation Trust,18/12/2020,(81200) Medical Surgical Supplies & Equipment,(id:1196421) Evelina Surgery Theatres & PICU,NUVASIVE UK LTD,id:13500536    ,9812.40
Department of Health,Guys and St Thomas NHS Foundation Trust,04/12/2020,(81200) Medical Surgical Supplies & Equipment,(id:1196421) Evelina Surgery Theatres & PICU,NUVASIVE UK LTD,id:13517235    ,    11362.80
Department of Health,Guys and St Thomas NHS Foundation Trust,11/12/2020,(81200) Medical Surgical Supplies & Equipment,(id:1196421) Evelina Surgery Theatres & PICU,APC CARDIOVASCULAR LTD,id:13538214  ,6219.78
Department of Health,Guys and St Thomas NHS Foundation Trust,11/12/2020,(81100) Dressings,(id:2498419) Evelina Surgery Theatres & PICU,NHS SUPPLY CHAIN (MAIDSTONE),id:13531623    , 123.48
Department of Health,Guys and St Thomas NHS Foundation Trust,18/12/2020,(81100) Dressings,(id:2498419) Evelina Surgery Theatres & PICU,NHS SUPPLY CHAIN (MAIDSTONE),id:13535395    ,  45.36
Department of Health,Guys and St Thomas NHS Foundation Trust,11/12/2020,(81225) Medical Surgical Supplies & Equipment,(id:2498419) Evelina Surgery Theatres & PICU,NHS SUPPLY CHAIN (MAIDSTONE),id:13543074 ,  45.90
Department of Health,Guys and St Thomas NHS Foundation Trust,11/12/2020,(81700) Lab Equipment Purchase,(id:2498419) Evelina Surgery Theatres & PICU,NHS SUPPLY CHAIN (MAIDSTONE),id:13542894 ,  51.86
Department of Health,Guys and St Thomas NHS Foundation Trust,04/12/2020,(50552) Qualified Nursing Staff,(id:2498419) Evelina Surgery Theatres & PICU,CONTINENTAL NURSE LTD,id:13531100  ,2409.28
Department of Health,Guys and St Thomas NHS Foundation Trust,11/12/2020,(81100) Dressings,(id:431409) Evelina Surgery Theatres & PICU,NHS SUPPLY CHAIN (MAIDSTONE),id:13531623, 161.47
Department of Health,Guys and St Thomas NHS Foundation Trust,23/12/2020,(81000) Surgical Appliances,(id:431409) Evelina Surgery Theatres & PICU,JOHN FLORENCE LTD,id:13580914 , 842.57
Department of Health,Guys and St Thomas NHS Foundation Trust,23/12/2020,(81000) Surgical Appliances,(id:431409) Evelina Surgery Theatres & PICU,JOHN FLORENCE LTD,id:13580097 , 840.04
Department of Health,Guys and St Thomas NHS Foundation Trust,23/12/2020,(81000) Surgical Appliances,(id:431409) Evelina Surgery Theatres & PICU,JOHN FLORENCE LTD,id:13580916 ,1104.67
Department of Health,Guys and St Thomas NHS Foundation Trust,18/12/2020,(84656) Establishment,(id:431409) Evelina Surgery Theatres & PICU,DICT8 LIMITED,id:13556458 ,2232.48
Department of Health,Guys and St Thomas NHS Foundation Trust,11/12/2020,(81200) Medical Surgical Supplies & Equipment,(id:468410) Evelina Surgery Theatres & PICU,NHS SUPPLY CHAIN (MAIDSTONE),id:13542894  , 401.00
Department of Health,Guys and St Thomas NHS Foundation Trust,11/12/2020,(81200) Medical Surgical Supplies & Equipment,(id:468409) Evelina Surgery Theatres & PICU,NHS SUPPLY CHAIN (MAIDSTONE),id:13531623  ,1385.52
Department of Health,Guys and St Thomas NHS Foundation Trust,11/12/2020,(81200) Medical Surgical Supplies & Equipment,(id:468409) Evelina Surgery Theatres & PICU,KARL STORZ ENDOSCOPY UK LTD,id:13548294   ,1739.40
Department of Health,Guys and St Thomas NHS Foundation Trust,04/12/2020,(81200) Medical Surgical Supplies & Equipment,(id:468409) Evelina Surgery Theatres & PICU,T J SMITH & NEPHEW LTD,id:13510526   ,1161.41
Department of Health,Guys and St Thomas NHS Foundation Trust,11/12/2020,(82800) Bedding & Linen,(id:468409) Evelina Surgery Theatres & PICU,NHS SUPPLY CHAIN (MAIDSTONE),id:13543516    ,  46.82
Department of Health,Guys and St Thomas NHS Foundation Trust,11/12/2020,(81200) Medical Surgical Supplies & Equipment,(id:2495421) Evelina Surgery Theatres & PICU,NHS SUPPLY CHAIN (MAIDSTONE),id:13543516 , 184.19
Department of Health,Guys and St Thomas NHS Foundation Trust,11/12/2020,(81235) Medical Surgical Supplies & Equipment,(id:42347) Evelina Surgery Theatres & PICU,NHS SUPPLY CHAIN (MAIDSTONE),id:13542894   , 129.60
Department of Health,Guys and St Thomas NHS Foundation Trust,11/12/2020,(81200) Medical Surgical Supplies & Equipment,(id:42347) Evelina Surgery Theatres & PICU,NHS SUPPLY CHAIN (MAIDSTONE),id:13542894   ,1285.78
Department of Health,Guys and St Thomas NHS Foundation Trust,11/12/2020,(81200) Medical Surgical Supplies & Equipment,(id:42347) Evelina Surgery Theatres & PICU,NHS SUPPLY CHAIN (MAIDSTONE),id:13543074   , 453.57
Department of Health,Guys and St Thomas NHS Foundation Trust,11/12/2020,(81200) Medical Surgical Supplies & Equipment,(id:42347) Evelina Surgery Theatres & PICU,JOHNSON & JOHNSON MEDICAL LTD,id:13499703  , 624.10
Department of Health,Guys and St Thomas NHS Foundation Trust,18/12/2020,(81200) Medical Surgical Supplies & Equipment,(id:42347) Evelina Surgery Theatres & PICU,NHS SUPPLY CHAIN (MAIDSTONE),id:13535395   ,1229.02
Department of Health,Guys and St Thomas NHS Foundation Trust,11/12/2020,(82700) Uniforms & Clothing,(id:42339) Evelina Surgery Theatres & PICU,NHS SUPPLY CHAIN (MAIDSTONE),id:13531623 ,  71.87
Department of Health,Guys and St Thomas NHS Foundation Trust,11/12/2020,(81255) Medical Surgical Supplies & Equipment,(id:42339) Evelina Surgery Theatres & PICU,NHS SUPPLY CHAIN (MAIDSTONE),id:13543516   ,   9.36
Department of Health,Guys and St Thomas NHS Foundation Trust,11/12/2020,(81255) Medical Surgical Supplies & Equipment,(id:42339) Evelina Surgery Theatres & PICU,NHS SUPPLY CHAIN (MAIDSTONE),id:13542894   ,  14.04
Department of Health,Guys and St Thomas NHS Foundation Trust,04/12/2020,(81200) Medical Surgical Supplies & Equipment,(id:42339) Evelina Surgery Theatres & PICU,VYGON (UK) LTD,id:13484700  , 771.84
Department of Health,Guys and St Thomas NHS Foundation Trust,18/12/2020,(81200) Medical Surgical Supplies & Equipment,(id:42339) Evelina Surgery Theatres & PICU,GETINGE LTD,id:13534854,1569.60
Department of Health,Guys and St Thomas NHS Foundation Trust,04/12/2020,(50471) Medical Training Grades,(id:42339) Evelina Surgery Theatres & PICU,QUEEN MARY UNIVERSITY OF LONDON,id:13502179    ,1764.27
Department of Health,Guys and St Thomas NHS Foundation Trust,11/12/2020,(81230) Medical Surgical Supplies & Equipment,(id:42339) Evelina Surgery Theatres & PICU,COOK UK LTD,id:13478939, 774.00
Department of Health,Guys and St Thomas NHS Foundation Trust,11/12/2020,(81225) Medical Surgical Supplies & Equipment,(id:42339) Evelina Surgery Theatres & PICU,NHS SUPPLY CHAIN (MAIDSTONE),id:13543074   ,  36.84
Department of Health,Guys and St Thomas NHS Foundation Trust,11/12/2020,(81700) Lab Equipment Purchase,(id:42339) Evelina Surgery Theatres & PICU,NHS SUPPLY CHAIN (MAIDSTONE),id:13542894   ,  24.89
Department of Health,Guys and St Thomas NHS Foundation Trust,15/12/2020,(89570) Other – Other Operating Expenditure,(id:4896419) Evelina R&D and Charity,SMYTHS TOYS HQ UC/SMYTHS TOYS UK,id:13562088 ,2225.22
Department of Health,Guys and St Thomas NHS Foundation Trust,11/12/2020,(50200) Consultants,(id:3008419) Evelina R&D and Charity,KINGS COLLEGE LONDON:03529700,id:13505558    ,2109.10
Department of Health,Guys and St Thomas NHS Foundation Trust,11/12/2020,(81100) Dressings,(id:780420) Cardiovascular Services,NHS SUPPLY CHAIN (MAIDSTONE),id:13531623   , 643.80
Department of Health,Guys and St Thomas NHS Foundation Trust,18/12/2020,(82700) Uniforms & Clothing,(id:780420) Cardiovascular Services,NHS SUPPLY CHAIN (MAIDSTONE),id:13535395   ,  31.68
Department of Health,Guys and St Thomas NHS Foundation Trust,11/12/2020,(81700) Lab Equipment Purchase,(id:780420) Cardiovascular Services,NHS SUPPLY CHAIN (MAIDSTONE),id:13531623,   3.14
Department of Health,Guys and St Thomas NHS Foundation Trust,11/12/2020,(82000) Provisions & Kitchens,(id:780420) Cardiovascular Services,NHS SUPPLY CHAIN (MAIDSTONE),id:13543750 ,  71.53
Department of Health,Guys and St Thomas NHS Foundation Trust,18/12/2020,(50522) Unqualified Nursing Staff,(id:780420) Cardiovascular Services,MSI GROUP LTD,id:13571392  , 223.87
Department of Health,Guys and St Thomas NHS Foundation Trust,18/12/2020,(50522) Unqualified Nursing Staff,(id:780420) Cardiovascular Services,MSI GROUP LTD,id:13571439  , 509.30
Department of Health,Guys and St Thomas NHS Foundation Trust,11/12/2020,(81230) Medical Surgical Supplies & Equipment,(id:639421) Cardiovascular Services,COOK UK LTD,id:13472637  , 330.00
Department of Health,Guys and St Thomas NHS Foundation Trust,11/12/2020,(81200) Medical Surgical Supplies & Equipment,(id:639421) Cardiovascular Services,NHS SUPPLY CHAIN (MAIDSTONE),id:13543516,4674.00
Department of Health,Guys and St Thomas NHS Foundation Trust,11/12/2020,(81200) Medical Surgical Supplies & Equipment,(id:639421) Cardiovascular Services,COOK UK LTD,id:13506594  ,4560.00
Department of Health,Guys and St Thomas NHS Foundation Trust,04/12/2020,(81200) Medical Surgical Supplies & Equipment,(id:639421) Cardiovascular Services,WL GORE & ASSOCIATES (UK) LTD,id:13522010    ,8388.00
Department of Health,Guys and St Thomas NHS Foundation Trust,04/12/2020,(81235) Medical Surgical Supplies & Equipment,(id:639421) Cardiovascular Services,BOSTON SCIENTIFIC LTD,id:13523947  , 564.00
Department of Health,Guys and St Thomas NHS Foundation Trust,11/12/2020,(81235) Medical Surgical Supplies & Equipment,(id:639421) Cardiovascular Services,NHS SUPPLY CHAIN (MAIDSTONE),id:13543074, 705.60
Department of Health,Guys and St Thomas NHS Foundation Trust,11/12/2020,(82600) Uniforms & Clothing,(id:41952) Cardiovascular Services,NHS SUPPLY CHAIN (MAIDSTONE),id:13531623    ,  23.62
Department of Health,Guys and St Thomas NHS Foundation Trust,11/12/2020,(81200) Medical Surgical Supplies & Equipment,(id:41952) Cardiovascular Services,NHS SUPPLY CHAIN (MAIDSTONE),id:13542894 ,  36.95
Department of Health,Guys and St Thomas NHS Foundation Trust,18/12/2020,(81100) Dressings,(id:41952) Cardiovascular Services,NHS SUPPLY CHAIN (MAIDSTONE),id:13535395    , 824.28
Department of Health,Guys and St Thomas NHS Foundation Trust,11/12/2020,(83400) Office Equipment,(id:41952) Cardiovascular Services,NHS SUPPLY CHAIN (MAIDSTONE),id:13531623  ,  66.47
Department of Health,Guys and St Thomas NHS Foundation Trust,11/12/2020,(50200) Consultants,(id:41950) Cardiovascular Services,KING'S COLLEGE HOSPITAL NHS FOUNDATION TRUST,id:13410511 ,1526.00
Department of Health,Guys and St Thomas NHS Foundation Trust,11/12/2020,(81200) Medical Surgical Supplies & Equipment,(id:41950) Cardiovascular Services,COOK UK LTD,id:13478928   , 690.00
Department of Health,Guys and St Thomas NHS Foundation Trust,11/12/2020,(81000) Surgical Appliances,(id:41950) Cardiovascular Services,TALAR MADE ORTHOTICS LTD,id:13543865   ,  16.99
Department of Health,Guys and St Thomas NHS Foundation Trust,11/12/2020,(81100) Dressings,(id:41950) Cardiovascular Services,NHS SUPPLY CHAIN (MAIDSTONE),id:13531623    ,   5.83
Department of Health,Guys and St Thomas NHS Foundation Trust,11/12/2020,(82800) Bedding & Linen,(id:41950) Cardiovascular Services,NHS SUPPLY CHAIN (MAIDSTONE),id:13543516   , 152.62
Department of Health,Guys and St Thomas NHS Foundation Trust,11/12/2020,(81225) Medical Surgical Supplies & Equipment,(id:41950) Cardiovascular Services,NHS SUPPLY CHAIN (MAIDSTONE),id:13542894 ,  53.34
Department of Health,Guys and St Thomas NHS Foundation Trust,11/12/2020,(81100) Dressings,(id:41948) Cardiovascular Services,NHS SUPPLY CHAIN (MAIDSTONE),id:13543074    ,  42.60
Department of Health,Guys and St Thomas NHS Foundation Trust,04/12/2020,(81200) Medical Surgical Supplies & Equipment,(id:41948) Cardiovascular Services,VASCUTEK LTD,id:13519144  , 642.60
Department of Health,Guys and St Thomas NHS Foundation Trust,11/12/2020,(83400) Office Equipment,(id:41947) Cardiovascular Services,NHS SUPPLY CHAIN (MAIDSTONE),id:13543750  ,  63.18
Department of Health,Guys and St Thomas NHS Foundation Trust,04/12/2020,(83500) Furniture & Fittings,(id:3923419) Cardiovascular Services,HOSPITAL METALCRAFT LTD,id:13530376 , 580.61
Department of Health,Guys and St Thomas NHS Foundation Trust,11/12/2020,(81700) Lab Equipment Purchase,(id:3923419) Cardiovascular Services,NHS SUPPLY CHAIN (MAIDSTONE),id:13531623    ,   3.18
Department of Health,Guys and St Thomas NHS Foundation Trust,14/12/2020,(54072) Technical Officers,(id:1243420) Cardiovascular Services,PRICEWATERHOUSECOOPERS LLP,id:13554560,4906.23
Department of Health,Guys and St Thomas NHS Foundation Trust,11/12/2020,(54072) Technical Officers,(id:1243420) Cardiovascular Services,GLOBE LOCUMS LTD,id:13552680,1512.00
Department of Health,Guys and St Thomas NHS Foundation Trust,30/12/2020,(54072) Technical Officers,(id:1243420) Cardiovascular Services,PRICEWATERHOUSECOOPERS LLP,id:13589594,3839.45
Department of Health,Guys and St Thomas NHS Foundation Trust,11/12/2020,(82800) Bedding & Linen,(id:1243420) Cardiovascular Services,NHS SUPPLY CHAIN (MAIDSTONE),id:13543074 ,  76.80
Department of Health,Guys and St Thomas NHS Foundation Trust,18/12/2020,(81200) Medical Surgical Supplies & Equipment,(id:1243419) Cardiovascular Services,WSR MEDICAL SOLUTIONS T/A ROTHBAND,id:13571074   ,  18.00
Department of Health,Guys and St Thomas NHS Foundation Trust,16/12/2020,(50472) Medical Training Grades,(id:42304) Cardiovascular Services,PRICEWATERHOUSECOOPERS LLP,id:13569354  ,1167.65
Department of Health,Guys and St Thomas NHS Foundation Trust,30/12/2020,(54062) Technical Officers,(id:42303) Cardiovascular Services,PRICEWATERHOUSECOOPERS LLP,id:13589594  ,2073.44
Department of Health,Guys and St Thomas NHS Foundation Trust,11/12/2020,(81200) Medical Surgical Supplies & Equipment,(id:42303) Cardiovascular Services,NHS SUPPLY CHAIN (MAIDSTONE),id:13543074 ,3278.22
Department of Health,Guys and St Thomas NHS Foundation Trust,14/12/2020,(54052) Technical Officers,(id:42303) Cardiovascular Services,PRICEWATERHOUSECOOPERS LLP,id:13554560  , 959.50
Department of Health,Guys and St Thomas NHS Foundation Trust,11/12/2020,(82800) Bedding & Linen,(id:42302) Cardiovascular Services,NHS SUPPLY CHAIN (MAIDSTONE),id:13543074   , 225.29
Department of Health,Guys and St Thomas NHS Foundation Trust,04/12/2020,(81200) Medical Surgical Supplies & Equipment,(id:42302) Cardiovascular Services,BOSTON SCIENTIFIC LTD,id:13476660   ,1008.00
Department of Health,Guys and St Thomas NHS Foundation Trust,04/12/2020,(81200) Medical Surgical Supplies & Equipment,(id:42302) Cardiovascular Services,TERUMO UK LTD,id:13519714 ,1080.00
Department of Health,Guys and St Thomas NHS Foundation Trust,11/12/2020,(81200) Medical Surgical Supplies & Equipment,(id:42302) Cardiovascular Services,NHS SUPPLY CHAIN (MAIDSTONE),id:13543750 ,    11035.60
Department of Health,Guys and St Thomas NHS Foundation Trust,22/12/2020,(81200) Medical Surgical Supplies & Equipment,(id:42302) Cardiovascular Services,ABBOTT MEDICAL UK LTD,id:13579374   ,4440.00
Department of Health,Guys and St Thomas NHS Foundation Trust,11/12/2020,(81225) Medical Surgical Supplies & Equipment,(id:42302) Cardiovascular Services,NHS SUPPLY CHAIN (MAIDSTONE),id:13543074 ,   4.85
Department of Health,Guys and St Thomas NHS Foundation Trust,04/12/2020,(81230) Medical Surgical Supplies & Equipment,(id:42302) Cardiovascular Services,BRACCO UK LTD,id:13517475 ,2400.00
Department of Health,Guys and St Thomas NHS Foundation Trust,11/12/2020,(81255) Medical Surgical Supplies & Equipment,(id:42302) Cardiovascular Services,NHS SUPPLY CHAIN (MAIDSTONE),id:13543074 ,    .62
Department of Health,Guys and St Thomas NHS Foundation Trust,11/12/2020,(81255) Medical Surgical Supplies & Equipment,(id:42302) Cardiovascular Services,NHS SUPPLY CHAIN (MAIDSTONE),id:13531623 ,   8.11
Department of Health,Guys and St Thomas NHS Foundation Trust,18/12/2020,(81255) Medical Surgical Supplies & Equipment,(id:42301) Cardiovascular Services,NHS SUPPLY CHAIN (MAIDSTONE),id:13535395 ,  12.96
Department of Health,Guys and St Thomas NHS Foundation Trust,11/12/2020,(82700) Uniforms & Clothing,(id:42300) Cardiovascular Services,NHS SUPPLY CHAIN (MAIDSTONE),id:13531623    , 130.35
Department of Health,Guys and St Thomas NHS Foundation Trust,18/12/2020,(82000) Provisions & Kitchens,(id:42300) Cardiovascular Services,NHS SUPPLY CHAIN (MAIDSTONE),id:13535395  ,  95.85
Department of Health,Guys and St Thomas NHS Foundation Trust,11/12/2020,(83400) Office Equipment,(id:42300) Cardiovascular Services,NHS SUPPLY CHAIN (MAIDSTONE),id:13543516  , 186.47
Department of Health,Guys and St Thomas NHS Foundation Trust,18/12/2020,(82800) Bedding & Linen,(id:42300) Cardiovascular Services,NHS SUPPLY CHAIN (MAIDSTONE),id:13535395   ,  72.64
Department of Health,Guys and St Thomas NHS Foundation Trust,11/12/2020,(81200) Medical Surgical Supplies & Equipment,(id:42300) Cardiovascular Services,NHS SUPPLY CHAIN (MAIDSTONE),id:13531623 , 653.74
Department of Health,Guys and St Thomas NHS Foundation Trust,11/12/2020,(81100) Dressings,(id:42300) Cardiovascular Services,NHS SUPPLY CHAIN (MAIDSTONE),id:13542894    ,  60.53
Department of Health,Guys and St Thomas NHS Foundation Trust,11/12/2020,(81100) Dressings,(id:42300) Cardiovascular Services,NHS SUPPLY CHAIN (MAIDSTONE),id:13531623    , 171.33
Department of Health,Guys and St Thomas NHS Foundation Trust,18/12/2020,(81100) Dressings,(id:42300) Cardiovascular Services,NHS SUPPLY CHAIN (MAIDSTONE),id:13535395    , 133.58
Department of Health,Guys and St Thomas NHS Foundation Trust,11/12/2020,(81235) Medical Surgical Supplies & Equipment,(id:42298) Cardiovascular Services,AQUILANT LTD,id:13544924  , 504.00
Department of Health,Guys and St Thomas NHS Foundation Trust,04/12/2020,(81200) Medical Surgical Supplies & Equipment,(id:42298) Cardiovascular Services,ABBOTT MEDICAL UK LTD,id:13523032   ,2880.00
Department of Health,Guys and St Thomas NHS Foundation Trust,04/12/2020,(81200) Medical Surgical Supplies & Equipment,(id:42298) Cardiovascular Services,JOHNSON & JOHNSON MEDICAL LTD,id:13478902,3000.00
Department of Health,Guys and St Thomas NHS Foundation Trust,11/12/2020,(81200) Medical Surgical Supplies & Equipment,(id:42298) Cardiovascular Services,NHS SUPPLY CHAIN (MAIDSTONE),id:13543750 ,    15820.38
Department of Health,Guys and St Thomas NHS Foundation Trust,18/12/2020,(81200) Medical Surgical Supplies & Equipment,(id:42298) Cardiovascular Services,NHS SUPPLY CHAIN (MAIDSTONE),id:13535395 ,4252.26
Department of Health,Guys and St Thomas NHS Foundation Trust,18/12/2020,(81200) Medical Surgical Supplies & Equipment,(id:42298) Cardiovascular Services,BOSTON SCIENTIFIC LTD,id:13518366   ,2844.00
Department of Health,Guys and St Thomas NHS Foundation Trust,18/12/2020,(81200) Medical Surgical Supplies & Equipment,(id:42298) Cardiovascular Services,ABBOTT MEDICAL UK LTD,id:13562337   , 108.00
Department of Health,Guys and St Thomas NHS Foundation Trust,18/12/2020,(81200) Medical Surgical Supplies & Equipment,(id:42298) Cardiovascular Services,ABBOTT MEDICAL UK LTD,id:13562474   , 774.00
Department of Health,Guys and St Thomas NHS Foundation Trust,18/12/2020,(81200) Medical Surgical Supplies & Equipment,(id:42298) Cardiovascular Services,TELEFLEX MEDICAL,id:13526720   , 840.00
Department of Health,Guys and St Thomas NHS Foundation Trust,22/12/2020,(81200) Medical Surgical Supplies & Equipment,(id:42298) Cardiovascular Services,SPECTRANETICS UK,id:13554528   ,2848.80
Department of Health,Guys and St Thomas NHS Foundation Trust,04/12/2020,(81200) Medical Surgical Supplies & Equipment,(id:42298) Cardiovascular Services,ABBOTT MEDICAL UK LTD,id:13520998   , 240.00
Department of Health,Guys and St Thomas NHS Foundation Trust,11/12/2020,(81100) Dressings,(id:42298) Cardiovascular Services,NHS SUPPLY CHAIN (MAIDSTONE),id:13542894    ,  44.92
Department of Health,Guys and St Thomas NHS Foundation Trust,04/12/2020,(81100) Dressings,(id:42298) Cardiovascular Services,KIMAL PLC,id:13523107   ,4658.88
Department of Health,Guys and St Thomas NHS Foundation Trust,04/12/2020,(81230) Medical Surgical Supplies & Equipment,(id:42298) Cardiovascular Services,ABBOTT MEDICAL UK LTD,id:13530694   , 576.00
Department of Health,Guys and St Thomas NHS Foundation Trust,11/12/2020,(82600) Uniforms & Clothing,(id:42298) Cardiovascular Services,NHS SUPPLY CHAIN (MAIDSTONE),id:13542894    ,  26.53
Department of Health,Guys and St Thomas NHS Foundation Trust,18/12/2020,(81240) Medical Surgical Supplies & Equipment,(id:42298) Cardiovascular Services,ABBOTT MEDICAL UK LTD,id:13562474   ,    14400.00
Department of Health,Guys and St Thomas NHS Foundation Trust,11/12/2020,(83400) Office Equipment,(id:42291) Cardiovascular Services,NHS SUPPLY CHAIN (MAIDSTONE),id:13543750  , 120.35
Department of Health,Guys and St Thomas NHS Foundation Trust,11/12/2020,(81700) Lab Equipment Purchase,(id:42291) Cardiovascular Services,NHS SUPPLY CHAIN (MAIDSTONE),id:13542894 ,  21.77
Department of Health,Guys and St Thomas NHS Foundation Trust,11/12/2020,(81225) Medical Surgical Supplies & Equipment,(id:42291) Cardiovascular Services,NHS SUPPLY CHAIN (MAIDSTONE),id:13543750 ,   3.68
Department of Health,Guys and St Thomas NHS Foundation Trust,11/12/2020,(81255) Medical Surgical Supplies & Equipment,(id:42291) Cardiovascular Services,NHS SUPPLY CHAIN (MAIDSTONE),id:13543516 ,   2.50
Department of Health,Guys and St Thomas NHS Foundation Trust,11/12/2020,(82700) Uniforms & Clothing,(id:42290) Cardiovascular Services,NHS SUPPLY CHAIN (MAIDSTONE),id:13543750    ,  66.82
Department of Health,Guys and St Thomas NHS Foundation Trust,11/12/2020,(83400) Office Equipment,(id:42290) Cardiovascular Services,NHS SUPPLY CHAIN (MAIDSTONE),id:13543750  , 167.94
Department of Health,Guys and St Thomas NHS Foundation Trust,11/12/2020,(83400) Office Equipment,(id:42290) Cardiovascular Services,NHS SUPPLY CHAIN (MAIDSTONE),id:13542894  ,  55.73
Department of Health,Guys and St Thomas NHS Foundation Trust,18/12/2020,(83400) Office Equipment,(id:42290) Cardiovascular Services,NHS SUPPLY CHAIN (MAIDSTONE),id:13535395  , 286.62
Department of Health,Guys and St Thomas NHS Foundation Trust,18/12/2020,(82800) Bedding & Linen,(id:42290) Cardiovascular Services,NHS SUPPLY CHAIN (MAIDSTONE),id:13535395   ,  94.38
Department of Health,Guys and St Thomas NHS Foundation Trust,11/12/2020,(82800) Bedding & Linen,(id:42290) Cardiovascular Services,NHS SUPPLY CHAIN (MAIDSTONE),id:13542894   , 197.51
Department of Health,Guys and St Thomas NHS Foundation Trust,11/12/2020,(81200) Medical Surgical Supplies & Equipment,(id:42290) Cardiovascular Services,NHS SUPPLY CHAIN (MAIDSTONE),id:13543516 , 808.36
Department of Health,Guys and St Thomas NHS Foundation Trust,18/12/2020,(81100) Dressings,(id:42290) Cardiovascular Services,NHS SUPPLY CHAIN (MAIDSTONE),id:13535395    ,  67.11
Department of Health,Guys and St Thomas NHS Foundation Trust,18/12/2020,(50552) Qualified Nursing Staff,(id:42290) Cardiovascular Services,MSI GROUP LTD,id:13571358, 335.36
Department of Health,Guys and St Thomas NHS Foundation Trust,11/12/2020,(81700) Lab Equipment Purchase,(id:42290) Cardiovascular Services,NHS SUPPLY CHAIN (MAIDSTONE),id:13543074 ,  13.04
Department of Health,Guys and St Thomas NHS Foundation Trust,11/12/2020,(81700) Lab Equipment Purchase,(id:42290) Cardiovascular Services,NHS SUPPLY CHAIN (MAIDSTONE),id:13543750 ,  29.20
Department of Health,Guys and St Thomas NHS Foundation Trust,18/12/2020,(81700) Lab Equipment Purchase,(id:42290) Cardiovascular Services,NHS SUPPLY CHAIN (MAIDSTONE),id:13535395 ,  24.98
Department of Health,Guys and St Thomas NHS Foundation Trust,11/12/2020,(82800) Bedding & Linen,(id:42293) Cardiovascular Services,NHS SUPPLY CHAIN (MAIDSTONE),id:13531623   ,  20.10
Department of Health,Guys and St Thomas NHS Foundation Trust,18/12/2020,(81225) Medical Surgical Supplies & Equipment,(id:42293) Cardiovascular Services,NHS SUPPLY CHAIN (MAIDSTONE),id:13535395 ,  29.09
Department of Health,Guys and St Thomas NHS Foundation Trust,04/12/2020,(81200) Medical Surgical Supplies & Equipment,(id:42293) Cardiovascular Services,MEDTRONIC LTD,id:13521812 ,1140.00
Department of Health,Guys and St Thomas NHS Foundation Trust,18/12/2020,(81200) Medical Surgical Supplies & Equipment,(id:42293) Cardiovascular Services,JOHNSON & JOHNSON MEDICAL LTD,id:13529338, 541.55
Department of Health,Guys and St Thomas NHS Foundation Trust,11/12/2020,(81200) Medical Surgical Supplies & Equipment,(id:42293) Cardiovascular Services,NHS SUPPLY CHAIN (MAIDSTONE),id:13531623 ,3540.70
Department of Health,Guys and St Thomas NHS Foundation Trust,22/12/2020,(81200) Medical Surgical Supplies & Equipment,(id:42293) Cardiovascular Services,JOHNSON & JOHNSON MEDICAL LTD,id:13534210, 623.82
